OrganisationNameLabel,OrganisationURI,EffectiveDate,Directorate/ServiceWhereExpenditureIncurred,ServiceCategoryLabel,ServiceCategoryURI,Supplier,SupplierRegisteredCompany Number,PaymentDate,TransactionNumber,NetAmount,IrrecoverableVAT,PurposeOfSpend,ProcurementClassification:ProclassLabel,ProcrementClassification:ProClassCode
South Lakeland District Council,http://opendatacommunities.org/id/district-council/south-lakeland,30/11/2014,Holding Accounts,SLDC as Agent,,ITPS Professional Services Ltd (DD),,15/08/2014,43515,603.7,,No description recorded,Financial Services,200000
South Lakeland District Council,http://opendatacommunities.org/id/district-council/south-lakeland,30/11/2014,SLDC Depots,Transport Planning Policy,,NPOWER LTD (NCR),,15/08/2014,43643,624.88,,No description recorded,Utilities,370000
South Lakeland District Council,http://opendatacommunities.org/id/district-council/south-lakeland,30/11/2014,SLDC Depots,Transport Planning Policy,,NPOWER LTD (NCR),,15/08/2014,43643,1394.63,,No description recorded,Utilities,370000
South Lakeland District Council,http://opendatacommunities.org/id/district-council/south-lakeland,30/11/2014,Markets,External Trading Accounts,,NPOWER LTD (NCR),,15/08/2014,43643,548.91,,No description recorded,Utilities,370000
South Lakeland District Council,http://opendatacommunities.org/id/district-council/south-lakeland,30/11/2014,Markets,External Trading Accounts,,NPOWER LTD (NCR),,15/08/2014,43643,966.91,,No description recorded,Utilities,370000
South Lakeland District Council,http://opendatacommunities.org/id/district-council/south-lakeland,30/11/2014,Sundry Properties,External Trading Accounts,,NPOWER LTD (NCR),,15/08/2014,43643,940.16,,No description recorded,Utilities,370000
South Lakeland District Council,http://opendatacommunities.org/id/district-council/south-lakeland,30/11/2014,Information Services,Central Services,http://opendatacommunities.org/def/concept/finance/sercop/objective/102,BRITISH TELECOMMUNICATIONS PLC (DD),,15/08/2014,43513,1885.98,,No description recorded,Information Communication Technology,270000
South Lakeland District Council,http://opendatacommunities.org/id/district-council/south-lakeland,30/11/2014,Information Services,Central Services,http://opendatacommunities.org/def/concept/finance/sercop/objective/102,ITPS Professional Services Ltd (DD),,15/08/2014,43515,915.19,,No description recorded,Information Communication Technology,270000
South Lakeland District Council,http://opendatacommunities.org/id/district-council/south-lakeland,30/11/2014,Offices,Central Services,http://opendatacommunities.org/def/concept/finance/sercop/objective/102,NPOWER LTD (NCR),,15/08/2014,43643,1351.5,,No description recorded,Utilities,370000
South Lakeland District Council,http://opendatacommunities.org/id/district-council/south-lakeland,30/11/2014,Offices,Central Services,http://opendatacommunities.org/def/concept/finance/sercop/objective/102,NPOWER LTD (NCR),,15/08/2014,43643,863.53,,No description recorded,Utilities,370000
South Lakeland District Council,http://opendatacommunities.org/id/district-council/south-lakeland,30/11/2014,Financial Services,Central Services,http://opendatacommunities.org/def/concept/finance/sercop/objective/102,CAPITA BUSINESS SERVICES LTD (NCR),,15/08/2014,43663,1045.02,0,Inv. 93827385 July Internet,Financial Services,200000
South Lakeland District Council,http://opendatacommunities.org/id/district-council/south-lakeland,30/11/2014,Lake Windermere,Cultural Environmental Regulatory & Planning Services,http://opendatacommunities.org/def/concept/finance/sercop/objective/104,NPOWER LTD (NCR),,15/08/2014,43643,886.97,,No description recorded,Utilities,370000
South Lakeland District Council,http://opendatacommunities.org/id/district-council/south-lakeland,30/11/2014,Public Halls,Cultural Environmental Regulatory & Planning Services,http://opendatacommunities.org/def/concept/finance/sercop/objective/104,NPOWER LTD (NCR),,15/08/2014,43643,672.67,,No description recorded,Utilities,370000
South Lakeland District Council,http://opendatacommunities.org/id/district-council/south-lakeland,30/11/2014,Car Parks,Highways & Transport Services,http://opendatacommunities.org/def/concept/finance/sercop/objective/107,NPOWER LTD (NCR),,15/08/2014,43643,2201.96,,No description recorded,Utilities,370000
South Lakeland District Council,http://opendatacommunities.org/id/district-council/south-lakeland,30/11/2014,Social Enterprise Admin,Highways & Transport Services,http://opendatacommunities.org/def/concept/finance/sercop/objective/107,CREDIT CALL LTD (NCR),,15/08/2014,43670,606.1,0,Credit Call Commission 2014/15,Financial Services,200000
South Lakeland District Council,http://opendatacommunities.org/id/district-council/south-lakeland,30/11/2014,Town View Field Hostel,Housing Services,http://opendatacommunities.org/def/concept/finance/sercop/objective/108,NPOWER LTD (NCR),,15/08/2014,43644,382.72,,No description recorded,Utilities,370000
South Lakeland District Council,http://opendatacommunities.org/id/district-council/south-lakeland,30/11/2014,Social Enterprise Admin,External Trading Accounts,,PHS GROUP PLC,,01/09/2014,43399,250.6,0,"Public toilets- Market Hall, Market",Cleaning & Janitorial,130000
South Lakeland District Council,http://opendatacommunities.org/id/district-council/south-lakeland,30/11/2014,Business Support Community Services,Internal Trading Accounts,,Masterstaff Limited,2777593,01/09/2014,43417,429.98,0, August 2014,Consultancy,150000
South Lakeland District Council,http://opendatacommunities.org/id/district-council/south-lakeland,30/11/2014,Debtors,Non-Service Payments,,SOUTH LAKES HOUSING RENT A/C,,01/09/2014,43418,3077.39,,No description recorded,Housing Management,250000
South Lakeland District Council,http://opendatacommunities.org/id/district-council/south-lakeland,30/11/2014,Holding Accounts,SLDC as Agent,,ITPS Professional Services Ltd (DD),,01/09/2014,43754,913.24,,No description recorded,Financial Services,200000
South Lakeland District Council,http://opendatacommunities.org/id/district-council/south-lakeland,30/11/2014,Business Support Community Services,Internal Trading Accounts,,ALLSTAR BUSINESS SOLUTIONS LTD (NCR),2631112,01/09/2014,43797,3583.48,0,Fuel to 31/08,Utilities,370000
South Lakeland District Council,http://opendatacommunities.org/id/district-council/south-lakeland,30/11/2014,Business Support Community Services,Internal Trading Accounts,,ALLSTAR BUSINESS SOLUTIONS LTD (NCR),2631112,01/09/2014,43797,14293.07,0,Fuel to 31/08,Utilities,370000
South Lakeland District Council,http://opendatacommunities.org/id/district-council/south-lakeland,30/11/2014,Payroll Deductions,Non-Service Payments,,INLAND REVENUE (CHAPS),,01/09/2014,43839,79898.64,,No description recorded,Financial Services,200000
South Lakeland District Council,http://opendatacommunities.org/id/district-council/south-lakeland,30/11/2014,Payroll Deductions,Non-Service Payments,,INLAND REVENUE (CHAPS),,01/09/2014,43839,91719.25,,No description recorded,Financial Services,200000
South Lakeland District Council,http://opendatacommunities.org/id/district-council/south-lakeland,30/11/2014,Payroll Deductions,Non-Service Payments,,INLAND REVENUE (CHAPS),,01/09/2014,43839,619,,No description recorded,Financial Services,200000
South Lakeland District Council,http://opendatacommunities.org/id/district-council/south-lakeland,30/11/2014,Payroll Deductions,Non-Service Payments,,CUMBRIA COUNTY COUNCIL (CHAPS),,01/09/2014,43840,95265.1,,No description recorded,Financial Services,200000
South Lakeland District Council,http://opendatacommunities.org/id/district-council/south-lakeland,30/11/2014,Payroll Deductions,Non-Service Payments,,CUMBRIA COUNTY COUNCIL (CHAPS),,01/09/2014,43840,43690.6,,No description recorded,Financial Services,200000
South Lakeland District Council,http://opendatacommunities.org/id/district-council/south-lakeland,30/11/2014,Revenue Account For Year,Interest payable and other chg,,PWLB (CHAPS),,01/09/2014,43904,283400,,No description recorded,Financial Services,200000
South Lakeland District Council,http://opendatacommunities.org/id/district-council/south-lakeland,30/11/2014,Business Support Community Services,Internal Trading Accounts,,ALLSTAR BUSINESS SOLUTIONS LTD (NCR),2631112,01/09/2014,43950,3661.07,0,Fuel to 15/09/14,Utilities,370000
South Lakeland District Council,http://opendatacommunities.org/id/district-council/south-lakeland,30/11/2014,Business Support Community Services,Internal Trading Accounts,,ALLSTAR BUSINESS SOLUTIONS LTD (NCR),2631112,01/09/2014,43950,13090.95,0,Fuel to 15/09/14,Utilities,370000
South Lakeland District Council,http://opendatacommunities.org/id/district-council/south-lakeland,30/11/2014,Collection Fund,,,DEPT FOR COMMUNITIES & LOCAL GOVT (NCR),,01/09/2014,44123,2077489,,No description recorded,Financial Services,200000
South Lakeland District Council,http://opendatacommunities.org/id/district-council/south-lakeland,30/11/2014,Collection Fund,,,DEPT FOR COMMUNITIES & LOCAL GOVT (NCR),,01/09/2014,44123,1552,,No description recorded,Financial Services,200000
South Lakeland District Council,http://opendatacommunities.org/id/district-council/south-lakeland,30/11/2014,Collection Fund,,,DEPT FOR COMMUNITIES & LOCAL GOVT (NCR),,01/09/2014,44123,6208,,No description recorded,Financial Services,200000
South Lakeland District Council,http://opendatacommunities.org/id/district-council/south-lakeland,30/11/2014,Legal Services,Central Services,http://opendatacommunities.org/def/concept/finance/sercop/objective/102,VENN GROUP RECRUITMENT SOLUTIONS,,01/09/2014,43391,699.89,0,Wages ,Consultancy,150000
South Lakeland District Council,http://opendatacommunities.org/id/district-council/south-lakeland,30/11/2014,Legal Services,Central Services,http://opendatacommunities.org/def/concept/finance/sercop/objective/102,VENN GROUP RECRUITMENT SOLUTIONS,,01/09/2014,43392,486.88,0,Wages ,Consultancy,150000
South Lakeland District Council,http://opendatacommunities.org/id/district-council/south-lakeland,30/11/2014,Social Enterprise Admin,Central Services,http://opendatacommunities.org/def/concept/finance/sercop/objective/102,PHS GROUP PLC,,01/09/2014,43393,315.6,0,"Public toilets- Market Hall, Market",Cleaning & Janitorial,130000
South Lakeland District Council,http://opendatacommunities.org/id/district-council/south-lakeland,30/11/2014,Social Enterprise Admin,Central Services,http://opendatacommunities.org/def/concept/finance/sercop/objective/102,PHS GROUP PLC,,01/09/2014,43395,307.6,0,"Public toilets- Market Hall, Market",Cleaning & Janitorial,130000
South Lakeland District Council,http://opendatacommunities.org/id/district-council/south-lakeland,30/11/2014,Business Support Community Services,Central Services,http://opendatacommunities.org/def/concept/finance/sercop/objective/102,FOOD SAFETY DIRECT LIMITED,5294095,01/09/2014,43400,567.2,0,PACE Noteboolk Covers x 30,Furniture & Soft Furnishings,210000
South Lakeland District Council,http://opendatacommunities.org/id/district-council/south-lakeland,30/11/2014,Revenues and Benefits,Central Services,http://opendatacommunities.org/def/concept/finance/sercop/objective/102,BADENOCH & CLARK,1356186,01/09/2014,43416,533.4,0,Revs and Bens,Consultancy,150000
South Lakeland District Council,http://opendatacommunities.org/id/district-council/south-lakeland,30/11/2014,"Legal, Democratic and Members",Central Services,http://opendatacommunities.org/def/concept/finance/sercop/objective/102,HM LAND REGISTRY (DD),,01/09/2014,43558,271,,No description recorded,Legal Services,280000
South Lakeland District Council,http://opendatacommunities.org/id/district-council/south-lakeland,30/11/2014,Printing and Graphic Design,Central Services,http://opendatacommunities.org/def/concept/finance/sercop/objective/102,CIT VENDOR FINANCE (UK) LTD (NCR),,01/09/2014,43749,2103.91,,No description recorded,Stationery,340000
South Lakeland District Council,http://opendatacommunities.org/id/district-council/south-lakeland,30/11/2014,Information Services,Central Services,http://opendatacommunities.org/def/concept/finance/sercop/objective/102,ITPS Professional Services Ltd (DD),,01/09/2014,43754,558.89,,No description recorded,Information Communication Technology,270000
South Lakeland District Council,http://opendatacommunities.org/id/district-council/south-lakeland,30/11/2014,Policy & Partnerships,Cultural Environmental Regulatory & Planning Services,http://opendatacommunities.org/def/concept/finance/sercop/objective/104,Leven Valley History Society,,01/09/2014,43410,2800,0,Contributions to Leven Valley History,Financial Services,200000
South Lakeland District Council,http://opendatacommunities.org/id/district-council/south-lakeland,30/11/2014,Policy & Partnerships,Cultural Environmental Regulatory & Planning Services,http://opendatacommunities.org/def/concept/finance/sercop/objective/104,GRANTS- MISCELLANEOUS,,01/09/2014,43411,300,0,Ulverston Candlelit Walk Project,Financial Services,200000
South Lakeland District Council,http://opendatacommunities.org/id/district-council/south-lakeland,30/11/2014,Development Strategy,Cultural Environmental Regulatory & Planning Services,http://opendatacommunities.org/def/concept/finance/sercop/objective/104,Matchtech,2526418,01/09/2014,43414,833.7,0,"12-week contract, 30hrs",Consultancy,150000
South Lakeland District Council,http://opendatacommunities.org/id/district-council/south-lakeland,30/11/2014,Social Enterprise Admin,Highways & Transport Services,http://opendatacommunities.org/def/concept/finance/sercop/objective/107,ALLSTAR BUSINESS SOLUTIONS LTD (NCR),2631112,01/09/2014,43746,253.93,0,Fuel for car parks' vehicles starting 1,Utilities,370000
South Lakeland District Council,http://opendatacommunities.org/id/district-council/south-lakeland,30/11/2014,Social Enterprise Admin,Highways & Transport Services,http://opendatacommunities.org/def/concept/finance/sercop/objective/107,ALLSTAR BUSINESS SOLUTIONS LTD (NCR),2631112,01/09/2014,43793,287.16,0,Fuel for car parks' vehicles starting 1,Utilities,370000
South Lakeland District Council,http://opendatacommunities.org/id/district-council/south-lakeland,30/11/2014,Business Support Community Services,Housing Services,http://opendatacommunities.org/def/concept/finance/sercop/objective/108,Landlord,,01/09/2014,43401,350,0,Monthly rent ,Social Community Care Supplies & Services,410000
South Lakeland District Council,http://opendatacommunities.org/id/district-council/south-lakeland,30/11/2014,Business Support Community Services,Housing Services,http://opendatacommunities.org/def/concept/finance/sercop/objective/108,Landlord,7009105,01/09/2014,43402,480,0,Monthly rent,Social Community Care Supplies & Services,410000
South Lakeland District Council,http://opendatacommunities.org/id/district-council/south-lakeland,30/11/2014,Business Support Community Services,Housing Services,http://opendatacommunities.org/def/concept/finance/sercop/objective/108,Landlord,,01/09/2014,43403,400,0,Monthly rent,Social Community Care Supplies & Services,410000
South Lakeland District Council,http://opendatacommunities.org/id/district-council/south-lakeland,30/11/2014,Business Support Community Services,Housing Services,http://opendatacommunities.org/def/concept/finance/sercop/objective/108,Landlord,,01/09/2014,43404,475,0,Monthly rent,Social Community Care Supplies & Services,410000
South Lakeland District Council,http://opendatacommunities.org/id/district-council/south-lakeland,30/11/2014,Business Support Community Services,Housing Services,http://opendatacommunities.org/def/concept/finance/sercop/objective/108,Landlord,,01/09/2014,43405,400,0,Monthly rent,Social Community Care Supplies & Services,410000
South Lakeland District Council,http://opendatacommunities.org/id/district-council/south-lakeland,30/11/2014,Business Support Community Services,Housing Services,http://opendatacommunities.org/def/concept/finance/sercop/objective/108,Landlord,,01/09/2014,43406,600,0,Monthly rent,Social Community Care Supplies & Services,410000
South Lakeland District Council,http://opendatacommunities.org/id/district-council/south-lakeland,30/11/2014,Business Support Community Services,Housing Services,http://opendatacommunities.org/def/concept/finance/sercop/objective/108,Landlord,,01/09/2014,43407,400,0,Monthly rent,Social Community Care Supplies & Services,410000
South Lakeland District Council,http://opendatacommunities.org/id/district-council/south-lakeland,30/11/2014,Business Support Community Services,Housing Services,http://opendatacommunities.org/def/concept/finance/sercop/objective/108,Landlord,,01/09/2014,43408,500,0,Monthly rent,Social Community Care Supplies & Services,410000
South Lakeland District Council,http://opendatacommunities.org/id/district-council/south-lakeland,30/11/2014,Business Support Community Services,Housing Services,http://opendatacommunities.org/def/concept/finance/sercop/objective/108,Landlord,,01/09/2014,43409,410,0,Monthly rent,Social Community Care Supplies & Services,410000
South Lakeland District Council,http://opendatacommunities.org/id/district-council/south-lakeland,30/11/2014,Business Support Community Services,Internal Trading Accounts,,CUMBRIA WASTE RECYCLING LTD,3162439,03/09/2014,43425,1318.08,0,Skip emptying at Ecclerigg - July,Environmental Services,180000
South Lakeland District Council,http://opendatacommunities.org/id/district-council/south-lakeland,30/11/2014,Business Support Community Services,Internal Trading Accounts,,PROBRUSH T/A NORTHERN MUNICIPAL SPARES L,,03/09/2014,43437,1823.54,0,Brushes,Vehicle Management,380000
South Lakeland District Council,http://opendatacommunities.org/id/district-council/south-lakeland,30/11/2014,Business Support Community Services,Internal Trading Accounts,,PROBRUSH T/A NORTHERN MUNICIPAL SPARES L,,03/09/2014,43438,1695.76,0,Brushes,Vehicle Management,380000
South Lakeland District Council,http://opendatacommunities.org/id/district-council/south-lakeland,30/11/2014,Business Support Community Services,Internal Trading Accounts,,EK MOTOR FACTORS LTD,838524,03/09/2014,43439,507.7,0,Oil,Vehicle Management,380000
South Lakeland District Council,http://opendatacommunities.org/id/district-council/south-lakeland,30/11/2014,Business Support Community Services,SLDC as Agent,,JOANNA SMAILES,,03/09/2014,43508,1200,0,"Project Management, Cumbria NSNO &",Financial Services,200000
South Lakeland District Council,http://opendatacommunities.org/id/district-council/south-lakeland,30/11/2014,Debtors,Non-Service Payments,,SOUTH LAKES HOUSING RENT A/C,,03/09/2014,43511,3052.73,,No description recorded,Housing Management,250000
South Lakeland District Council,http://opendatacommunities.org/id/district-council/south-lakeland,30/11/2014,Business Support Community Services,Internal Trading Accounts,,Masterstaff Limited,2777593,03/09/2014,43512,566.25,0, August 2014,Consultancy,150000
South Lakeland District Council,http://opendatacommunities.org/id/district-council/south-lakeland,30/11/2014,Research and Intelligence,Central Services,http://opendatacommunities.org/def/concept/finance/sercop/objective/102,GeoPlace LLP,OC359627,03/09/2014,43422,390,0,Address update introductory course -,Education,170000
South Lakeland District Council,http://opendatacommunities.org/id/district-council/south-lakeland,30/11/2014,Kendal Market Hall,Central Services,http://opendatacommunities.org/def/concept/finance/sercop/objective/102,LTT VENDING GROUP LTD,3021756,03/09/2014,43423,399.09,0,3 x Cappuccino coffee,Catering,110000
South Lakeland District Council,http://opendatacommunities.org/id/district-council/south-lakeland,30/11/2014,Electoral Services,Central Services,http://opendatacommunities.org/def/concept/finance/sercop/objective/102,NEWSQUEST (NORTH WEST) LTD,3102566,03/09/2014,43442,550,0,Advert for IER in Westmorland Gazette on,Mail Services,300000
South Lakeland District Council,http://opendatacommunities.org/id/district-council/south-lakeland,30/11/2014,Human Resources,Central Services,http://opendatacommunities.org/def/concept/finance/sercop/objective/102,KENDAL COLLEGE,,03/09/2014,43446,350,0,Intermediate Word 11/06/2014,Education,170000
South Lakeland District Council,http://opendatacommunities.org/id/district-council/south-lakeland,30/11/2014,Kendal Town Hall,Cultural Environmental Regulatory & Planning Services,http://opendatacommunities.org/def/concept/finance/sercop/objective/104,EVAC CHAIR INTERNATIONAL LTD,3593826,03/09/2014,43424,330,0,servicing of Evac chairs and IBEX chair,Furniture & Soft Furnishings,210000
South Lakeland District Council,http://opendatacommunities.org/id/district-council/south-lakeland,30/11/2014,Social Enterprise Admin,Cultural Environmental Regulatory & Planning Services,http://opendatacommunities.org/def/concept/finance/sercop/objective/104,BURTON TURF CARE,,03/09/2014,43429,2500,0,Carrying out earthquake / verti-draining,Horticultural,240000
South Lakeland District Council,http://opendatacommunities.org/id/district-council/south-lakeland,30/11/2014,Business Support Community Services,Cultural Environmental Regulatory & Planning Services,http://opendatacommunities.org/def/concept/finance/sercop/objective/104,MILNTHORPE KENNELS & CATTERY,8932302,03/09/2014,43504,2382.33,0,Stray dog kennelling fees April 20014 -,Environmental Services,180000
South Lakeland District Council,http://opendatacommunities.org/id/district-council/south-lakeland,30/11/2014,Coronation Hall,External Trading Accounts,,CUMBRIA WASTE RECYCLING LTD,3162439,08/09/2014,43322,457.98,0,"Emptying of skips from Market Hall,",Environmental Services,180000
South Lakeland District Council,http://opendatacommunities.org/id/district-council/south-lakeland,30/11/2014,Business Support Community Services,Internal Trading Accounts,,BRIAN ARMISTEAD LTD T/A SINKFALL RECYCLI,4133280,08/09/2014,43385,1240,0,Green waste tipping - April (estimated),Environmental Services,180000
South Lakeland District Council,http://opendatacommunities.org/id/district-council/south-lakeland,30/11/2014,Business Support Community Services,Internal Trading Accounts,,ARCO LIMITED,133804,08/09/2014,43554,441.87,0,Graffiti remover,Clothing,140000
South Lakeland District Council,http://opendatacommunities.org/id/district-council/south-lakeland,30/11/2014,ICT Group,SLDC as Agent,,CABLE & WIRELESS UK (VODAFONE),,08/09/2014,43560,631.05,0,Call Charges 24 July 2014 - 26 Aug 2014,Financial Services,200000
South Lakeland District Council,http://opendatacommunities.org/id/district-council/south-lakeland,30/11/2014,Development Implementation,SLDC as Agent,,WORDTREE LTD,6754177,08/09/2014,43568,550,0,Guiding and translation services for,Financial Services,200000
South Lakeland District Council,http://opendatacommunities.org/id/district-council/south-lakeland,30/11/2014,Human Resources,Non-Service Payments,,COMPUTERSHARE VOUCHER SERVICES LTD,4968447,08/09/2014,43594,876,0,CHULD CARE VOUCHERS - APPROX. 1000.00,Financial Services,200000
South Lakeland District Council,http://opendatacommunities.org/id/district-council/south-lakeland,30/11/2014,Human Resources,Non-Service Payments,,BUSY BEES BENEFITS LTD,6758298,08/09/2014,43596,696,0,CHILD CARE VOUCHERS - APPROX 500.00 PER,Financial Services,200000
South Lakeland District Council,http://opendatacommunities.org/id/district-council/south-lakeland,30/11/2014,Business Support Community Services,Internal Trading Accounts,,Masterstaff Limited,2777593,08/09/2014,43614,429.98,0, August 2014,Consultancy,150000
South Lakeland District Council,http://opendatacommunities.org/id/district-council/south-lakeland,30/11/2014,Business Support Community Services,Internal Trading Accounts,,Masterstaff Limited,2777593,08/09/2014,43616,450,0, August 2014,Consultancy,150000
South Lakeland District Council,http://opendatacommunities.org/id/district-council/south-lakeland,30/11/2014,Revenues and Benefits,Central Services,http://opendatacommunities.org/def/concept/finance/sercop/objective/102,CIVICA UK LTD,1628868,08/09/2014,43213,17806.02,0,2014-2015 (30 Sept 2014 - 29 Sept 2015),Information Communication Technology,270000
South Lakeland District Council,http://opendatacommunities.org/id/district-council/south-lakeland,30/11/2014,Revenues and Benefits,Central Services,http://opendatacommunities.org/def/concept/finance/sercop/objective/102,CIVICA UK LTD,1628868,08/09/2014,43214,563.75,0,2014-2015 (30 Sept 2014 - 29 Sept 2015),Information Communication Technology,270000
South Lakeland District Council,http://opendatacommunities.org/id/district-council/south-lakeland,30/11/2014,Revenues and Benefits,Central Services,http://opendatacommunities.org/def/concept/finance/sercop/objective/102,CIVICA UK LTD,1628868,08/09/2014,43215,7000,0,2014-2015 (30 Sept 2014 - 29 Sept 2015),Information Communication Technology,270000
South Lakeland District Council,http://opendatacommunities.org/id/district-council/south-lakeland,30/11/2014,Revenues and Benefits,Central Services,http://opendatacommunities.org/def/concept/finance/sercop/objective/102,CIVICA UK LTD,1628868,08/09/2014,43216,850,0,Support plus tokens from PTC - 10,Education,170000
South Lakeland District Council,http://opendatacommunities.org/id/district-council/south-lakeland,30/11/2014,Human Resources,Central Services,http://opendatacommunities.org/def/concept/finance/sercop/objective/102,Cumberland & Westmorland Herald,33217,08/09/2014,43539,283.5,0,ICT Support Officer advert  16th August,Human Resources,260000
South Lakeland District Council,http://opendatacommunities.org/id/district-council/south-lakeland,30/11/2014,Human Resources,Central Services,http://opendatacommunities.org/def/concept/finance/sercop/objective/102,CIPD,2921009,08/09/2014,43566,1996,0,Chartered Member Experience Assessment,Education,170000
South Lakeland District Council,http://opendatacommunities.org/id/district-council/south-lakeland,30/11/2014,Customer Services,Central Services,http://opendatacommunities.org/def/concept/finance/sercop/objective/102,Giles Brown,,08/09/2014,43579,2016.4,0,18 days working in comms with some,Human Resources,260000
South Lakeland District Council,http://opendatacommunities.org/id/district-council/south-lakeland,30/11/2014,ICT Group,Central Services,http://opendatacommunities.org/def/concept/finance/sercop/objective/102,CABLE & WIRELESS UK (VODAFONE),,08/09/2014,43599,9070.38,0,YC00013304 1/7/14 - 30/9/14 City,Information Communication Technology,270000
South Lakeland District Council,http://opendatacommunities.org/id/district-council/south-lakeland,30/11/2014,Revenues and Benefits,Central Services,http://opendatacommunities.org/def/concept/finance/sercop/objective/102,PITNEY BOWES LTD,182037,08/09/2014,43613,315.6,0,2014-15 Stationery & office supplies,Stationery,340000
South Lakeland District Council,http://opendatacommunities.org/id/district-council/south-lakeland,30/11/2014,Development Implementation,Cultural Environmental Regulatory & Planning Services,http://opendatacommunities.org/def/concept/finance/sercop/objective/104,SCK WEB WORKS LTD,6994365,08/09/2014,43273,640,0,Support Hours for Invest & Explore,Environmental Services,180000
South Lakeland District Council,http://opendatacommunities.org/id/district-council/south-lakeland,30/11/2014,Social Enterprise Admin,Cultural Environmental Regulatory & Planning Services,http://opendatacommunities.org/def/concept/finance/sercop/objective/104,HAGS-SMP Ltd,908021,08/09/2014,43363,286,0,2 x Mobilus handles,Sports & Playground Equipment & Maintenance,330000
South Lakeland District Council,http://opendatacommunities.org/id/district-council/south-lakeland,30/11/2014,Lake Wardens,Cultural Environmental Regulatory & Planning Services,http://opendatacommunities.org/def/concept/finance/sercop/objective/104,CENTURY PLASTICS LTD,2558642,08/09/2014,43444,670.49,0,30 x 8'x4' Black Palight 3mm Boards.,0,0
South Lakeland District Council,http://opendatacommunities.org/id/district-council/south-lakeland,30/11/2014,Customer Services,Cultural Environmental Regulatory & Planning Services,http://opendatacommunities.org/def/concept/finance/sercop/objective/104,RIGHT 2 WORK,,08/09/2014,43578,2858,0,Bulky waste removal from April 2014 to,Environmental Services,180000
South Lakeland District Council,http://opendatacommunities.org/id/district-council/south-lakeland,30/11/2014,Development Strategy,Cultural Environmental Regulatory & Planning Services,http://opendatacommunities.org/def/concept/finance/sercop/objective/104,Matchtech,2526418,08/09/2014,43598,416.85,0," 12-week contract, 30hrs",Consultancy,150000
South Lakeland District Council,http://opendatacommunities.org/id/district-council/south-lakeland,30/11/2014,Coronation Hall,Cultural Environmental Regulatory & Planning Services,http://opendatacommunities.org/def/concept/finance/sercop/objective/104,THE PERFORMING RIGHTS SOCIETY,,08/09/2014,43601,4235.37,0,PRS for period ending 5 June 2015,Arts & Leisure Services,290000
South Lakeland District Council,http://opendatacommunities.org/id/district-council/south-lakeland,30/11/2014,Business Support Community Services,Housing Services,http://opendatacommunities.org/def/concept/finance/sercop/objective/108,James Andrews Recruitment Solutions,6834852,08/09/2014,43569,787.5,0,Payment for JH,Consultancy,150000
South Lakeland District Council,http://opendatacommunities.org/id/district-council/south-lakeland,30/11/2014,Environment and Housing,Housing Services,http://opendatacommunities.org/def/concept/finance/sercop/objective/108,James Andrews Recruitment Solutions,6834852,08/09/2014,43570,729,0,Salary for Agency staff ,Consultancy,150000
South Lakeland District Council,http://opendatacommunities.org/id/district-council/south-lakeland,30/11/2014,Business Support Community Services,Housing Services,http://opendatacommunities.org/def/concept/finance/sercop/objective/108,Landlord,,08/09/2014,43581,625,0,Monthly rent for Benson View,Social Community Care Supplies & Services,410000
South Lakeland District Council,http://opendatacommunities.org/id/district-council/south-lakeland,30/11/2014,Business Support Community Services,Housing Services,http://opendatacommunities.org/def/concept/finance/sercop/objective/108,James Andrews Recruitment Solutions,6834852,08/09/2014,43582,887.5,0,Payment for JH,Consultancy,150000
South Lakeland District Council,http://opendatacommunities.org/id/district-council/south-lakeland,30/11/2014,Business Support Community Services,Housing Services,http://opendatacommunities.org/def/concept/finance/sercop/objective/108,Vigilant Security Services UK Ltd,5914271,08/09/2014,43583,1480.04,0,Payment for security guard at TVF,Human Resources,260000
South Lakeland District Council,http://opendatacommunities.org/id/district-council/south-lakeland,30/11/2014,Business Support Community Services,Housing Services,http://opendatacommunities.org/def/concept/finance/sercop/objective/108,Vigilant Security Services UK Ltd,5914271,08/09/2014,43584,3041.8,0,Payment for security guard at TVF,Human Resources,260000
South Lakeland District Council,http://opendatacommunities.org/id/district-council/south-lakeland,30/11/2014,Environment and Housing,Housing Services,http://opendatacommunities.org/def/concept/finance/sercop/objective/108,GROWING CONCERNS LANDSCAPING,,08/09/2014,43585,981.6,0,Payment for Handy Person Scheme,"Works - Construction, Repair & Maintenance",390000
South Lakeland District Council,http://opendatacommunities.org/id/district-council/south-lakeland,30/11/2014,Environment and Housing,Housing,http://opendatacommunities.org/def/concept/finance/sercop/objective/108,VINCENT HOLLERAN PLUMBING & HEATING,,08/09/2014,43586,4530,0,"Staveley, Kendal, LA8",Financial Services,200000
South Lakeland District Council,http://opendatacommunities.org/id/district-council/south-lakeland,30/11/2014,Environment and Housing,Housing,http://opendatacommunities.org/def/concept/finance/sercop/objective/108,ULTRACARE PROPERTY MANAGEMENT LTD,5020554,08/09/2014,43587,3390,0,"Kendal, LA9",Financial Services,200000
South Lakeland District Council,http://opendatacommunities.org/id/district-council/south-lakeland,30/11/2014,Environment and Housing,Housing,http://opendatacommunities.org/def/concept/finance/sercop/objective/108,C W COX & SONS (KENDAL) LTD,3498844,08/09/2014,43588,3830.43,0,"Backbarrow,",Financial Services,200000
South Lakeland District Council,http://opendatacommunities.org/id/district-council/south-lakeland,30/11/2014,Environment and Housing,Housing,http://opendatacommunities.org/def/concept/finance/sercop/objective/108,ULTRACARE PROPERTY MANAGEMENT LTD,5020554,08/09/2014,43589,3561,0,"Kendal, LA9",Financial Services,200000
South Lakeland District Council,http://opendatacommunities.org/id/district-council/south-lakeland,30/11/2014,Environment and Housing,Housing,http://opendatacommunities.org/def/concept/finance/sercop/objective/108,C W COX & SONS (KENDAL) LTD,3498844,08/09/2014,43590,3837,0,"Millside,",Financial Services,200000
South Lakeland District Council,http://opendatacommunities.org/id/district-council/south-lakeland,30/11/2014,Environment and Housing,Housing,http://opendatacommunities.org/def/concept/finance/sercop/objective/108,DOLPHIN STAIRLIFTS CUMBRIA,,08/09/2014,43591,1450,0,"Kendal, LA9",Financial Services,200000
South Lakeland District Council,http://opendatacommunities.org/id/district-council/south-lakeland,30/11/2014,Environment and Housing,Housing,http://opendatacommunities.org/def/concept/finance/sercop/objective/108,DOLPHIN STAIRLIFTS CUMBRIA,,08/09/2014,43592,1700,0,"Burneside, Kendal, LA9",Financial Services,200000
South Lakeland District Council,http://opendatacommunities.org/id/district-council/south-lakeland,30/11/2014,Environment and Housing,Housing,http://opendatacommunities.org/def/concept/finance/sercop/objective/108,DOLPHIN STAIRLIFTS CUMBRIA,,08/09/2014,43593,4080,0,"Kendal, LA9 5NF",Financial Services,200000
South Lakeland District Council,http://opendatacommunities.org/id/district-council/south-lakeland,30/11/2014,Business Support Community Services,Internal Trading Accounts,,DENNIS EAGLE LTD,3794455,10/09/2014,43445,284.81,0,Indicator,Vehicle Management,380000
South Lakeland District Council,http://opendatacommunities.org/id/district-council/south-lakeland,30/11/2014,Revenues and Benefits,SLDC as Agent,,ROYAL MAIL GROUP PLC,,10/09/2014,43606,1624.87,0,2014-15  Postal Charges a/c 0198123013,Financial Services,200000
South Lakeland District Council,http://opendatacommunities.org/id/district-council/south-lakeland,30/11/2014,Revenues and Benefits,SLDC as Agent,,ROYAL MAIL GROUP PLC,,10/09/2014,43610,1543.74,0,2014-15  Postal Charges a/c 0198123013,Financial Services,200000
South Lakeland District Council,http://opendatacommunities.org/id/district-council/south-lakeland,30/11/2014,Revenues and Benefits,SLDC as Agent,,ROYAL MAIL GROUP PLC,,10/09/2014,43611,1464,0,2014-15  Postal Charges a/c 0198123013,Financial Services,200000
South Lakeland District Council,http://opendatacommunities.org/id/district-council/south-lakeland,30/11/2014,Debtors,Non-Service Payments,,SOUTH LAKES HOUSING RENT A/C,,10/09/2014,43711,5562.03,,No description recorded,Housing Management,250000
South Lakeland District Council,http://opendatacommunities.org/id/district-council/south-lakeland,30/11/2014,Business Support Community Services,Internal Trading Accounts,,Masterstaff Limited,2777593,10/09/2014,43715,341.7,0, August 2014,Consultancy,150000
South Lakeland District Council,http://opendatacommunities.org/id/district-council/south-lakeland,30/11/2014,Business Support Community Services,Internal Trading Accounts,,Masterstaff Limited,2777593,10/09/2014,43717,1259.6,0, June 2014,Consultancy,150000
South Lakeland District Council,http://opendatacommunities.org/id/district-council/south-lakeland,30/11/2014,Business Support Community Services,Internal Trading Accounts,,Masterstaff Limited,2777593,10/09/2014,43718,364.48,0, May 2014,Consultancy,150000
South Lakeland District Council,http://opendatacommunities.org/id/district-council/south-lakeland,30/11/2014,Business Support Community Services,Internal Trading Accounts,,Masterstaff Limited,2777593,10/09/2014,43719,399.6,0, April 2014,Consultancy,150000
South Lakeland District Council,http://opendatacommunities.org/id/district-council/south-lakeland,30/11/2014,Financial Services,SLDC as Agent,,LAKELAND ESTATES (AMBLESIDE) LTD,3022544,10/09/2014,43726,33791,0,14/15 Millerfield Car Park Income,Financial Services,200000
South Lakeland District Council,http://opendatacommunities.org/id/district-council/south-lakeland,30/11/2014,Financial Services,SLDC as Agent,,KIRKLAND TRUST (KENDAL),,10/09/2014,43727,5642.25,0,14/15 Kirkland Car Park Income,Financial Services,200000
South Lakeland District Council,http://opendatacommunities.org/id/district-council/south-lakeland,30/11/2014,Parish Lighting,SLDC as Agent,,E ON ENERGY,4060387,10/09/2014,43758,685.21,,No description recorded,Utilities,370000
South Lakeland District Council,http://opendatacommunities.org/id/district-council/south-lakeland,30/11/2014,Human Resources,Central Services,http://opendatacommunities.org/def/concept/finance/sercop/objective/102,EMPLOYMENT PAGES LTD,7363099,10/09/2014,43304,306,0,Revenues Assistant � Temporary,Human Resources,260000
South Lakeland District Council,http://opendatacommunities.org/id/district-council/south-lakeland,30/11/2014,Social Enterprise Admin,Central Services,http://opendatacommunities.org/def/concept/finance/sercop/objective/102,CUMBRIA COUNTY COUNCIL,,10/09/2014,43464,2040,0,LAND CHARGE SEARCH ENQUIRIES COMMONS,Financial Services,200000
South Lakeland District Council,http://opendatacommunities.org/id/district-council/south-lakeland,30/11/2014,Revenues and Benefits,Central Services,http://opendatacommunities.org/def/concept/finance/sercop/objective/102,PITNEY BOWES LTD,182037,10/09/2014,43605,455,0,2014-15 Stationery & office supplies,Stationery,340000
South Lakeland District Council,http://opendatacommunities.org/id/district-council/south-lakeland,30/11/2014,Revenues and Benefits,Central Services,http://opendatacommunities.org/def/concept/finance/sercop/objective/102,MERITEC LTD,3224622,10/09/2014,43629,418.5,0,RAB Processing Contract and Agency,Consultancy,150000
South Lakeland District Council,http://opendatacommunities.org/id/district-council/south-lakeland,30/11/2014,Revenues and Benefits,Central Services,http://opendatacommunities.org/def/concept/finance/sercop/objective/102,BADENOCH & CLARK,1356186,10/09/2014,43654,420.05,0,Revs and Bens,Consultancy,150000
South Lakeland District Council,http://opendatacommunities.org/id/district-council/south-lakeland,30/11/2014,Democratic and Member Services,Central Services,http://opendatacommunities.org/def/concept/finance/sercop/objective/102,ASSOCIATION OF DEMOCRATIC SERVICES OFFIC,7068088,10/09/2014,43671,390,0,1 x Attendee ADSO Conference 20 - 21,Education,170000
South Lakeland District Council,http://opendatacommunities.org/id/district-council/south-lakeland,30/11/2014,Research and Intelligence,Central Services,http://opendatacommunities.org/def/concept/finance/sercop/objective/102,GOVNET COMMUNICATIONS,4970168,10/09/2014,43685,395,0,Understanding FOI requests and rights,Education,170000
South Lakeland District Council,http://opendatacommunities.org/id/district-council/south-lakeland,30/11/2014,Legal Services,Central Services,http://opendatacommunities.org/def/concept/finance/sercop/objective/102,VENN GROUP RECRUITMENT SOLUTIONS,,10/09/2014,43688,251.05,0,Wages from w/k ending,Consultancy,150000
South Lakeland District Council,http://opendatacommunities.org/id/district-council/south-lakeland,30/11/2014,Offices,Central Services,http://opendatacommunities.org/def/concept/finance/sercop/objective/102,CASTLE ALARMS 1981 LTD,9231500,10/09/2014,43696,665.4,,No description recorded,"Works - Construction, Repair & Maintenance",390000
South Lakeland District Council,http://opendatacommunities.org/id/district-council/south-lakeland,30/11/2014,Legal Services,Central Services,http://opendatacommunities.org/def/concept/finance/sercop/objective/102,WEIGHTMANS LLP,OC326117,10/09/2014,43704,762,0,Fees re:,Legal Services,280000
South Lakeland District Council,http://opendatacommunities.org/id/district-council/south-lakeland,30/11/2014,Social Enterprise Admin,Cultural Environmental Regulatory & Planning Services,http://opendatacommunities.org/def/concept/finance/sercop/objective/104,B & J METALS (SKIP HIRE) LTD,4634318,10/09/2014,41407,2100,0,Grounds waste disposal- Sandylands Road,Environmental Services,180000
South Lakeland District Council,http://opendatacommunities.org/id/district-council/south-lakeland,30/11/2014,Social Enterprise Admin,Cultural Environmental Regulatory & Planning Services,http://opendatacommunities.org/def/concept/finance/sercop/objective/104,B & J METALS (SKIP HIRE) LTD,4634318,10/09/2014,42125,2520,0,Grounds waste disposal- Sandylands Road,Environmental Services,180000
South Lakeland District Council,http://opendatacommunities.org/id/district-council/south-lakeland,30/11/2014,Social Enterprise Admin,Cultural Environmental Regulatory & Planning Services,http://opendatacommunities.org/def/concept/finance/sercop/objective/104,B & J METALS (SKIP HIRE) LTD,4634318,10/09/2014,42893,420,0,Grounds waste disposal- Sandylands Road,Environmental Services,180000
South Lakeland District Council,http://opendatacommunities.org/id/district-council/south-lakeland,30/11/2014,Social Enterprise Admin,Cultural Environmental Regulatory & Planning Services,http://opendatacommunities.org/def/concept/finance/sercop/objective/104,B & J METALS (SKIP HIRE) LTD,4634318,10/09/2014,42893,3150,0,Grounds waste disposal- Sandylands Road,Environmental Services,180000
South Lakeland District Council,http://opendatacommunities.org/id/district-council/south-lakeland,30/11/2014,Development Implementation,Cultural Environmental Regulatory & Planning Services,http://opendatacommunities.org/def/concept/finance/sercop/objective/104,TRILITHON LTD,3390011,10/09/2014,43561,380,0,"Events - Second Event Type (150),",Environmental Services,180000
South Lakeland District Council,http://opendatacommunities.org/id/district-council/south-lakeland,30/11/2014,Lake Windermere,Cultural Environmental Regulatory & Planning Services,http://opendatacommunities.org/def/concept/finance/sercop/objective/104,CASTLE ALARMS 1981 LTD,9231500,10/09/2014,43609,330.5,,No description recorded,"Works - Construction, Repair & Maintenance",390000
South Lakeland District Council,http://opendatacommunities.org/id/district-council/south-lakeland,30/11/2014,Town Centre Projects,Cultural Environmental Regulatory & Planning Services,http://opendatacommunities.org/def/concept/finance/sercop/objective/104,UNDERHILL SERVICES LIMITED,6442130,10/09/2014,43620,310,,No description recorded,"Works - Construction, Repair & Maintenance",390000
South Lakeland District Council,http://opendatacommunities.org/id/district-council/south-lakeland,30/11/2014,Financial Services,Cultural Environmental Regulatory & Planning Services,http://opendatacommunities.org/def/concept/finance/sercop/objective/104,DAISY COMMUNICATIONS LTD,4145329,10/09/2014,43664,304.44,0,22 Lowther Street,Information Communication Technology,270000
South Lakeland District Council,http://opendatacommunities.org/id/district-council/south-lakeland,30/11/2014,Social Enterprise Admin,Highways & Transport Services,http://opendatacommunities.org/def/concept/finance/sercop/objective/107,VODAFONE LIMITED,1471587,10/09/2014,43542,500.27,0,Mobile phones for enforcement staff,Information Communication Technology,270000
South Lakeland District Council,http://opendatacommunities.org/id/district-council/south-lakeland,30/11/2014,Revenues and Benefits,Highways & Transport Services,http://opendatacommunities.org/def/concept/finance/sercop/objective/107,LOOMIS UK LTD,3200432,10/09/2014,43624,879.37,0,2014 - 2015,Consultancy,150000
South Lakeland District Council,http://opendatacommunities.org/id/district-council/south-lakeland,30/11/2014,District Special Expenses,Highways & Transport Services,http://opendatacommunities.org/def/concept/finance/sercop/objective/107,E ON ENERGY,4060387,10/09/2014,43758,2048.49,,No description recorded,Utilities,370000
South Lakeland District Council,http://opendatacommunities.org/id/district-council/south-lakeland,30/11/2014,Business Support Community Services,Housing Services,http://opendatacommunities.org/def/concept/finance/sercop/objective/108,Landlord,,10/09/2014,43728,520,0,Monthly rent,Social Community Care Supplies & Services,410000
South Lakeland District Council,http://opendatacommunities.org/id/district-council/south-lakeland,30/11/2014,Business Support Community Services,Housing Services,http://opendatacommunities.org/def/concept/finance/sercop/objective/108,Landlord,,10/09/2014,43729,400,0,Monthly rent,Social Community Care Supplies & Services,410000
South Lakeland District Council,http://opendatacommunities.org/id/district-council/south-lakeland,30/11/2014,Environment and Housing,SLDC as Agent,,HOME GROUP LTD,IP22981R,15/09/2014,42484,2726.43,0,CBL Co-ordinator Cost from 1/6/14 -,Financial Services,200000
South Lakeland District Council,http://opendatacommunities.org/id/district-council/south-lakeland,30/11/2014,Environment and Housing,SLDC as Agent,,HOME GROUP LTD,IP22981R,15/09/2014,43272,2671.67,0,CBL Co-ordinator Cost from 1/6/14 -,Financial Services,200000
South Lakeland District Council,http://opendatacommunities.org/id/district-council/south-lakeland,30/11/2014,Business Support Community Services,Internal Trading Accounts,,HAKO MACHINES LIMITED,1414225,15/09/2014,43432,351.13,0,Repair SL207,Vehicle Management,380000
South Lakeland District Council,http://opendatacommunities.org/id/district-council/south-lakeland,30/11/2014,Business Support Community Services,Internal Trading Accounts,,EK MOTOR FACTORS LTD,838524,15/09/2014,43433,950,0,Plates,Vehicle Management,380000
South Lakeland District Council,http://opendatacommunities.org/id/district-council/south-lakeland,30/11/2014,SLDC Depots,Transport Planning Policy,,CRUDEN PROPERTY SERVICES LTD,3851237,15/09/2014,43450,480.01,,No description recorded,"Works - Construction, Repair & Maintenance",390000
South Lakeland District Council,http://opendatacommunities.org/id/district-council/south-lakeland,30/11/2014,Sundry Properties,External Trading Accounts,,CRUDEN PROPERTY SERVICES LTD,3851237,15/09/2014,43451,278.96,,No description recorded,"Works - Construction, Repair & Maintenance",390000
South Lakeland District Council,http://opendatacommunities.org/id/district-council/south-lakeland,30/11/2014,Sundry Properties,External Trading Accounts,,CRUDEN PROPERTY SERVICES LTD,3851237,15/09/2014,43452,574.12,,No description recorded,"Works - Construction, Repair & Maintenance",390000
South Lakeland District Council,http://opendatacommunities.org/id/district-council/south-lakeland,30/11/2014,Sundry Properties,External Trading Accounts,,CRUDEN PROPERTY SERVICES LTD,3851237,15/09/2014,43452,895.84,,No description recorded,"Works - Construction, Repair & Maintenance",390000
South Lakeland District Council,http://opendatacommunities.org/id/district-council/south-lakeland,30/11/2014,SLDC Depots,Transport Planning Policy,,CRUDEN PROPERTY SERVICES LTD,3851237,15/09/2014,43453,315.38,,No description recorded,"Works - Construction, Repair & Maintenance",390000
South Lakeland District Council,http://opendatacommunities.org/id/district-council/south-lakeland,30/11/2014,SLDC Depots,Transport Planning Policy,,CRUDEN PROPERTY SERVICES LTD,3851237,15/09/2014,43453,485.87,,No description recorded,"Works - Construction, Repair & Maintenance",390000
South Lakeland District Council,http://opendatacommunities.org/id/district-council/south-lakeland,30/11/2014,Sundry Properties,External Trading Accounts,,CRUDEN PROPERTY SERVICES LTD,3851237,15/09/2014,43453,3513.75,,No description recorded,"Works - Construction, Repair & Maintenance",390000
South Lakeland District Council,http://opendatacommunities.org/id/district-council/south-lakeland,30/11/2014,Sundry Properties,External Trading Accounts,,CRUDEN PROPERTY SERVICES LTD,3851237,15/09/2014,43453,636.59,,No description recorded,"Works - Construction, Repair & Maintenance",390000
South Lakeland District Council,http://opendatacommunities.org/id/district-council/south-lakeland,30/11/2014,Markets,External Trading Accounts,,CRUDEN PROPERTY SERVICES LTD,3851237,15/09/2014,43454,307.8,,No description recorded,"Works - Construction, Repair & Maintenance",390000
South Lakeland District Council,http://opendatacommunities.org/id/district-council/south-lakeland,30/11/2014,Sundry Properties,External Trading Accounts,,CRUDEN PROPERTY SERVICES LTD,3851237,15/09/2014,43454,5075.53,,No description recorded,"Works - Construction, Repair & Maintenance",390000
South Lakeland District Council,http://opendatacommunities.org/id/district-council/south-lakeland,30/11/2014,Business Support Community Services,Internal Trading Accounts,,FUCHS LUBRICANTS (UK) PLC,2412689,15/09/2014,43471,363,0,Renolit EP00,Cleaning & Janitorial,130000
South Lakeland District Council,http://opendatacommunities.org/id/district-council/south-lakeland,30/11/2014,Business Support Community Services,Internal Trading Accounts,,FUCHS LUBRICANTS (UK) PLC,2412689,15/09/2014,43537,360,0,Renolit EP00,Cleaning & Janitorial,130000
South Lakeland District Council,http://opendatacommunities.org/id/district-council/south-lakeland,30/11/2014,Business Support Community Services,Internal Trading Accounts,,BRIAN ARMISTEAD LTD T/A SINKFALL RECYCLI,4133280,15/09/2014,43721,1364.4,0,Green waste tipping - April (estimated),Environmental Services,180000
South Lakeland District Council,http://opendatacommunities.org/id/district-council/south-lakeland,30/11/2014,Business Support Community Services,Internal Trading Accounts,,LAKELAND COMMERCIALS LTD,2719162,15/09/2014,43724,360.5,0,Brake tests,Vehicle Management,380000
South Lakeland District Council,http://opendatacommunities.org/id/district-council/south-lakeland,30/11/2014,Human Resources,Non-Service Payments,,CYCLESCHEME LTD,5363678,15/09/2014,43759,415.83,0,W245987,Financial Services,200000
South Lakeland District Council,http://opendatacommunities.org/id/district-council/south-lakeland,30/11/2014,SLDC Depots,Transport Planning Policy,,UNITED UTILITIES WATER PLC,2366678,15/09/2014,43777,1505.21,,No description recorded,Environmental Services,180000
South Lakeland District Council,http://opendatacommunities.org/id/district-council/south-lakeland,30/11/2014,SLDC Depots,Transport Planning Policy,,UNITED UTILITIES WATER PLC,2366678,15/09/2014,43777,882.97,,No description recorded,Environmental Services,180000
South Lakeland District Council,http://opendatacommunities.org/id/district-council/south-lakeland,30/11/2014,Markets,External Trading Accounts,,UNITED UTILITIES WATER PLC,2366678,15/09/2014,43777,497.26,,No description recorded,Environmental Services,180000
South Lakeland District Council,http://opendatacommunities.org/id/district-council/south-lakeland,30/11/2014,SLDC Depots,Transport Planning Policy,,UNITED UTILITIES WATER PLC,2366678,15/09/2014,43778,1026.15,,No description recorded,Environmental Services,180000
South Lakeland District Council,http://opendatacommunities.org/id/district-council/south-lakeland,30/11/2014,Markets,External Trading Accounts,,UNITED UTILITIES WATER PLC,2366678,15/09/2014,43778,534.99,,No description recorded,Environmental Services,180000
South Lakeland District Council,http://opendatacommunities.org/id/district-council/south-lakeland,30/11/2014,Markets,External Trading Accounts,,UNITED UTILITIES WATER PLC,2366678,15/09/2014,43778,328.42,,No description recorded,Environmental Services,180000
South Lakeland District Council,http://opendatacommunities.org/id/district-council/south-lakeland,30/11/2014,Revenues and Benefits,SLDC as Agent,,ROYAL MAIL GROUP PLC,,15/09/2014,43790,1106.43,0,2014-15  Postal Charges a/c 0198123013,Financial Services,200000
South Lakeland District Council,http://opendatacommunities.org/id/district-council/south-lakeland,30/11/2014,Offices,Central Services,http://opendatacommunities.org/def/concept/finance/sercop/objective/102,CRUDEN PROPERTY SERVICES LTD,3851237,15/09/2014,43450,539.77,,No description recorded,"Works - Construction, Repair & Maintenance",390000
South Lakeland District Council,http://opendatacommunities.org/id/district-council/south-lakeland,30/11/2014,Offices,Central Services,http://opendatacommunities.org/def/concept/finance/sercop/objective/102,CRUDEN PROPERTY SERVICES LTD,3851237,15/09/2014,43450,385.02,,No description recorded,"Works - Construction, Repair & Maintenance",390000
South Lakeland District Council,http://opendatacommunities.org/id/district-council/south-lakeland,30/11/2014,Offices,Central Services,http://opendatacommunities.org/def/concept/finance/sercop/objective/102,CRUDEN PROPERTY SERVICES LTD,3851237,15/09/2014,43451,274.89,,No description recorded,"Works - Construction, Repair & Maintenance",390000
South Lakeland District Council,http://opendatacommunities.org/id/district-council/south-lakeland,30/11/2014,Offices,Central Services,http://opendatacommunities.org/def/concept/finance/sercop/objective/102,CRUDEN PROPERTY SERVICES LTD,3851237,15/09/2014,43452,1051.47,,No description recorded,"Works - Construction, Repair & Maintenance",390000
South Lakeland District Council,http://opendatacommunities.org/id/district-council/south-lakeland,30/11/2014,Offices,Central Services,http://opendatacommunities.org/def/concept/finance/sercop/objective/102,CRUDEN PROPERTY SERVICES LTD,3851237,15/09/2014,43452,399.62,,No description recorded,"Works - Construction, Repair & Maintenance",390000
South Lakeland District Council,http://opendatacommunities.org/id/district-council/south-lakeland,30/11/2014,Offices,Central Services,http://opendatacommunities.org/def/concept/finance/sercop/objective/102,CRUDEN PROPERTY SERVICES LTD,3851237,15/09/2014,43452,306.74,,No description recorded,"Works - Construction, Repair & Maintenance",390000
South Lakeland District Council,http://opendatacommunities.org/id/district-council/south-lakeland,30/11/2014,Offices,Central Services,http://opendatacommunities.org/def/concept/finance/sercop/objective/102,CRUDEN PROPERTY SERVICES LTD,3851237,15/09/2014,43453,290.58,,No description recorded,"Works - Construction, Repair & Maintenance",390000
South Lakeland District Council,http://opendatacommunities.org/id/district-council/south-lakeland,30/11/2014,Revenues and Benefits,Central Services,http://opendatacommunities.org/def/concept/finance/sercop/objective/102,MERITEC LTD,3224622,15/09/2014,43628,418.5,0,RAB Processing Contract and Agency,Consultancy,150000
South Lakeland District Council,http://opendatacommunities.org/id/district-council/south-lakeland,30/11/2014,Offices,Central Services,http://opendatacommunities.org/def/concept/finance/sercop/objective/102,UNDERHILL SERVICES LIMITED,6442130,15/09/2014,43770,294,,No description recorded,"Works - Construction, Repair & Maintenance",390000
South Lakeland District Council,http://opendatacommunities.org/id/district-council/south-lakeland,30/11/2014,Offices,Central Services,http://opendatacommunities.org/def/concept/finance/sercop/objective/102,UNITED UTILITIES WATER PLC,2366678,15/09/2014,43777,2793.58,,No description recorded,Environmental Services,180000
South Lakeland District Council,http://opendatacommunities.org/id/district-council/south-lakeland,30/11/2014,Offices,Central Services,http://opendatacommunities.org/def/concept/finance/sercop/objective/102,UNITED UTILITIES WATER PLC,2366678,15/09/2014,43777,312.42,,No description recorded,Environmental Services,180000
South Lakeland District Council,http://opendatacommunities.org/id/district-council/south-lakeland,30/11/2014,Development Implementation,Cultural Environmental Regulatory & Planning Services,http://opendatacommunities.org/def/concept/finance/sercop/objective/104,Ulverston Community Partnership,,15/09/2014,43121,2000,0,Contribution to Shop Front Grants,Environmental Services,180000
South Lakeland District Council,http://opendatacommunities.org/id/district-council/south-lakeland,30/11/2014,Environmental Protection,Cultural Environmental Regulatory & Planning Services,http://opendatacommunities.org/def/concept/finance/sercop/objective/104,GLASDON UK LTD,2160576,15/09/2014,43448,730,0,2 x Brown Glasdon Phoenix seats,Horticultural,240000
South Lakeland District Council,http://opendatacommunities.org/id/district-council/south-lakeland,30/11/2014,Leisure Centres (incl Pools),Cultural Environmental Regulatory & Planning Services,http://opendatacommunities.org/def/concept/finance/sercop/objective/104,CRUDEN PROPERTY SERVICES LTD,3851237,15/09/2014,43450,432,,No description recorded,"Works - Construction, Repair & Maintenance",390000
South Lakeland District Council,http://opendatacommunities.org/id/district-council/south-lakeland,30/11/2014,Public Halls,Cultural Environmental Regulatory & Planning Services,http://opendatacommunities.org/def/concept/finance/sercop/objective/104,CRUDEN PROPERTY SERVICES LTD,3851237,15/09/2014,43450,2863.11,,No description recorded,"Works - Construction, Repair & Maintenance",390000
South Lakeland District Council,http://opendatacommunities.org/id/district-council/south-lakeland,30/11/2014,Public Halls,Cultural Environmental Regulatory & Planning Services,http://opendatacommunities.org/def/concept/finance/sercop/objective/104,CRUDEN PROPERTY SERVICES LTD,3851237,15/09/2014,43450,711.29,,No description recorded,"Works - Construction, Repair & Maintenance",390000
South Lakeland District Council,http://opendatacommunities.org/id/district-council/south-lakeland,30/11/2014,Cemeteries,Cultural Environmental Regulatory & Planning Services,http://opendatacommunities.org/def/concept/finance/sercop/objective/104,CRUDEN PROPERTY SERVICES LTD,3851237,15/09/2014,43451,507.67,,No description recorded,"Works - Construction, Repair & Maintenance",390000
South Lakeland District Council,http://opendatacommunities.org/id/district-council/south-lakeland,30/11/2014,Glebe Road Recreation Ground,Cultural Environmental Regulatory & Planning Services,http://opendatacommunities.org/def/concept/finance/sercop/objective/104,CRUDEN PROPERTY SERVICES LTD,3851237,15/09/2014,43451,288.75,,No description recorded,"Works - Construction, Repair & Maintenance",390000
South Lakeland District Council,http://opendatacommunities.org/id/district-council/south-lakeland,30/11/2014,Leisure Centres (incl Pools),Cultural Environmental Regulatory & Planning Services,http://opendatacommunities.org/def/concept/finance/sercop/objective/104,CRUDEN PROPERTY SERVICES LTD,3851237,15/09/2014,43451,3050.72,,No description recorded,"Works - Construction, Repair & Maintenance",390000
South Lakeland District Council,http://opendatacommunities.org/id/district-council/south-lakeland,30/11/2014,Lake Windermere,Cultural Environmental Regulatory & Planning Services,http://opendatacommunities.org/def/concept/finance/sercop/objective/104,CRUDEN PROPERTY SERVICES LTD,3851237,15/09/2014,43451,621.67,,No description recorded,"Works - Construction, Repair & Maintenance",390000
South Lakeland District Council,http://opendatacommunities.org/id/district-council/south-lakeland,30/11/2014,Cemeteries,Cultural Environmental Regulatory & Planning Services,http://opendatacommunities.org/def/concept/finance/sercop/objective/104,CRUDEN PROPERTY SERVICES LTD,3851237,15/09/2014,43452,606.88,,No description recorded,"Works - Construction, Repair & Maintenance",390000
South Lakeland District Council,http://opendatacommunities.org/id/district-council/south-lakeland,30/11/2014,Cemeteries,Cultural Environmental Regulatory & Planning Services,http://opendatacommunities.org/def/concept/finance/sercop/objective/104,CRUDEN PROPERTY SERVICES LTD,3851237,15/09/2014,43452,294.68,,No description recorded,"Works - Construction, Repair & Maintenance",390000
South Lakeland District Council,http://opendatacommunities.org/id/district-council/south-lakeland,30/11/2014,Public Halls,Cultural Environmental Regulatory & Planning Services,http://opendatacommunities.org/def/concept/finance/sercop/objective/104,CRUDEN PROPERTY SERVICES LTD,3851237,15/09/2014,43453,1184.81,,No description recorded,"Works - Construction, Repair & Maintenance",390000
South Lakeland District Council,http://opendatacommunities.org/id/district-council/south-lakeland,30/11/2014,Cemeteries,Cultural Environmental Regulatory & Planning Services,http://opendatacommunities.org/def/concept/finance/sercop/objective/104,CRUDEN PROPERTY SERVICES LTD,3851237,15/09/2014,43454,947.65,,No description recorded,"Works - Construction, Repair & Maintenance",390000
South Lakeland District Council,http://opendatacommunities.org/id/district-council/south-lakeland,30/11/2014,Public Halls,Cultural Environmental Regulatory & Planning Services,http://opendatacommunities.org/def/concept/finance/sercop/objective/104,UNITED UTILITIES WATER PLC,2366678,15/09/2014,43777,945.52,,No description recorded,Environmental Services,180000
South Lakeland District Council,http://opendatacommunities.org/id/district-council/south-lakeland,30/11/2014,Public Halls,Cultural Environmental Regulatory & Planning Services,http://opendatacommunities.org/def/concept/finance/sercop/objective/104,UNITED UTILITIES WATER PLC,2366678,15/09/2014,43777,410.41,,No description recorded,Environmental Services,180000
South Lakeland District Council,http://opendatacommunities.org/id/district-council/south-lakeland,30/11/2014,Recreation Grounds,Cultural Environmental Regulatory & Planning Services,http://opendatacommunities.org/def/concept/finance/sercop/objective/104,UNITED UTILITIES WATER PLC,2366678,15/09/2014,43777,297.41,,No description recorded,Environmental Services,180000
South Lakeland District Council,http://opendatacommunities.org/id/district-council/south-lakeland,30/11/2014,Cemeteries,Cultural Environmental Regulatory & Planning Services,http://opendatacommunities.org/def/concept/finance/sercop/objective/104,UNITED UTILITIES WATER PLC,2366678,15/09/2014,43778,864.29,,No description recorded,Environmental Services,180000
South Lakeland District Council,http://opendatacommunities.org/id/district-council/south-lakeland,30/11/2014,Caravan Site,Cultural Environmental Regulatory & Planning Services,http://opendatacommunities.org/def/concept/finance/sercop/objective/104,UNITED UTILITIES WATER PLC,2366678,15/09/2014,43778,328.42,,No description recorded,Environmental Services,180000
South Lakeland District Council,http://opendatacommunities.org/id/district-council/south-lakeland,30/11/2014,Glebe Road Recreation Ground,Cultural Environmental Regulatory & Planning Services,http://opendatacommunities.org/def/concept/finance/sercop/objective/104,UNITED UTILITIES WATER PLC,2366678,15/09/2014,43778,1554.52,,No description recorded,Environmental Services,180000
South Lakeland District Council,http://opendatacommunities.org/id/district-council/south-lakeland,30/11/2014,Public Halls,Cultural Environmental Regulatory & Planning Services,http://opendatacommunities.org/def/concept/finance/sercop/objective/104,UNITED UTILITIES WATER PLC,2366678,15/09/2014,43778,743.13,,No description recorded,Environmental Services,180000
South Lakeland District Council,http://opendatacommunities.org/id/district-council/south-lakeland,30/11/2014,Development Implementation,Cultural Environmental Regulatory & Planning Services,http://opendatacommunities.org/def/concept/finance/sercop/objective/104,QUADRANT SECURITY GROUP LTD,5831231,15/09/2014,43779,5908.6,0,Maintenance & CCTV - 01/04/2014 -,Financial Services,200000
South Lakeland District Council,http://opendatacommunities.org/id/district-council/south-lakeland,30/11/2014,Policy & Partnerships,Cultural Environmental Regulatory & Planning Services,http://opendatacommunities.org/def/concept/finance/sercop/objective/104,The Grange Over Sands 3P's Group,,15/09/2014,43800,400,0,Contribution to the 3 Parks Group,Financial Services,200000
South Lakeland District Council,http://opendatacommunities.org/id/district-council/south-lakeland,30/11/2014,Car Parks,Highways & Transport Services,http://opendatacommunities.org/def/concept/finance/sercop/objective/107,CRUDEN PROPERTY SERVICES LTD,3851237,15/09/2014,43451,2068.73,,No description recorded,Street & Traffic Management,350000
South Lakeland District Council,http://opendatacommunities.org/id/district-council/south-lakeland,30/11/2014,Car Parks,Highways & Transport Services,http://opendatacommunities.org/def/concept/finance/sercop/objective/107,CRUDEN PROPERTY SERVICES LTD,3851237,15/09/2014,43452,719.56,,No description recorded,Street & Traffic Management,350000
South Lakeland District Council,http://opendatacommunities.org/id/district-council/south-lakeland,30/11/2014,Car Parks,Highways & Transport Services,http://opendatacommunities.org/def/concept/finance/sercop/objective/107,CRUDEN PROPERTY SERVICES LTD,3851237,15/09/2014,43452,1779,,No description recorded,Street & Traffic Management,350000
South Lakeland District Council,http://opendatacommunities.org/id/district-council/south-lakeland,30/11/2014,Car Parks,Highways & Transport Services,http://opendatacommunities.org/def/concept/finance/sercop/objective/107,CRUDEN PROPERTY SERVICES LTD,3851237,15/09/2014,43452,699.8,,No description recorded,"Works - Construction, Repair & Maintenance",390000
South Lakeland District Council,http://opendatacommunities.org/id/district-council/south-lakeland,30/11/2014,Car Parks,Highways & Transport Services,http://opendatacommunities.org/def/concept/finance/sercop/objective/107,CRUDEN PROPERTY SERVICES LTD,3851237,15/09/2014,43453,489.89,,No description recorded,Street & Traffic Management,350000
South Lakeland District Council,http://opendatacommunities.org/id/district-council/south-lakeland,30/11/2014,Car Parks,Highways & Transport Services,http://opendatacommunities.org/def/concept/finance/sercop/objective/107,CRUDEN PROPERTY SERVICES LTD,3851237,15/09/2014,43453,390.7,,No description recorded,Street & Traffic Management,350000
South Lakeland District Council,http://opendatacommunities.org/id/district-council/south-lakeland,30/11/2014,Car Parks,Highways & Transport Services,http://opendatacommunities.org/def/concept/finance/sercop/objective/107,UNITED UTILITIES WATER PLC,2366678,15/09/2014,43778,777.26,,No description recorded,Environmental Services,180000
South Lakeland District Council,http://opendatacommunities.org/id/district-council/south-lakeland,30/11/2014,Car Parks,Highways & Transport Services,http://opendatacommunities.org/def/concept/finance/sercop/objective/107,UNITED UTILITIES WATER PLC,2366678,15/09/2014,43778,1801.67,,No description recorded,Environmental Services,180000
South Lakeland District Council,http://opendatacommunities.org/id/district-council/south-lakeland,30/11/2014,Car Parks,Highways & Transport Services,http://opendatacommunities.org/def/concept/finance/sercop/objective/107,UNITED UTILITIES WATER PLC,2366678,15/09/2014,43778,3119.83,,No description recorded,Environmental Services,180000
South Lakeland District Council,http://opendatacommunities.org/id/district-council/south-lakeland,30/11/2014,Car Parks,Highways & Transport Services,http://opendatacommunities.org/def/concept/finance/sercop/objective/107,UNITED UTILITIES WATER PLC,2366678,15/09/2014,43778,322.75,,No description recorded,Environmental Services,180000
South Lakeland District Council,http://opendatacommunities.org/id/district-council/south-lakeland,30/11/2014,Car Parks,Highways & Transport Services,http://opendatacommunities.org/def/concept/finance/sercop/objective/107,UNITED UTILITIES WATER PLC,2366678,15/09/2014,43778,743.13,,No description recorded,Environmental Services,180000
South Lakeland District Council,http://opendatacommunities.org/id/district-council/south-lakeland,30/11/2014,Revenues and Benefits,Highways & Transport Services,http://opendatacommunities.org/def/concept/finance/sercop/objective/107,LOOMIS UK LTD,3200432,15/09/2014,43780,879.37,0,2014 - 2015,Consultancy,150000
South Lakeland District Council,http://opendatacommunities.org/id/district-council/south-lakeland,30/11/2014,Town View Field Hostel,Housing Services,http://opendatacommunities.org/def/concept/finance/sercop/objective/108,CRUDEN PROPERTY SERVICES LTD,3851237,15/09/2014,43453,334.23,,No description recorded,"Works - Construction, Repair & Maintenance",390000
South Lakeland District Council,http://opendatacommunities.org/id/district-council/south-lakeland,30/11/2014,Business Support Community Services,Housing Services,http://opendatacommunities.org/def/concept/finance/sercop/objective/108,James Andrews Recruitment Solutions,6834852,15/09/2014,43764,956.25,0,Payment,Consultancy,150000
South Lakeland District Council,http://opendatacommunities.org/id/district-council/south-lakeland,30/11/2014,Environment and Housing,Housing Services,http://opendatacommunities.org/def/concept/finance/sercop/objective/108,James Andrews Recruitment Solutions,6834852,15/09/2014,43765,734.31,0,Salary for Agency staff ,Consultancy,150000
South Lakeland District Council,http://opendatacommunities.org/id/district-council/south-lakeland,30/11/2014,Town View Field Hostel,Housing Services,http://opendatacommunities.org/def/concept/finance/sercop/objective/108,UNITED UTILITIES WATER PLC,2366678,15/09/2014,43777,446.42,,No description recorded,Environmental Services,180000
South Lakeland District Council,http://opendatacommunities.org/id/district-council/south-lakeland,30/11/2014,Environment and Housing,Housing Services,http://opendatacommunities.org/def/concept/finance/sercop/objective/108,James Andrews Recruitment Solutions,6834852,15/09/2014,43799,3980.85,0,Compensation payment,Consultancy,150000
South Lakeland District Council,http://opendatacommunities.org/id/district-council/south-lakeland,30/11/2014,Business Support Community Services,Internal Trading Accounts,,DENNIS EAGLE LTD,3794455,17/09/2014,43534,478.29,0,Indicator,Vehicle Management,380000
South Lakeland District Council,http://opendatacommunities.org/id/district-council/south-lakeland,30/11/2014,Business Support Community Services,Internal Trading Accounts,,ALAN MYERSCOUGH LTD,2027076,17/09/2014,43546,708.15,0,Repair PX63 KSN,Vehicle Management,380000
South Lakeland District Council,http://opendatacommunities.org/id/district-council/south-lakeland,30/11/2014,Business Support Community Services,Internal Trading Accounts,,Harry Park Tyres Ltd,8131208,17/09/2014,43547,310,0,Tyres,Vehicle Management,380000
South Lakeland District Council,http://opendatacommunities.org/id/district-council/south-lakeland,30/11/2014,Business Support Community Services,Internal Trading Accounts,,Harry Park Tyres Ltd,8131208,17/09/2014,43549,620,0,Tyres,Vehicle Management,380000
South Lakeland District Council,http://opendatacommunities.org/id/district-council/south-lakeland,30/11/2014,Business Support Community Services,Internal Trading Accounts,,Harry Park Tyres Ltd,8131208,17/09/2014,43551,520,0,Tyres,Vehicle Management,380000
South Lakeland District Council,http://opendatacommunities.org/id/district-council/south-lakeland,30/11/2014,Legal Services,Internal Trading Accounts,,PENNINGTONS (KENDAL) LIMITED,434649,17/09/2014,43555,2500,0,Annual Charge from 01 April 2014 to 31,Environmental Services,180000
South Lakeland District Council,http://opendatacommunities.org/id/district-council/south-lakeland,30/11/2014,Business Support Community Services,Culture and Related Serv,,North Country Leisure,3683103,17/09/2014,43565,25827,0,Works to Kendal and Ulverston Leisure,Financial Services,200000
South Lakeland District Council,http://opendatacommunities.org/id/district-council/south-lakeland,30/11/2014,Business Support Community Services,Internal Trading Accounts,,H WICKS (LINDAL) LTD,754590,17/09/2014,43618,1990.16,0,Paper handling - August (estimated),Environmental Services,180000
South Lakeland District Council,http://opendatacommunities.org/id/district-council/south-lakeland,30/11/2014,Business Support Community Services,Internal Trading Accounts,,SITA UK LTD,2291198,17/09/2014,43633,29568.72,0,"Tipping & disposal charges, recyclables",Environmental Services,180000
South Lakeland District Council,http://opendatacommunities.org/id/district-council/south-lakeland,30/11/2014,Social Enterprise Admin,SLDC as Agent,,PAY BY PHONE (PAYPOINT),,17/09/2014,43667,338.92,0,Pay-by-phone charges from 1 April 2014,Financial Services,200000
South Lakeland District Council,http://opendatacommunities.org/id/district-council/south-lakeland,30/11/2014,Business Support Community Services,Culture and Related Serv,,North Country Leisure,3683103,17/09/2014,43669,21381.97,0,Works to Kendal and Ulverston Leisure,Financial Services,200000
South Lakeland District Council,http://opendatacommunities.org/id/district-council/south-lakeland,30/11/2014,Business Support Community Services,Transport Planning Policy,,BUNZL CLEANING & HYGIENE SUPPLIES,2902454,17/09/2014,43672,339.68,0,Disinfectant,Cleaning & Janitorial,130000
South Lakeland District Council,http://opendatacommunities.org/id/district-council/south-lakeland,30/11/2014,Business Support Community Services,Internal Trading Accounts,,ARCO LIMITED,133804,17/09/2014,43678,277.03,0,Graffiti remover,Clothing,140000
South Lakeland District Council,http://opendatacommunities.org/id/district-council/south-lakeland,30/11/2014,Business Support Community Services,Internal Trading Accounts,,BRIAN ARMISTEAD LTD T/A SINKFALL RECYCLI,4133280,17/09/2014,43699,1172,0,Green waste tipping - April (estimated),Environmental Services,180000
South Lakeland District Council,http://opendatacommunities.org/id/district-council/south-lakeland,30/11/2014,Business Support Community Services,Internal Trading Accounts,,A & W COMMERCIALS LTD,2630625,17/09/2014,43741,456.24,0,Make oil hose,Vehicle Management,380000
South Lakeland District Council,http://opendatacommunities.org/id/district-council/south-lakeland,30/11/2014,Business Support Community Services,Internal Trading Accounts,,SITA UK LTD,2291198,17/09/2014,43743,770.5,0,"Tipping & disposal charges, recyclables",Environmental Services,180000
South Lakeland District Council,http://opendatacommunities.org/id/district-council/south-lakeland,30/11/2014,Business Support Community Services,Internal Trading Accounts,,FUCHS LUBRICANTS (UK) PLC,2412689,17/09/2014,43744,540,0,Renolit EP00,Cleaning & Janitorial,130000
South Lakeland District Council,http://opendatacommunities.org/id/district-council/south-lakeland,30/11/2014,Sundry Properties,External Trading Accounts,,Datum Monitoring Services Ltd,3708618,17/09/2014,43768,488,,No description recorded,"Works - Construction, Repair & Maintenance",390000
South Lakeland District Council,http://opendatacommunities.org/id/district-council/south-lakeland,30/11/2014,Business Support Community Services,Internal Trading Accounts,,Harry Park Tyres Ltd,8131208,17/09/2014,43855,810,0,Tyre,Vehicle Management,380000
South Lakeland District Council,http://opendatacommunities.org/id/district-council/south-lakeland,30/11/2014,Business Support Community Services,Internal Trading Accounts,,Harry Park Tyres Ltd,8131208,17/09/2014,43859,548,0,Tyres,Vehicle Management,380000
South Lakeland District Council,http://opendatacommunities.org/id/district-council/south-lakeland,30/11/2014,Financial Services,Central Services,http://opendatacommunities.org/def/concept/finance/sercop/objective/102,Capita Secure Information Solutions Ltd,1593831,17/09/2014,43223,3800,0,Oracle to SQL Server migration of test,Financial Services,200000
South Lakeland District Council,http://opendatacommunities.org/id/district-council/south-lakeland,30/11/2014,Human Resources,Central Services,http://opendatacommunities.org/def/concept/finance/sercop/objective/102,MIDLAND SOFTWARE LTD,1852206,17/09/2014,43479,299,0,Training for AM,Education,170000
South Lakeland District Council,http://opendatacommunities.org/id/district-council/south-lakeland,30/11/2014,Human Resources,Central Services,http://opendatacommunities.org/def/concept/finance/sercop/objective/102,MIDLAND SOFTWARE LTD,1852206,17/09/2014,43523,2915.12,0,iTrent Rental 01/07/2014 to 30/06/2015,Information Communication Technology,270000
South Lakeland District Council,http://opendatacommunities.org/id/district-council/south-lakeland,30/11/2014,ICT Group,Central Services,http://opendatacommunities.org/def/concept/finance/sercop/objective/102,PROBRAND LTD,2653446,17/09/2014,43524,9929.36,0,LBC173/20CD000MUK/SB Lenovo - ThinkPad,Information Communication Technology,270000
South Lakeland District Council,http://opendatacommunities.org/id/district-council/south-lakeland,30/11/2014,Printing Section,Central Services,http://opendatacommunities.org/def/concept/finance/sercop/objective/102,GANDLAKE TECHNOLOGY LTD,,17/09/2014,43530,2211.63,0,2nd Quarter Lease for LaserServe,Information Communication Technology,270000
South Lakeland District Council,http://opendatacommunities.org/id/district-council/south-lakeland,30/11/2014,Revenues and Benefits,Central Services,http://opendatacommunities.org/def/concept/finance/sercop/objective/102,MERITEC LTD,3224622,17/09/2014,43630,697.5,0,RAB Processing Contract and Agency,Consultancy,150000
South Lakeland District Council,http://opendatacommunities.org/id/district-council/south-lakeland,30/11/2014,Electoral Services,Central Services,http://opendatacommunities.org/def/concept/finance/sercop/objective/102,SCI PRINT LTD,,17/09/2014,43827,21683.48,0,IER Postage Costs Initial Write Out,Mail Services,300000
South Lakeland District Council,http://opendatacommunities.org/id/district-council/south-lakeland,30/11/2014,Electoral Services,Central Services,http://opendatacommunities.org/def/concept/finance/sercop/objective/102,LAKELAND RADIO LTD,4031744,17/09/2014,43828,318,0,Lakeland Radio IER Advertising shared 1,Mail Services,300000
South Lakeland District Council,http://opendatacommunities.org/id/district-council/south-lakeland,30/11/2014,Legal Services,Central Services,http://opendatacommunities.org/def/concept/finance/sercop/objective/102,VENN GROUP RECRUITMENT SOLUTIONS,,17/09/2014,43837,494.49,0,Wages for LF from w/k ending,Consultancy,150000
South Lakeland District Council,http://opendatacommunities.org/id/district-council/south-lakeland,30/11/2014,Social Enterprise Admin,Cultural Environmental Regulatory & Planning Services,http://opendatacommunities.org/def/concept/finance/sercop/objective/104,Cleartrack (EvL) Ltd,3881690,17/09/2014,43460,600,0,Emergency work at Ellerthwaite Gardens,Environmental Services,180000
South Lakeland District Council,http://opendatacommunities.org/id/district-council/south-lakeland,30/11/2014,Social Enterprise Admin,Cultural Environmental Regulatory & Planning Services,http://opendatacommunities.org/def/concept/finance/sercop/objective/104,Cleartrack (EvL) Ltd,3881690,17/09/2014,43461,410,0,Fell one ash tree at Grange over Sands,Environmental Services,180000
South Lakeland District Council,http://opendatacommunities.org/id/district-council/south-lakeland,30/11/2014,Social Enterprise Admin,Cultural Environmental Regulatory & Planning Services,http://opendatacommunities.org/def/concept/finance/sercop/objective/104,Cleartrack (EvL) Ltd,3881690,17/09/2014,43462,250,0,Emergency work at Ellerthwaite Gardens,Environmental Services,180000
South Lakeland District Council,http://opendatacommunities.org/id/district-council/south-lakeland,30/11/2014,Development Implementation,Cultural Environmental Regulatory & Planning Services,http://opendatacommunities.org/def/concept/finance/sercop/objective/104,CUMBRIA COUNTY COUNCIL,,17/09/2014,43472,1700,0,MBP core contribution for 2014/15,Environmental Services,180000
South Lakeland District Council,http://opendatacommunities.org/id/district-council/south-lakeland,30/11/2014,Development Implementation,Cultural Environmental Regulatory & Planning Services,http://opendatacommunities.org/def/concept/finance/sercop/objective/104,CUMBRIA COUNTY COUNCIL,,17/09/2014,43473,2000,0,Contributions towards project officer,Environmental Services,180000
South Lakeland District Council,http://opendatacommunities.org/id/district-council/south-lakeland,30/11/2014,Social Enterprise Admin,Cultural Environmental Regulatory & Planning Services,http://opendatacommunities.org/def/concept/finance/sercop/objective/104,B & J METALS (SKIP HIRE) LTD,4634318,17/09/2014,43531,1680,0,Grounds waste disposal- Sandylands Road,Environmental Services,180000
South Lakeland District Council,http://opendatacommunities.org/id/district-council/south-lakeland,30/11/2014,Business Support Community Services,Cultural Environmental Regulatory & Planning Services,http://opendatacommunities.org/def/concept/finance/sercop/objective/104,OCS GROUP LTD T/A CANNON HYGIENE LTD,1298292,17/09/2014,43552,2163.27,0,Clinical waste collections - August,Environmental Services,180000
South Lakeland District Council,http://opendatacommunities.org/id/district-council/south-lakeland,30/11/2014,Public Halls,Cultural Environmental Regulatory & Planning Services,http://opendatacommunities.org/def/concept/finance/sercop/objective/104,DORMA UK LTD,1361508,17/09/2014,43694,308.13,,No description recorded,"Works - Construction, Repair & Maintenance",390000
South Lakeland District Council,http://opendatacommunities.org/id/district-council/south-lakeland,30/11/2014,Environmental Protection,Cultural Environmental Regulatory & Planning Services,http://opendatacommunities.org/def/concept/finance/sercop/objective/104,CONTINENTAL LANDSCAPES LTD,2108452,17/09/2014,43708,3582.38,0,Covering 12monthly payments for,Cemetery & Crematorium,120000
South Lakeland District Council,http://opendatacommunities.org/id/district-council/south-lakeland,30/11/2014,Environmental Protection,Cultural Environmental Regulatory & Planning Services,http://opendatacommunities.org/def/concept/finance/sercop/objective/104,CONTINENTAL LANDSCAPES LTD,2108452,17/09/2014,43709,3582.38,0,Covering 12monthly payments for,Cemetery & Crematorium,120000
South Lakeland District Council,http://opendatacommunities.org/id/district-council/south-lakeland,30/11/2014,Social Enterprise Admin,Highways & Transport Services,http://opendatacommunities.org/def/concept/finance/sercop/objective/107,PINNACLE RESPONSE LTD,NI064919,17/09/2014,43480,2496,0,PR5 Body Camera with 16GB memory/5 hours,Furniture & Soft Furnishings,210000
South Lakeland District Council,http://opendatacommunities.org/id/district-council/south-lakeland,30/11/2014,Social Enterprise Admin,Highways & Transport Services,http://opendatacommunities.org/def/concept/finance/sercop/objective/107,METRIC GROUP LIMITED,2560839,17/09/2014,43602,990,0,Chip and Pin costs for 66 machines 1,Vehicle Management,380000
South Lakeland District Council,http://opendatacommunities.org/id/district-council/south-lakeland,30/11/2014,Social Enterprise Admin,Highways & Transport Services,http://opendatacommunities.org/def/concept/finance/sercop/objective/107,METRIC GROUP LIMITED,2560839,17/09/2014,43603,285,0,Machine maintenance contract from 1,Vehicle Management,380000
South Lakeland District Council,http://opendatacommunities.org/id/district-council/south-lakeland,30/11/2014,Social Enterprise Admin,Highways & Transport Services,http://opendatacommunities.org/def/concept/finance/sercop/objective/107,METRIC GROUP LIMITED,2560839,17/09/2014,43603,356.25,0,Machine maintenance contract from 1,Vehicle Management,380000
South Lakeland District Council,http://opendatacommunities.org/id/district-council/south-lakeland,30/11/2014,Social Enterprise Admin,Highways & Transport Services,http://opendatacommunities.org/def/concept/finance/sercop/objective/107,METRIC GROUP LIMITED,2560839,17/09/2014,43603,356.25,0,Machine maintenance contract from 1,Vehicle Management,380000
South Lakeland District Council,http://opendatacommunities.org/id/district-council/south-lakeland,30/11/2014,Social Enterprise Admin,Highways & Transport Services,http://opendatacommunities.org/def/concept/finance/sercop/objective/107,G4S SECURE SOLUTIONS (UK) LTD,1046019,17/09/2014,43619,833.18,0,Patrol Services for South Lakeland House,Consultancy,150000
South Lakeland District Council,http://opendatacommunities.org/id/district-council/south-lakeland,30/11/2014,Business Support Community Services,Housing Services,http://opendatacommunities.org/def/concept/finance/sercop/objective/108,Mr David Rigg,,17/09/2014,43869,1190,0,"Monthly rent for Flat 1 A Kentworks, 1",Social Community Care Supplies & Services,410000
South Lakeland District Council,http://opendatacommunities.org/id/district-council/south-lakeland,30/11/2014,Business Support Community Services,Housing Services,http://opendatacommunities.org/def/concept/finance/sercop/objective/108,FIONA & JOHN ARMER,,17/09/2014,43870,890,0,"Monthly rent payment for Flats 1 & 2, 13",Social Community Care Supplies & Services,410000
South Lakeland District Council,http://opendatacommunities.org/id/district-council/south-lakeland,30/11/2014,Business Support Community Services,Housing Services,http://opendatacommunities.org/def/concept/finance/sercop/objective/108,Open Door Properties,3749975,17/09/2014,43871,450,0,Rent in advance ,Social Community Care Supplies & Services,410000
South Lakeland District Council,http://opendatacommunities.org/id/district-council/south-lakeland,30/11/2014,Business Support Community Services,Housing Services,http://opendatacommunities.org/def/concept/finance/sercop/objective/108,Great Head House Estates,1645885,17/09/2014,43872,390,0,Rent in advance ,Social Community Care Supplies & Services,410000
South Lakeland District Council,http://opendatacommunities.org/id/district-council/south-lakeland,30/11/2014,Business Support Community Services,Internal Trading Accounts,,POST OFFICE LTD,2154540,18/09/2014,43722,1010,0,"Licence SL021, SL025, SL037, SL045,",Vehicle Management,380000
South Lakeland District Council,http://opendatacommunities.org/id/district-council/south-lakeland,30/11/2014,Business Support Community Services,Internal Trading Accounts,,E & D E TOWERS,,18/09/2014,43867,401.13,0,Repair SL094,Vehicle Management,380000
South Lakeland District Council,http://opendatacommunities.org/id/district-council/south-lakeland,30/11/2014,Development Implementation,Cultural Environmental Regulatory & Planning Services,http://opendatacommunities.org/def/concept/finance/sercop/objective/104,HBN Restaurants Ltd,4184849,18/09/2014,43761,250,0,Participation in the Kendal Courtesy,Financial Services,200000
South Lakeland District Council,http://opendatacommunities.org/id/district-council/south-lakeland,30/11/2014,Business Support Community Services,Internal Trading Accounts,,J R RICHARDSON LTD,2225792,22/09/2014,43642,264.63,0,Topwash,Cleaning & Janitorial,130000
South Lakeland District Council,http://opendatacommunities.org/id/district-council/south-lakeland,30/11/2014,Business Support Community Services,Internal Trading Accounts,,GARWOOD EUROPE LTD,4333504,22/09/2014,43686,506.86,0,Parts,Vehicle Management,380000
South Lakeland District Council,http://opendatacommunities.org/id/district-council/south-lakeland,30/11/2014,SLDC Depots,Transport Planning Policy,,H & E TROTTER,3014209,22/09/2014,43693,1025.6,,No description recorded,"Works - Construction, Repair & Maintenance",390000
South Lakeland District Council,http://opendatacommunities.org/id/district-council/south-lakeland,30/11/2014,Business Support Community Services,Environment Regulatory,,Great Green Systems Ltd,6632263,22/09/2014,43738,2485.8,0,South Lakeland Food Digester Project.,Vehicle Management,380000
South Lakeland District Council,http://opendatacommunities.org/id/district-council/south-lakeland,30/11/2014,Sundry Properties,External Trading Accounts,,JETTIES & MOORINGS,,22/09/2014,43792,740,,No description recorded,"Works - Construction, Repair & Maintenance",390000
South Lakeland District Council,http://opendatacommunities.org/id/district-council/south-lakeland,30/11/2014,Environment and Housing,SLDC as Agent,,HOME GROUP LTD,IP22981R,22/09/2014,43838,2485.47,0,CBL Co-ordinator Cost from 1/6/14 -,Financial Services,200000
South Lakeland District Council,http://opendatacommunities.org/id/district-council/south-lakeland,30/11/2014,Business Support Community Services,Internal Trading Accounts,,Harry Park Tyres Ltd,8131208,22/09/2014,43860,1672,0,Tyres,Vehicle Management,380000
South Lakeland District Council,http://opendatacommunities.org/id/district-council/south-lakeland,30/11/2014,Revenues and Benefits,SLDC as Agent,,ROYAL MAIL GROUP PLC,,22/09/2014,43909,1492.23,0,2014-15  Postal Charges a/c 0198123013,Financial Services,200000
South Lakeland District Council,http://opendatacommunities.org/id/district-council/south-lakeland,30/11/2014,Business Support Community Services,Internal Trading Accounts,,Masterstaff Limited,2777593,22/09/2014,43933,558.15,0, September 2014,Consultancy,150000
South Lakeland District Council,http://opendatacommunities.org/id/district-council/south-lakeland,30/11/2014,Development Implementation,SLDC as Agent,,MOUNTAIN GOAT LTD,2862284,22/09/2014,43944,675,0,JTourism/Finnair Fam trip visit 31,Financial Services,200000
South Lakeland District Council,http://opendatacommunities.org/id/district-council/south-lakeland,30/11/2014,Development Implementation,SLDC as Agent,,MOUNTAIN GOAT LTD,2862284,22/09/2014,43945,345,0,VB Tokyo Fam trip visit 6/7 Sept 14.,Financial Services,200000
South Lakeland District Council,http://opendatacommunities.org/id/district-council/south-lakeland,30/11/2014,Revenues and Benefits,Central Services,http://opendatacommunities.org/def/concept/finance/sercop/objective/102,ARVATO GOVERNMENT SERVICES LTD,5429280,22/09/2014,43361,360,0,Ross,Education,170000
South Lakeland District Council,http://opendatacommunities.org/id/district-council/south-lakeland,30/11/2014,Human Resources,Central Services,http://opendatacommunities.org/def/concept/finance/sercop/objective/102,Greenfield PST,,22/09/2014,43573,500,0,The telephone aggression 500.00 plus,Education,170000
South Lakeland District Council,http://opendatacommunities.org/id/district-council/south-lakeland,30/11/2014,Policy & Partnerships,Central Services,http://opendatacommunities.org/def/concept/finance/sercop/objective/102,GREENGAGE CONSULTING LTD,3272080,22/09/2014,43607,563.5,0,563.50 plus 112.70 VAT,Education,170000
South Lakeland District Council,http://opendatacommunities.org/id/district-council/south-lakeland,30/11/2014,Financial Services,Central Services,http://opendatacommunities.org/def/concept/finance/sercop/objective/102,GREATER MANCHESTER PENSION FUND,,22/09/2014,43766,274.84,0,Qtr contribution re past pensions,Financial Services,200000
South Lakeland District Council,http://opendatacommunities.org/id/district-council/south-lakeland,30/11/2014,Financial Services,Central Services,http://opendatacommunities.org/def/concept/finance/sercop/objective/102,GRANT THORNTON UK LLP,OC307742,22/09/2014,43805,19616,0,External Audit Service,Financial Services,200000
South Lakeland District Council,http://opendatacommunities.org/id/district-council/south-lakeland,30/11/2014,Offices,Central Services,http://opendatacommunities.org/def/concept/finance/sercop/objective/102,Interserve FS (UK) Ltd,2329448,22/09/2014,43878,274.86,,No description recorded,"Works - Construction, Repair & Maintenance",390000
South Lakeland District Council,http://opendatacommunities.org/id/district-council/south-lakeland,30/11/2014,Offices,Central Services,http://opendatacommunities.org/def/concept/finance/sercop/objective/102,ELECTRICITY NORTH WEST LTD,2366949,22/09/2014,43882,613.03,,No description recorded,"Works - Construction, Repair & Maintenance",390000
South Lakeland District Council,http://opendatacommunities.org/id/district-council/south-lakeland,30/11/2014,Development Implementation,Cultural Environmental Regulatory & Planning Services,http://opendatacommunities.org/def/concept/finance/sercop/objective/104,Reed Midem Ltd,2225211,22/09/2014,43937,340,0,"MIPIM Event: Stand (D20) - 3870,",Environmental Services,180000
South Lakeland District Council,http://opendatacommunities.org/id/district-council/south-lakeland,30/11/2014,Development Implementation,Cultural Environmental Regulatory & Planning Services,http://opendatacommunities.org/def/concept/finance/sercop/objective/104,Reed Midem Ltd,2225211,22/09/2014,43938,1060,0,"MIPIM Event: Stand (D20) - 3870,",Environmental Services,180000
South Lakeland District Council,http://opendatacommunities.org/id/district-council/south-lakeland,30/11/2014,Development Implementation,Cultural Environmental Regulatory & Planning Services,http://opendatacommunities.org/def/concept/finance/sercop/objective/104,Reed Midem Ltd,2225211,22/09/2014,43939,3780,0,"MIPIM Event: Stand (D20) - 3870,",Environmental Services,180000
South Lakeland District Council,http://opendatacommunities.org/id/district-council/south-lakeland,30/11/2014,Development Implementation,Cultural Environmental Regulatory & Planning Services,http://opendatacommunities.org/def/concept/finance/sercop/objective/104,3 Peaks Consulting Ltd,9054567,22/09/2014,43941,1000,0,"Work for Economic Development at SLDC,",Financial Services,200000
South Lakeland District Council,http://opendatacommunities.org/id/district-council/south-lakeland,30/11/2014,Social Enterprise Admin,Highways & Transport Services,http://opendatacommunities.org/def/concept/finance/sercop/objective/107,METRIC GROUP LIMITED,2560839,22/09/2014,43604,693,0,Web hosting and web tariff editor for 66,Vehicle Management,380000
South Lakeland District Council,http://opendatacommunities.org/id/district-council/south-lakeland,30/11/2014,Car Parks,Highways & Transport Services,http://opendatacommunities.org/def/concept/finance/sercop/objective/107,Drain Doctor Plumbing & Drainage,,22/09/2014,43884,3512,,No description recorded,Street & Traffic Management,350000
South Lakeland District Council,http://opendatacommunities.org/id/district-council/south-lakeland,30/11/2014,Business Support Community Services,Housing Services,http://opendatacommunities.org/def/concept/finance/sercop/objective/108,Vigilant Security Services UK Ltd,5914271,22/09/2014,43819,3241.56,0,Payment for security guard at TVF,Human Resources,260000
South Lakeland District Council,http://opendatacommunities.org/id/district-council/south-lakeland,30/11/2014,Business Support Community Services,Housing Services,http://opendatacommunities.org/def/concept/finance/sercop/objective/108,James Andrews Recruitment Solutions,6834852,22/09/2014,43895,887.5,0,Payment ,Consultancy,150000
South Lakeland District Council,http://opendatacommunities.org/id/district-council/south-lakeland,30/11/2014,Business Support Community Services,Housing Services,http://opendatacommunities.org/def/concept/finance/sercop/objective/108,IMPACT HOUSING ASSOCIATION LTD,IP21411R,22/09/2014,43931,1031.38,0,Rent arrears for Little Union,Social Community Care Supplies & Services,410000
South Lakeland District Council,http://opendatacommunities.org/id/district-council/south-lakeland,30/11/2014,Markets,External Trading Accounts,,CLASSIC LIFTS LTD,2487116,24/09/2014,43769,292.28,,No description recorded,"Works - Construction, Repair & Maintenance",390000
South Lakeland District Council,http://opendatacommunities.org/id/district-council/south-lakeland,30/11/2014,Business Support Community Services,Internal Trading Accounts,,Harry Park Tyres Ltd,8131208,24/09/2014,43857,1068,0,Tyres,Vehicle Management,380000
South Lakeland District Council,http://opendatacommunities.org/id/district-council/south-lakeland,30/11/2014,Business Support Community Services,Internal Trading Accounts,,BRIAN ARMISTEAD LTD T/A SINKFALL RECYCLI,4133280,24/09/2014,43889,1325.2,0,Green waste tipping - April (estimated),Environmental Services,180000
South Lakeland District Council,http://opendatacommunities.org/id/district-council/south-lakeland,30/11/2014,Financial Services,Housing Benefits,,ARNSIDE PARISH COUNCIL,,24/09/2014,43971,17970,0,Parish precept 2nd Instalment 2014-15,Financial Services,200000
South Lakeland District Council,http://opendatacommunities.org/id/district-council/south-lakeland,30/11/2014,Financial Services,Housing Benefits,,GRANGE OVER SANDS TOWN COUNCIL,,24/09/2014,43972,71115.52,0,Parish precept 2nd Instalment 2014-15,Financial Services,200000
South Lakeland District Council,http://opendatacommunities.org/id/district-council/south-lakeland,30/11/2014,Financial Services,Housing Benefits,,KENDAL TOWN COUNCIL,,24/09/2014,43973,153752.56,0,Parish precept 2nd Instalment 2014-15,Financial Services,200000
South Lakeland District Council,http://opendatacommunities.org/id/district-council/south-lakeland,30/11/2014,Financial Services,Housing Benefits,,KIRKBY LONSDALE TOWN COUNCIL,,24/09/2014,43974,20427.09,0,Parish precept 2nd Instalment 2014-15,Financial Services,200000
South Lakeland District Council,http://opendatacommunities.org/id/district-council/south-lakeland,30/11/2014,Financial Services,Housing Benefits,,LAKES PARISH COUNCIL,,24/09/2014,43975,46593,0,Parish precept 2nd Instalment 2014-15,Financial Services,200000
South Lakeland District Council,http://opendatacommunities.org/id/district-council/south-lakeland,30/11/2014,Financial Services,Housing Benefits,,SEDBERGH PARISH COUNCIL,,24/09/2014,43976,17033.52,0,Parish precept 2nd Instalment 2014-15,Financial Services,200000
South Lakeland District Council,http://opendatacommunities.org/id/district-council/south-lakeland,30/11/2014,Financial Services,Housing Benefits,,ULVERSTON TOWN COUNCIL,,24/09/2014,43977,72980.69,0,Parish precept 2nd Instalment 2014-15,Financial Services,200000
South Lakeland District Council,http://opendatacommunities.org/id/district-council/south-lakeland,30/11/2014,Financial Services,Housing Benefits,,WINDERMERE TOWN COUNCIL,,24/09/2014,43978,56940.75,0,Parish precept 2nd Instalment 2014-15,Financial Services,200000
South Lakeland District Council,http://opendatacommunities.org/id/district-council/south-lakeland,30/11/2014,Debtors,Non-Service Payments,,SOUTH LAKES HOUSING RENT A/C,,24/09/2014,44005,1888.38,,No description recorded,Housing Management,250000
South Lakeland District Council,http://opendatacommunities.org/id/district-council/south-lakeland,30/11/2014,Debtors,Non-Service Payments,,SOUTH LAKES HOUSING RENT A/C,,24/09/2014,44011,4611.81,,No description recorded,Housing Management,250000
South Lakeland District Council,http://opendatacommunities.org/id/district-council/south-lakeland,30/11/2014,Legal Services,Central Services,http://opendatacommunities.org/def/concept/finance/sercop/objective/102,CAPITA BUSINESS SERVICES LTD,2299747,24/09/2014,43358,869.2,0,Conference fees for S. McG,Education,170000
South Lakeland District Council,http://opendatacommunities.org/id/district-council/south-lakeland,30/11/2014,Offices,Central Services,http://opendatacommunities.org/def/concept/finance/sercop/objective/102,CLASSIC LIFTS LTD,2487116,24/09/2014,43769,292.28,,No description recorded,"Works - Construction, Repair & Maintenance",390000
South Lakeland District Council,http://opendatacommunities.org/id/district-council/south-lakeland,30/11/2014,Human Resources,Central Services,http://opendatacommunities.org/def/concept/finance/sercop/objective/102,LAKES TRAINING SOLUTIONS LTD,7541345,24/09/2014,43773,500,0,Time Management 22nd May 2014,Education,170000
South Lakeland District Council,http://opendatacommunities.org/id/district-council/south-lakeland,30/11/2014,Offices,Central Services,http://opendatacommunities.org/def/concept/finance/sercop/objective/102,T T CARPETS LTD,5477848,24/09/2014,43879,875,,No description recorded,"Works - Construction, Repair & Maintenance",390000
South Lakeland District Council,http://opendatacommunities.org/id/district-council/south-lakeland,30/11/2014,Legal Services,Central Services,http://opendatacommunities.org/def/concept/finance/sercop/objective/102,VENN GROUP RECRUITMENT SOLUTIONS,,24/09/2014,43967,494.49,0,Wages for Legal from w/k ending,Consultancy,150000
South Lakeland District Council,http://opendatacommunities.org/id/district-council/south-lakeland,30/11/2014,Community Services,Central Services,http://opendatacommunities.org/def/concept/finance/sercop/objective/102,VODAFONE LIMITED,1471587,24/09/2014,44034,510.47,,No description recorded,Utilities,370000
South Lakeland District Council,http://opendatacommunities.org/id/district-council/south-lakeland,30/11/2014,Social Enterprise Admin,Cultural Environmental Regulatory & Planning Services,http://opendatacommunities.org/def/concept/finance/sercop/objective/104,PLAYDALE PLAYGROUNDS LTD,525615,24/09/2014,43282,961.79,0,Reference PC,Sports & Playground Equipment & Maintenance,330000
South Lakeland District Council,http://opendatacommunities.org/id/district-council/south-lakeland,30/11/2014,Development Implementation,Cultural Environmental Regulatory & Planning Services,http://opendatacommunities.org/def/concept/finance/sercop/objective/104,PS BUSINESS MATTERS,8147185,24/09/2014,43655,1000,0,Kendal Futures - Programme Support,Consultancy,150000
South Lakeland District Council,http://opendatacommunities.org/id/district-council/south-lakeland,30/11/2014,Social Enterprise Admin,Cultural Environmental Regulatory & Planning Services,http://opendatacommunities.org/def/concept/finance/sercop/objective/104,Cleartrack (EvL) Ltd,3881690,24/09/2014,43657,410,0,All works to be carried out to the,Environmental Services,180000
South Lakeland District Council,http://opendatacommunities.org/id/district-council/south-lakeland,30/11/2014,Social Enterprise Admin,Cultural Environmental Regulatory & Planning Services,http://opendatacommunities.org/def/concept/finance/sercop/objective/104,Cleartrack (EvL) Ltd,3881690,24/09/2014,43658,410,0,All works to be carried out to the,Environmental Services,180000
South Lakeland District Council,http://opendatacommunities.org/id/district-council/south-lakeland,30/11/2014,Social Enterprise Admin,Cultural Environmental Regulatory & Planning Services,http://opendatacommunities.org/def/concept/finance/sercop/objective/104,Cleartrack (EvL) Ltd,3881690,24/09/2014,43659,537.5,0,All works to be carried out to the,Environmental Services,180000
South Lakeland District Council,http://opendatacommunities.org/id/district-council/south-lakeland,30/11/2014,Leisure Centres (incl Pools),Cultural Environmental Regulatory & Planning Services,http://opendatacommunities.org/def/concept/finance/sercop/objective/104,CLASSIC LIFTS LTD,2487116,24/09/2014,43769,292.28,,No description recorded,"Works - Construction, Repair & Maintenance",390000
South Lakeland District Council,http://opendatacommunities.org/id/district-council/south-lakeland,30/11/2014,Public Halls,Cultural Environmental Regulatory & Planning Services,http://opendatacommunities.org/def/concept/finance/sercop/objective/104,CLASSIC LIFTS LTD,2487116,24/09/2014,43769,438.42,,No description recorded,"Works - Construction, Repair & Maintenance",390000
South Lakeland District Council,http://opendatacommunities.org/id/district-council/south-lakeland,30/11/2014,Public Halls,Cultural Environmental Regulatory & Planning Services,http://opendatacommunities.org/def/concept/finance/sercop/objective/104,CLASSIC LIFTS LTD,2487116,24/09/2014,43769,487.13,,No description recorded,"Works - Construction, Repair & Maintenance",390000
South Lakeland District Council,http://opendatacommunities.org/id/district-council/south-lakeland,30/11/2014,Business Support Community Services,Cultural Environmental Regulatory & Planning Services,http://opendatacommunities.org/def/concept/finance/sercop/objective/104,DR ALISTAIR MACKENZIE,,24/09/2014,43775,800,0,Medicals from September 2013 - August,Healthcare,310000
South Lakeland District Council,http://opendatacommunities.org/id/district-council/south-lakeland,30/11/2014,Lake Wardens,Cultural Environmental Regulatory & Planning Services,http://opendatacommunities.org/def/concept/finance/sercop/objective/104,JETTIES & MOORINGS,,24/09/2014,43954,1257,0,Additional Costs incurred in relation,Arts & Leisure Services,290000
South Lakeland District Council,http://opendatacommunities.org/id/district-council/south-lakeland,30/11/2014,Business Support Community Services,Cultural Environmental Regulatory & Planning Services,http://opendatacommunities.org/def/concept/finance/sercop/objective/104,CUMBRIA WASTE RECYCLING LTD,3162439,24/09/2014,44019,12850.63,0,Empty recycling banks in April,Environmental Services,180000
South Lakeland District Council,http://opendatacommunities.org/id/district-council/south-lakeland,30/11/2014,Development Implementation,Cultural Environmental Regulatory & Planning Services,http://opendatacommunities.org/def/concept/finance/sercop/objective/104,SKV Communications,3495502,24/09/2014,44022,918.75,0,Provision of PR/Marketing Support for,Environmental Services,180000
South Lakeland District Council,http://opendatacommunities.org/id/district-council/south-lakeland,30/11/2014,Car Parks,Highways & Transport Services,http://opendatacommunities.org/def/concept/finance/sercop/objective/107,CLASSIC LIFTS LTD,2487116,24/09/2014,43769,876.83,,No description recorded,"Works - Construction, Repair & Maintenance",390000
South Lakeland District Council,http://opendatacommunities.org/id/district-council/south-lakeland,30/11/2014,Environment and Housing,Housing,http://opendatacommunities.org/def/concept/finance/sercop/objective/108,STANNAH LIFT SERVICES LTD,1189799,24/09/2014,43577,1865,0,"Holly Hill House, Lake Road,",Financial Services,200000
South Lakeland District Council,http://opendatacommunities.org/id/district-council/south-lakeland,30/11/2014,Environment and Housing,Housing,http://opendatacommunities.org/def/concept/finance/sercop/objective/108,STANNAH LIFT SERVICES LTD,1189799,24/09/2014,43675,5125,0,"Casterton, Kirkby Lonsdale,",Financial Services,200000
South Lakeland District Council,http://opendatacommunities.org/id/district-council/south-lakeland,30/11/2014,Environment and Housing,Housing Services,http://opendatacommunities.org/def/concept/finance/sercop/objective/108,CUMBRIA RURAL HOUSING TRUST,2920997,24/09/2014,43935,833.33,0,Enabling contract 1/4/14 - 30/9/14,Consultancy,150000
South Lakeland District Council,http://opendatacommunities.org/id/district-council/south-lakeland,30/11/2014,Environment and Housing,Housing,http://opendatacommunities.org/def/concept/finance/sercop/objective/108,DOLPHIN STAIRLIFTS CUMBRIA,,24/09/2014,43979,4450,0,"Romney Road, Kendal, LA9",Financial Services,200000
South Lakeland District Council,http://opendatacommunities.org/id/district-council/south-lakeland,30/11/2014,Environment and Housing,Housing,http://opendatacommunities.org/def/concept/finance/sercop/objective/108,C W COX & SONS (KENDAL) LTD,3498844,24/09/2014,43980,3183.61,0,"Low Garth, Kendal, LA9 5PA",Financial Services,200000
South Lakeland District Council,http://opendatacommunities.org/id/district-council/south-lakeland,30/11/2014,Business Support Community Services,Housing Services,http://opendatacommunities.org/def/concept/finance/sercop/objective/108,Landlord,7803122,24/09/2014,44014,500,0,Monthly rent,Social Community Care Supplies & Services,410000
South Lakeland District Council,http://opendatacommunities.org/id/district-council/south-lakeland,30/11/2014,Business Support Community Services,Housing Services,http://opendatacommunities.org/def/concept/finance/sercop/objective/108,Landlord,,24/09/2014,44015,625,0,Monthly rent,Social Community Care Supplies & Services,410000
South Lakeland District Council,http://opendatacommunities.org/id/district-council/south-lakeland,30/11/2014,Business Support Community Services,Housing Services,http://opendatacommunities.org/def/concept/finance/sercop/objective/108,Landlord,,24/09/2014,44016,700,0,Monthly rent,Social Community Care Supplies & Services,410000
South Lakeland District Council,http://opendatacommunities.org/id/district-council/south-lakeland,30/11/2014,Business Support Community Services,Housing Services,http://opendatacommunities.org/def/concept/finance/sercop/objective/108,Landlord,,24/09/2014,44017,500,0,Monthly rent,Social Community Care Supplies & Services,410000
South Lakeland District Council,http://opendatacommunities.org/id/district-council/south-lakeland,30/11/2014,Business Support Community Services,Housing Services,http://opendatacommunities.org/def/concept/finance/sercop/objective/108,BUNZL CLEANING & HYGIENE SUPPLIES,2902454,24/09/2014,44024,318.87,0,065005 Toilet Tissue,Cleaning & Janitorial,130000
South Lakeland District Council,http://opendatacommunities.org/id/district-council/south-lakeland,30/11/2014,Business Support Community Services,Internal Trading Accounts,,CUMBRIA TRUCK CENTRE LTD,4298488,29/09/2014,43826,321.66,0,Spring,Vehicle Management,380000
South Lakeland District Council,http://opendatacommunities.org/id/district-council/south-lakeland,30/11/2014,Business Support Community Services,Internal Trading Accounts,,Harry Park Tyres Ltd,8131208,29/09/2014,43858,737,0,Tyres,Vehicle Management,380000
South Lakeland District Council,http://opendatacommunities.org/id/district-council/south-lakeland,30/11/2014,Coronation Hall,External Trading Accounts,,CUMBRIA WASTE RECYCLING LTD,3162439,29/09/2014,43988,443.28,0,"Emptying of skips from Market Hall,",Environmental Services,180000
South Lakeland District Council,http://opendatacommunities.org/id/district-council/south-lakeland,30/11/2014,Payroll Deductions,Non-Service Payments,,UNISON,,29/09/2014,44035,2041.04,,No description recorded,Financial Services,200000
South Lakeland District Council,http://opendatacommunities.org/id/district-council/south-lakeland,30/11/2014,Payroll Deductions,Non-Service Payments,,GMB,,29/09/2014,44036,363.93,,No description recorded,Financial Services,200000
South Lakeland District Council,http://opendatacommunities.org/id/district-council/south-lakeland,30/11/2014,Payroll Deductions,Non-Service Payments,,PAYCARE,820791,29/09/2014,44037,332.67,,No description recorded,Financial Services,200000
South Lakeland District Council,http://opendatacommunities.org/id/district-council/south-lakeland,30/11/2014,Business Support Community Services,Internal Trading Accounts,,CUMBRIA WASTE RECYCLING LTD,3162439,29/09/2014,44040,1653.76,0,Skip emptying at Ecclerigg - August,Environmental Services,180000
South Lakeland District Council,http://opendatacommunities.org/id/district-council/south-lakeland,30/11/2014,Business Support Community Services,Internal Trading Accounts,,Masterstaff Limited,2777593,29/09/2014,44078,429.98,0, September 2014,Consultancy,150000
South Lakeland District Council,http://opendatacommunities.org/id/district-council/south-lakeland,30/11/2014,Social Enterprise Admin,Central Services,http://opendatacommunities.org/def/concept/finance/sercop/objective/102,ADECCO UK LIMITED,593232,29/09/2014,43660,429.9,0,TEMPORARY GAZETTEER OFFICER,Consultancy,150000
South Lakeland District Council,http://opendatacommunities.org/id/district-council/south-lakeland,30/11/2014,Development Implementation,Central Services,http://opendatacommunities.org/def/concept/finance/sercop/objective/102,NPS GROUP LTD,6614601,29/09/2014,43762,38333.33,0,Professional Property Services for,"Works - Construction, Repair & Maintenance",390000
South Lakeland District Council,http://opendatacommunities.org/id/district-council/south-lakeland,30/11/2014,Human Resources,Central Services,http://opendatacommunities.org/def/concept/finance/sercop/objective/102,Southall Associates Limited,5751804,29/09/2014,43808,1050,0,Annual License for access to Audit,Health & Safety,220000
South Lakeland District Council,http://opendatacommunities.org/id/district-council/south-lakeland,30/11/2014,Social Enterprise Admin,Central Services,http://opendatacommunities.org/def/concept/finance/sercop/objective/102,ADECCO UK LIMITED,593232,29/09/2014,43809,530.21,0,TEMPORARY GAZETTEER OFFICER,Consultancy,150000
South Lakeland District Council,http://opendatacommunities.org/id/district-council/south-lakeland,30/11/2014,ICT Group,Central Services,http://opendatacommunities.org/def/concept/finance/sercop/objective/102,LAN2LAN Limited,,29/09/2014,43834,413,0,Fortinet 90D 8x5 Bundle Renewal - 1 Year,Information Communication Technology,270000
South Lakeland District Council,http://opendatacommunities.org/id/district-council/south-lakeland,30/11/2014,Printing Section,Central Services,http://opendatacommunities.org/def/concept/finance/sercop/objective/102,ROSEFOX PAPER LIMITED,1655083,29/09/2014,43843,597.85,0,Pallet of Paper on A4 80gsm,Stationery,340000
South Lakeland District Council,http://opendatacommunities.org/id/district-council/south-lakeland,30/11/2014,Offices,Central Services,http://opendatacommunities.org/def/concept/finance/sercop/objective/102,DORMA UK LTD,1361508,29/09/2014,43892,291,,No description recorded,"Works - Construction, Repair & Maintenance",390000
South Lakeland District Council,http://opendatacommunities.org/id/district-council/south-lakeland,30/11/2014,Social Enterprise Admin,Central Services,http://opendatacommunities.org/def/concept/finance/sercop/objective/102,ADECCO UK LIMITED,593232,29/09/2014,44007,530.21,0,TEMPORARY GAZETTEER OFFICER,Consultancy,150000
South Lakeland District Council,http://opendatacommunities.org/id/district-council/south-lakeland,30/11/2014,Electoral Services,Central Services,http://opendatacommunities.org/def/concept/finance/sercop/objective/102,SCI PRINT LTD,,29/09/2014,44044,13137.81,0,Printing of Initial HEFs and ITRs +,Mail Services,300000
South Lakeland District Council,http://opendatacommunities.org/id/district-council/south-lakeland,30/11/2014,Legal Services,Central Services,http://opendatacommunities.org/def/concept/finance/sercop/objective/102,VENN GROUP RECRUITMENT SOLUTIONS,,29/09/2014,44077,258.66,0,Wages ,Consultancy,150000
South Lakeland District Council,http://opendatacommunities.org/id/district-council/south-lakeland,30/11/2014,Social Enterprise Admin,Cultural Environmental Regulatory & Planning Services,http://opendatacommunities.org/def/concept/finance/sercop/objective/104,CONTINENTAL LANDSCAPES LTD,2108452,29/09/2014,43674,9511.8,0,Grounds maintenance 14-15,Horticultural,240000
South Lakeland District Council,http://opendatacommunities.org/id/district-council/south-lakeland,30/11/2014,Social Enterprise Admin,Cultural Environmental Regulatory & Planning Services,http://opendatacommunities.org/def/concept/finance/sercop/objective/104,CONTINENTAL LANDSCAPES LTD,2108452,29/09/2014,43674,1376.6,0,Grounds maintenance 14-15,Cemetery & Crematorium,120000
South Lakeland District Council,http://opendatacommunities.org/id/district-council/south-lakeland,30/11/2014,Social Enterprise Admin,Cultural Environmental Regulatory & Planning Services,http://opendatacommunities.org/def/concept/finance/sercop/objective/104,CONTINENTAL LANDSCAPES LTD,2108452,29/09/2014,43674,45478.3,0,Grounds maintenance 14-15,Horticultural,240000
South Lakeland District Council,http://opendatacommunities.org/id/district-council/south-lakeland,30/11/2014,Social Enterprise Admin,Cultural Environmental Regulatory & Planning Services,http://opendatacommunities.org/def/concept/finance/sercop/objective/104,CONTINENTAL LANDSCAPES LTD,2108452,29/09/2014,43674,2259.05,0,Grounds maintenance 14-15,Horticultural,240000
South Lakeland District Council,http://opendatacommunities.org/id/district-council/south-lakeland,30/11/2014,Leisure Centres (incl Pools),Cultural Environmental Regulatory & Planning Services,http://opendatacommunities.org/def/concept/finance/sercop/objective/104,NPS GROUP LTD,6614601,29/09/2014,43818,897.95,,No description recorded,"Works - Construction, Repair & Maintenance",390000
South Lakeland District Council,http://opendatacommunities.org/id/district-council/south-lakeland,30/11/2014,Social Enterprise Admin,Cultural Environmental Regulatory & Planning Services,http://opendatacommunities.org/def/concept/finance/sercop/objective/104,Matchtech,2526418,29/09/2014,43958,1068.19,0,TO SUPPLY DEVELOPMENT CONTROL TEAM,Consultancy,150000
South Lakeland District Council,http://opendatacommunities.org/id/district-council/south-lakeland,30/11/2014,Lake Windermere,Cultural Environmental Regulatory & Planning Services,http://opendatacommunities.org/def/concept/finance/sercop/objective/104,LAKE WARDEN BOAT RFDS/PERMITS BACS,,29/09/2014,44028,390.78,,No description recorded,Arts & Leisure Services,290000
South Lakeland District Council,http://opendatacommunities.org/id/district-council/south-lakeland,30/11/2014,Public Halls,Cultural Environmental Regulatory & Planning Services,http://opendatacommunities.org/def/concept/finance/sercop/objective/104,Building Accessories Supplies,,29/09/2014,44030,380,,No description recorded,"Works - Construction, Repair & Maintenance",390000
South Lakeland District Council,http://opendatacommunities.org/id/district-council/south-lakeland,30/11/2014,Social Enterprise Admin,Cultural Environmental Regulatory & Planning Services,http://opendatacommunities.org/def/concept/finance/sercop/objective/104,Matchtech,2526418,29/09/2014,44076,1068.19,0,TO SUPPLY DEVELOPMENT CONTROL TEAM,Consultancy,150000
South Lakeland District Council,http://opendatacommunities.org/id/district-council/south-lakeland,30/11/2014,Car Parks,Highways & Transport Services,http://opendatacommunities.org/def/concept/finance/sercop/objective/107,NPS GROUP LTD,6614601,29/09/2014,43817,494.67,,No description recorded,Street & Traffic Management,350000
South Lakeland District Council,http://opendatacommunities.org/id/district-council/south-lakeland,30/11/2014,Car Parks,Highways & Transport Services,http://opendatacommunities.org/def/concept/finance/sercop/objective/107,NPS GROUP LTD,6614601,29/09/2014,43817,494.67,,No description recorded,Street & Traffic Management,350000
South Lakeland District Council,http://opendatacommunities.org/id/district-council/south-lakeland,30/11/2014,Business Support Community Services,Housing Services,http://opendatacommunities.org/def/concept/finance/sercop/objective/108,James Andrews Recruitment Solutions,6834852,29/09/2014,44027,918.75,0,Payment for John Hunter,Consultancy,150000
South Lakeland District Council,http://opendatacommunities.org/id/district-council/south-lakeland,30/11/2014,Social Enterprise Admin,Housing,http://opendatacommunities.org/def/concept/finance/sercop/objective/108,CONTINENTAL LANDSCAPES LTD,2108452,29/09/2014,44042,11494.5,0,"Castle Estate Play Area, Kendal",Vehicle Management,380000
South Lakeland District Council,http://opendatacommunities.org/id/district-council/south-lakeland,30/11/2014,Business Support Community Services,Housing Services,http://opendatacommunities.org/def/concept/finance/sercop/objective/108,Landlord,,29/09/2014,44062,480,0,Monthly rent,Social Community Care Supplies & Services,410000
South Lakeland District Council,http://opendatacommunities.org/id/district-council/south-lakeland,30/11/2014,Business Support Community Services,Housing Services,http://opendatacommunities.org/def/concept/finance/sercop/objective/108,Landlord,,29/09/2014,44063,625,0,Monthly rent,Social Community Care Supplies & Services,410000
South Lakeland District Council,http://opendatacommunities.org/id/district-council/south-lakeland,30/11/2014,Business Support Community Services,Housing Services,http://opendatacommunities.org/def/concept/finance/sercop/objective/108,Landlord,,29/09/2014,44064,500,0,Monthly rent,Social Community Care Supplies & Services,410000
South Lakeland District Council,http://opendatacommunities.org/id/district-council/south-lakeland,30/11/2014,Business Support Community Services,Housing Services,http://opendatacommunities.org/def/concept/finance/sercop/objective/108,Landlord,,29/09/2014,44065,500,0,Monthly rent,Social Community Care Supplies & Services,410000
South Lakeland District Council,http://opendatacommunities.org/id/district-council/south-lakeland,30/11/2014,Business Support Community Services,Housing Services,http://opendatacommunities.org/def/concept/finance/sercop/objective/108,Landlord,,29/09/2014,44066,400,0,Monthly rent,Social Community Care Supplies & Services,410000
South Lakeland District Council,http://opendatacommunities.org/id/district-council/south-lakeland,30/11/2014,Business Support Community Services,Housing Services,http://opendatacommunities.org/def/concept/finance/sercop/objective/108,Landlord,,29/09/2014,44067,350,0,Monthly rent,Social Community Care Supplies & Services,410000
South Lakeland District Council,http://opendatacommunities.org/id/district-council/south-lakeland,30/11/2014,Business Support Community Services,Housing Services,http://opendatacommunities.org/def/concept/finance/sercop/objective/108,Landlord,7009105,29/09/2014,44068,480,0,Monthly rent,Social Community Care Supplies & Services,410000
South Lakeland District Council,http://opendatacommunities.org/id/district-council/south-lakeland,30/11/2014,Business Support Community Services,Housing Services,http://opendatacommunities.org/def/concept/finance/sercop/objective/108,Landlord,,29/09/2014,44069,475,0,Monthly rent,Social Community Care Supplies & Services,410000
South Lakeland District Council,http://opendatacommunities.org/id/district-council/south-lakeland,30/11/2014,Business Support Community Services,Housing Services,http://opendatacommunities.org/def/concept/finance/sercop/objective/108,Landlord,,29/09/2014,44070,600,0,Monthly rent,Social Community Care Supplies & Services,410000
South Lakeland District Council,http://opendatacommunities.org/id/district-council/south-lakeland,30/11/2014,Business Support Community Services,Housing Services,http://opendatacommunities.org/def/concept/finance/sercop/objective/108,Landlord,,29/09/2014,44071,500,0,Monthly rent,Social Community Care Supplies & Services,410000
South Lakeland District Council,http://opendatacommunities.org/id/district-council/south-lakeland,30/11/2014,Business Support Community Services,Housing Services,http://opendatacommunities.org/def/concept/finance/sercop/objective/108,Landlord,,29/09/2014,44072,410,0,Monthly rent,Social Community Care Supplies & Services,410000
South Lakeland District Council,http://opendatacommunities.org/id/district-council/south-lakeland,30/11/2014,Business Support Community Services,Housing Services,http://opendatacommunities.org/def/concept/finance/sercop/objective/108,Landlord,,29/09/2014,44073,625,0,Monthly rent,Social Community Care Supplies & Services,410000
South Lakeland District Council,http://opendatacommunities.org/id/district-council/south-lakeland,30/11/2014,Business Support Community Services,Housing Services,http://opendatacommunities.org/def/concept/finance/sercop/objective/108,IMPACT HOUSING ASSOCIATION LTD,IP21411R,29/09/2014,44074,799.5,0,Monthly rent ,Social Community Care Supplies & Services,410000
South Lakeland District Council,http://opendatacommunities.org/id/district-council/south-lakeland,30/11/2014,Business Support Community Services,Internal Trading Accounts,,ATV CONTRACT SERVICES,,01/10/2014,43891,8487.5,0,Weed Spraying,Facilities & Management Services,190000
South Lakeland District Council,http://opendatacommunities.org/id/district-council/south-lakeland,30/11/2014,Business Support Community Services,Internal Trading Accounts,,BPI RECYCLED PRODUCTS,350729,01/10/2014,43893,271,0,"FL0034. Heavy Duty Bin Liner. 27"" x 46""",Cleaning & Janitorial,130000
South Lakeland District Council,http://opendatacommunities.org/id/district-council/south-lakeland,30/11/2014,Business Support Community Services,Internal Trading Accounts,,ARCO LIMITED,133804,01/10/2014,43964,355.8,0,Glass cleaner,Clothing,140000
South Lakeland District Council,http://opendatacommunities.org/id/district-council/south-lakeland,30/11/2014,Sundry Properties,External Trading Accounts,,KENDAL COLLEGE,,01/10/2014,44032,1600,,No description recorded,"Works - Construction, Repair & Maintenance",390000
South Lakeland District Council,http://opendatacommunities.org/id/district-council/south-lakeland,30/11/2014,Business Support Community Services,Internal Trading Accounts,,BRIAN ARMISTEAD LTD T/A SINKFALL RECYCLI,4133280,01/10/2014,44033,1398.8,0,Green waste tipping - April (estimated),Environmental Services,180000
South Lakeland District Council,http://opendatacommunities.org/id/district-council/south-lakeland,30/11/2014,Holding Accounts,SLDC as Agent,,ULVERSTON AMATEUR OPERATIC SOCIETY,,01/10/2014,44127,6387.5,,No description recorded,Financial Services,200000
South Lakeland District Council,http://opendatacommunities.org/id/district-council/south-lakeland,30/11/2014,Human Resources,Central Services,http://opendatacommunities.org/def/concept/finance/sercop/objective/102,Christopher Sutcliffe,,01/10/2014,43875,320,0,Counselling sessions carried out,Healthcare,310000
South Lakeland District Council,http://opendatacommunities.org/id/district-council/south-lakeland,30/11/2014,Customer Services,Central Services,http://opendatacommunities.org/def/concept/finance/sercop/objective/102,SCK WEB WORKS LTD,6994365,01/10/2014,43888,5000,0,Review and Re-design of SLDC Website,Consultancy,150000
South Lakeland District Council,http://opendatacommunities.org/id/district-council/south-lakeland,30/11/2014,Social Enterprise Admin,Central Services,http://opendatacommunities.org/def/concept/finance/sercop/objective/102,Masterstaff Limited,2777593,01/10/2014,43918,432.83,0,T0 SUPPLY LOCAL LAND CHARGES,Consultancy,150000
South Lakeland District Council,http://opendatacommunities.org/id/district-council/south-lakeland,30/11/2014,Financial Services,Central Services,http://opendatacommunities.org/def/concept/finance/sercop/objective/102,ZURICH MUNICIPAL,,01/10/2014,44046,659,0,Zurich training days October 20-22 2014,Education,170000
South Lakeland District Council,http://opendatacommunities.org/id/district-council/south-lakeland,30/11/2014,Development Implementation,Cultural Environmental Regulatory & Planning Services,http://opendatacommunities.org/def/concept/finance/sercop/objective/104,KENDAL COLLEGE,,01/10/2014,43887,51974,0,Management Fee for Kendal Museum,Financial Services,200000
South Lakeland District Council,http://opendatacommunities.org/id/district-council/south-lakeland,30/11/2014,Social Enterprise Admin,Cultural Environmental Regulatory & Planning Services,http://opendatacommunities.org/def/concept/finance/sercop/objective/104,NEWSQUEST (NORTH WEST) LTD,3102566,01/10/2014,43957,275,0,PUBLIC NOTICES FOR PLANNIG DEPARTMENT.,Facilities & Management Services,190000
South Lakeland District Council,http://opendatacommunities.org/id/district-council/south-lakeland,30/11/2014,Social Enterprise Admin,Cultural Environmental Regulatory & Planning Services,http://opendatacommunities.org/def/concept/finance/sercop/objective/104,CAPITA SYMONDS LTD,3173410,01/10/2014,44049,2270,0,ARBORICULTURE SERVICES PROVIDED BY,Environmental Services,180000
South Lakeland District Council,http://opendatacommunities.org/id/district-council/south-lakeland,30/11/2014,Development Implementation,Cultural Environmental Regulatory & Planning Services,http://opendatacommunities.org/def/concept/finance/sercop/objective/104,NPS GROUP LTD,6614601,01/10/2014,44055,1700,0,Feasibility Work on Grange Lido.,Financial Services,200000
South Lakeland District Council,http://opendatacommunities.org/id/district-council/south-lakeland,30/11/2014,Development Implementation,Cultural Environmental Regulatory & Planning Services,http://opendatacommunities.org/def/concept/finance/sercop/objective/104,GRANGE OVER SANDS TOWN COUNCIL,,01/10/2014,44058,1000,0,Contribution to Shop Front Grant Scheme,Environmental Services,180000
South Lakeland District Council,http://opendatacommunities.org/id/district-council/south-lakeland,30/11/2014,Development Strategy,Cultural Environmental Regulatory & Planning Services,http://opendatacommunities.org/def/concept/finance/sercop/objective/104,Matchtech,2526418,01/10/2014,44075,583.59,0,"12-week contract, 30hrs",Consultancy,150000
South Lakeland District Council,http://opendatacommunities.org/id/district-council/south-lakeland,30/11/2014,Customer Services,Cultural Environmental Regulatory & Planning Services,http://opendatacommunities.org/def/concept/finance/sercop/objective/104,RIGHT 2 WORK,,01/10/2014,44109,2639,0,Bulky waste removal from April 2014 to,Environmental Services,180000
South Lakeland District Council,http://opendatacommunities.org/id/district-council/south-lakeland,30/11/2014,Business Support Community Services,Cultural Environmental Regulatory & Planning Services,http://opendatacommunities.org/def/concept/finance/sercop/objective/104,MILNTHORPE KENNELS & CATTERY,8932302,01/10/2014,44131,2382,0,Stray dog kennelling fees April 20014 -,Environmental Services,180000
South Lakeland District Council,http://opendatacommunities.org/id/district-council/south-lakeland,30/11/2014,Social Enterprise Admin,Highways & Transport Services,http://opendatacommunities.org/def/concept/finance/sercop/objective/107,CURRENCY TECH LTD,4376601,01/10/2014,44045,670,0,Maintenance contract for CTL-301B and,Furniture & Soft Furnishings,210000
South Lakeland District Council,http://opendatacommunities.org/id/district-council/south-lakeland,30/11/2014,Business Support Community Services,Housing Services,http://opendatacommunities.org/def/concept/finance/sercop/objective/108,Landlord,,01/10/2014,44125,433.33,0,Rent in advance payment ,Social Community Care Supplies & Services,410000
South Lakeland District Council,http://opendatacommunities.org/id/district-council/south-lakeland,30/11/2014,Business Support Community Services,Housing Services,http://opendatacommunities.org/def/concept/finance/sercop/objective/108,Landlord,,01/10/2014,44126,300,0,Rent in advance payment ,Social Community Care Supplies & Services,410000
South Lakeland District Council,http://opendatacommunities.org/id/district-council/south-lakeland,30/11/2014,Business Support Community Services,Housing Services,http://opendatacommunities.org/def/concept/finance/sercop/objective/108,Landlord,,01/10/2014,44128,700,0,Rent in advance payment ,Social Community Care Supplies & Services,410000
South Lakeland District Council,http://opendatacommunities.org/id/district-council/south-lakeland,30/11/2014,Business Support Community Services,Housing Services,http://opendatacommunities.org/def/concept/finance/sercop/objective/108,Coverdale Properties,3640574,01/10/2014,44129,480,0,Rent in advance ,Social Community Care Supplies & Services,410000
South Lakeland District Council,http://opendatacommunities.org/id/district-council/south-lakeland,30/11/2014,Development Implementation,Cultural Environmental Regulatory & Planning Services,http://opendatacommunities.org/def/concept/finance/sercop/objective/104,The Rainbow Tavern,,02/10/2014,43953,500,0,Participation in the Kendal Courtesy,Financial Services,200000
South Lakeland District Council,http://opendatacommunities.org/id/district-council/south-lakeland,30/11/2014,Business Support Community Services,Internal Trading Accounts,,DENNIS EAGLE LTD,3794455,06/10/2014,43772,446.4,0,Indicator,Vehicle Management,380000
South Lakeland District Council,http://opendatacommunities.org/id/district-council/south-lakeland,30/11/2014,Business Support Community Services,Internal Trading Accounts,,HAKO MACHINES LIMITED,1414225,06/10/2014,43823,1332.72,0,Labour,Vehicle Management,380000
South Lakeland District Council,http://opendatacommunities.org/id/district-council/south-lakeland,30/11/2014,Business Support Community Services,Internal Trading Accounts,,DENNIS EAGLE LTD,3794455,06/10/2014,43842,1060.54,0,Alma module,Vehicle Management,380000
South Lakeland District Council,http://opendatacommunities.org/id/district-council/south-lakeland,30/11/2014,Business Support Community Services,Internal Trading Accounts,,HAKO MACHINES LIMITED,1414225,06/10/2014,43922,4626.7,0,Hire of KX60 AOS - 2013/14,Vehicle Management,380000
South Lakeland District Council,http://opendatacommunities.org/id/district-council/south-lakeland,30/11/2014,Business Support Community Services,Internal Trading Accounts,,HAKO MACHINES LIMITED,1414225,06/10/2014,43923,5779.54,0,Hire of KX60 AOS - 2013/14,Vehicle Management,380000
South Lakeland District Council,http://opendatacommunities.org/id/district-council/south-lakeland,30/11/2014,Business Support Community Services,Internal Trading Accounts,,HAKO MACHINES LIMITED,1414225,06/10/2014,43924,11559.08,0,Hire of KX60 AOS - 2013/14,Vehicle Management,380000
South Lakeland District Council,http://opendatacommunities.org/id/district-council/south-lakeland,30/11/2014,Business Support Community Services,Internal Trading Accounts,,HAKO MACHINES LIMITED,1414225,06/10/2014,43925,5779.54,0,Hire of KX60 AOS - 2013/14,Vehicle Management,380000
South Lakeland District Council,http://opendatacommunities.org/id/district-council/south-lakeland,30/11/2014,Business Support Community Services,Internal Trading Accounts,,HAKO MACHINES LIMITED,1414225,06/10/2014,43934,446.85,0,Skirts,Vehicle Management,380000
South Lakeland District Council,http://opendatacommunities.org/id/district-council/south-lakeland,30/11/2014,Revenues and Benefits,SLDC as Agent,,ROYAL MAIL GROUP PLC,,06/10/2014,44092,1246.31,0,2014-15  Postal Charges a/c 0198123013,Financial Services,200000
South Lakeland District Council,http://opendatacommunities.org/id/district-council/south-lakeland,30/11/2014,Business Support Community Services,Transport Planning Policy,,PHS GROUP PLC,,06/10/2014,44133,503.77,0,Sanitary facilities at Canal Head,Environmental Services,180000
South Lakeland District Council,http://opendatacommunities.org/id/district-council/south-lakeland,30/11/2014,Business Support Community Services,Internal Trading Accounts,,SOLWAY DAF,1393710,06/10/2014,44158,395.73,0,Brake pads,Vehicle Management,380000
South Lakeland District Council,http://opendatacommunities.org/id/district-council/south-lakeland,30/11/2014,Human Resources,Non-Service Payments,,CYCLESCHEME LTD,5363678,06/10/2014,44178,832.5,0,Cycle LD W249671,Financial Services,200000
South Lakeland District Council,http://opendatacommunities.org/id/district-council/south-lakeland,30/11/2014,Business Support Community Services,Internal Trading Accounts,,Masterstaff Limited,2777593,06/10/2014,44185,429.98,0, September 2014,Consultancy,150000
South Lakeland District Council,http://opendatacommunities.org/id/district-council/south-lakeland,30/11/2014,Business Support Community Services,SLDC as Agent,,JOANNA SMAILES,,06/10/2014,44187,1950,0,"Project Management, Cumbria NSNO &",Financial Services,200000
South Lakeland District Council,http://opendatacommunities.org/id/district-council/south-lakeland,30/11/2014,Human Resources,Non-Service Payments,,BUSY BEES BENEFITS LTD,6758298,06/10/2014,44190,696,0,CHILD CARE VOUCHERS - APPROX 500.00 PER,Financial Services,200000
South Lakeland District Council,http://opendatacommunities.org/id/district-council/south-lakeland,30/11/2014,Customer Services,Central Services,http://opendatacommunities.org/def/concept/finance/sercop/objective/102,PHS GROUP PLC,,06/10/2014,43528,262.08,0,water dispense service 1/08/2014 to,Financial Services,200000
South Lakeland District Council,http://opendatacommunities.org/id/district-council/south-lakeland,30/11/2014,Electoral Services,Central Services,http://opendatacommunities.org/def/concept/finance/sercop/objective/102,SCI PRINT LTD,,06/10/2014,43919,1291.62,0,Postage for Windermere By-Election Poll,Mail Services,300000
South Lakeland District Council,http://opendatacommunities.org/id/district-council/south-lakeland,30/11/2014,Financial Services,Central Services,http://opendatacommunities.org/def/concept/finance/sercop/objective/102,CUMBRIA LGPS,,06/10/2014,43966,750,0,To request IAS19/FRS17 calculation from,Financial Services,200000
South Lakeland District Council,http://opendatacommunities.org/id/district-council/south-lakeland,30/11/2014,Social Enterprise Admin,Central Services,http://opendatacommunities.org/def/concept/finance/sercop/objective/102,ADECCO UK LIMITED,593232,06/10/2014,44139,501.55,0,TEMPORARY GAZETTEER OFFICER,Consultancy,150000
South Lakeland District Council,http://opendatacommunities.org/id/district-council/south-lakeland,30/11/2014,Democratic Services,Cultural Environmental Regulatory & Planning Services,http://opendatacommunities.org/def/concept/finance/sercop/objective/104,CUMBRIA COUNTY COUNCIL,,06/10/2014,43901,350,0,Contribution towards Sports Awards -,Consultancy,150000
South Lakeland District Council,http://opendatacommunities.org/id/district-council/south-lakeland,30/11/2014,Business Support Community Services,Cultural Environmental Regulatory & Planning Services,http://opendatacommunities.org/def/concept/finance/sercop/objective/104,KEEP BRITAIN TIDY,3496361,06/10/2014,43921,1995,0,Expert Membership partnership agreement,Financial Services,200000
South Lakeland District Council,http://opendatacommunities.org/id/district-council/south-lakeland,30/11/2014,Development Implementation,Cultural Environmental Regulatory & Planning Services,http://opendatacommunities.org/def/concept/finance/sercop/objective/104,GATES TRAVEL SERVICE,,06/10/2014,43940,574.15,0,Travel arragements for 7 people for,Environmental Services,180000
South Lakeland District Council,http://opendatacommunities.org/id/district-council/south-lakeland,30/11/2014,Business Support Community Services,Cultural Environmental Regulatory & Planning Services,http://opendatacommunities.org/def/concept/finance/sercop/objective/104,Eunomia Research & Consulting Ltd,4150627,06/10/2014,44043,12203.77,0,In respect of support work 2013/14 as,Consultancy,150000
South Lakeland District Council,http://opendatacommunities.org/id/district-council/south-lakeland,30/11/2014,Development Implementation,Cultural Environmental Regulatory & Planning Services,http://opendatacommunities.org/def/concept/finance/sercop/objective/104,NPS GROUP LTD,6614601,06/10/2014,44056,498.25,0,Feasibility Work on Grange Lido.,Financial Services,200000
South Lakeland District Council,http://opendatacommunities.org/id/district-council/south-lakeland,30/11/2014,Parks and Open Spaces,Cultural Environmental Regulatory & Planning Services,http://opendatacommunities.org/def/concept/finance/sercop/objective/104,BRUCE REDPATH LTD,4723453,06/10/2014,44120,342.4,,No description recorded,"Works - Construction, Repair & Maintenance",390000
South Lakeland District Council,http://opendatacommunities.org/id/district-council/south-lakeland,30/11/2014,Revenues and Benefits,Highways & Transport Services,http://opendatacommunities.org/def/concept/finance/sercop/objective/107,LOOMIS UK LTD,3200432,06/10/2014,44083,914.6,0,2014 - 2015,Consultancy,150000
South Lakeland District Council,http://opendatacommunities.org/id/district-council/south-lakeland,30/11/2014,Environment and Housing,Housing,http://opendatacommunities.org/def/concept/finance/sercop/objective/108,SOUTH LAKES HOUSING,IP031419,06/10/2014,43815,20000,0,Empty Homes Affordable Housing grant for,Financial Services,200000
South Lakeland District Council,http://opendatacommunities.org/id/district-council/south-lakeland,30/11/2014,Business Support Community Services,Housing Services,http://opendatacommunities.org/def/concept/finance/sercop/objective/108,MILNE MOSER SOLICITORS,,06/10/2014,44179,1170,0,Deposit,Social Community Care Supplies & Services,410000
South Lakeland District Council,http://opendatacommunities.org/id/district-council/south-lakeland,30/11/2014,Social Enterprise Admin,Culture and Related Serv,,CONTINENTAL LANDSCAPES LTD,2108452,08/10/2014,44081,1900,0,Nobles Rest Project - topographical,Financial Services,200000
South Lakeland District Council,http://opendatacommunities.org/id/district-council/south-lakeland,30/11/2014,SLDC Depots,Transport Planning Policy,,CRUDEN PROPERTY SERVICES LTD,3851237,08/10/2014,44094,774.36,,No description recorded,"Works - Construction, Repair & Maintenance",390000
South Lakeland District Council,http://opendatacommunities.org/id/district-council/south-lakeland,30/11/2014,Sundry Properties,External Trading Accounts,,CRUDEN PROPERTY SERVICES LTD,3851237,08/10/2014,44094,651.3,,No description recorded,"Works - Construction, Repair & Maintenance",390000
South Lakeland District Council,http://opendatacommunities.org/id/district-council/south-lakeland,30/11/2014,Sundry Properties,External Trading Accounts,,CRUDEN PROPERTY SERVICES LTD,3851237,08/10/2014,44094,519.14,,No description recorded,"Works - Construction, Repair & Maintenance",390000
South Lakeland District Council,http://opendatacommunities.org/id/district-council/south-lakeland,30/11/2014,Sundry Properties,External Trading Accounts,,CRUDEN PROPERTY SERVICES LTD,3851237,08/10/2014,44094,363.04,,No description recorded,"Works - Construction, Repair & Maintenance",390000
South Lakeland District Council,http://opendatacommunities.org/id/district-council/south-lakeland,30/11/2014,Sundry Properties,External Trading Accounts,,CRUDEN PROPERTY SERVICES LTD,3851237,08/10/2014,44095,392.73,,No description recorded,"Works - Construction, Repair & Maintenance",390000
South Lakeland District Council,http://opendatacommunities.org/id/district-council/south-lakeland,30/11/2014,Sundry Properties,External Trading Accounts,,CRUDEN PROPERTY SERVICES LTD,3851237,08/10/2014,44095,2669.85,,No description recorded,"Works - Construction, Repair & Maintenance",390000
South Lakeland District Council,http://opendatacommunities.org/id/district-council/south-lakeland,30/11/2014,Development Implementation,SLDC as Agent,,DHE ASSOCIATES,,08/10/2014,44143,1500,0,Admin work for Japan Forum 1st Oct 14 to,Financial Services,200000
South Lakeland District Council,http://opendatacommunities.org/id/district-council/south-lakeland,30/11/2014,Business Support Community Services,Internal Trading Accounts,,BRIAN ARMISTEAD LTD T/A SINKFALL RECYCLI,4133280,08/10/2014,44152,1131.6,0,Green waste tipping - April (estimated),Environmental Services,180000
South Lakeland District Council,http://opendatacommunities.org/id/district-council/south-lakeland,30/11/2014,Revenues and Benefits,SLDC as Agent,,ROYAL MAIL GROUP PLC,,08/10/2014,44196,1546.82,0,2014-15  Postal Charges a/c 0198123013,Financial Services,200000
South Lakeland District Council,http://opendatacommunities.org/id/district-council/south-lakeland,30/11/2014,Debtors,Non-Service Payments,,SOUTH LAKES HOUSING RENT A/C,,08/10/2014,44242,2986.67,,No description recorded,Housing Management,250000
South Lakeland District Council,http://opendatacommunities.org/id/district-council/south-lakeland,30/11/2014,Financial Services,Internal Trading Accounts,,ZURICH MUNICIPAL,,08/10/2014,44243,250,0,Ins Excess  I9209/1890 Tweddell,Financial Services,200000
South Lakeland District Council,http://opendatacommunities.org/id/district-council/south-lakeland,30/11/2014,Debtors,Non-Service Payments,,SOUTH LAKES HOUSING RENT A/C,,08/10/2014,44262,7501.65,,No description recorded,Housing Management,250000
South Lakeland District Council,http://opendatacommunities.org/id/district-council/south-lakeland,30/11/2014,Sundry Properties,External Trading Accounts,,NPS GROUP LTD,6614601,08/10/2014,44264,1481.78,,No description recorded,"Works - Construction, Repair & Maintenance",390000
South Lakeland District Council,http://opendatacommunities.org/id/district-council/south-lakeland,30/11/2014,Industrial Units Tenants,External Trading Accounts,,NPS GROUP LTD,6614601,08/10/2014,44264,296.36,,No description recorded,"Works - Construction, Repair & Maintenance",390000
South Lakeland District Council,http://opendatacommunities.org/id/district-council/south-lakeland,30/11/2014,Business Support Community Services,Culture and Related Serv,,North Country Leisure,3683103,08/10/2014,44285,120627.97,0,Works to Kendal and Ulverston Leisure,Financial Services,200000
South Lakeland District Council,http://opendatacommunities.org/id/district-council/south-lakeland,30/11/2014,Financial Services,SLDC as Agent,,E H BOOTH & CO LTD,,08/10/2014,44294,96578.52,0,July - September 2014 Income,Financial Services,200000
South Lakeland District Council,http://opendatacommunities.org/id/district-council/south-lakeland,30/11/2014,Financial Services,SLDC as Agent,,E H BOOTH & CO LTD,,08/10/2014,44294,10889.38,0,July - September 2014 Income,Financial Services,200000
South Lakeland District Council,http://opendatacommunities.org/id/district-council/south-lakeland,30/11/2014,Financial Services,SLDC as Agent,,E H BOOTH & CO LTD,,08/10/2014,44294,38026.52,0,July - September 2014 Income,Financial Services,200000
South Lakeland District Council,http://opendatacommunities.org/id/district-council/south-lakeland,30/11/2014,Human Resources,Central Services,http://opendatacommunities.org/def/concept/finance/sercop/objective/102,CUMBRIAN NEWSPAPERS LIMITED,2729,08/10/2014,43969,953.9,0,Bronze Package,Human Resources,260000
South Lakeland District Council,http://opendatacommunities.org/id/district-council/south-lakeland,30/11/2014,Revenues and Benefits,Central Services,http://opendatacommunities.org/def/concept/finance/sercop/objective/102,MERITEC LTD,3224622,08/10/2014,44002,558,0,RAB Processing Contract and Agency,Consultancy,150000
South Lakeland District Council,http://opendatacommunities.org/id/district-council/south-lakeland,30/11/2014,Social Enterprise Admin,Central Services,http://opendatacommunities.org/def/concept/finance/sercop/objective/102,Southerns Office Interiors Ltd,3478080,08/10/2014,44021,429.9,0,2 x single pole monitor arm,Furniture & Soft Furnishings,210000
South Lakeland District Council,http://opendatacommunities.org/id/district-council/south-lakeland,30/11/2014,Financial Services,Central Services,http://opendatacommunities.org/def/concept/finance/sercop/objective/102,AUDIT COMMISSION,,08/10/2014,44054,2200,0,NFI 2014/15 core fee.,Financial Services,200000
South Lakeland District Council,http://opendatacommunities.org/id/district-council/south-lakeland,30/11/2014,Customer Services,Central Services,http://opendatacommunities.org/def/concept/finance/sercop/objective/102,SHRED-IT,4047194,08/10/2014,44084,266.5,0,Removal of confidential waste from South,Stationery,340000
South Lakeland District Council,http://opendatacommunities.org/id/district-council/south-lakeland,30/11/2014,Offices,Central Services,http://opendatacommunities.org/def/concept/finance/sercop/objective/102,CRUDEN PROPERTY SERVICES LTD,3851237,08/10/2014,44094,350.49,,No description recorded,"Works - Construction, Repair & Maintenance",390000
South Lakeland District Council,http://opendatacommunities.org/id/district-council/south-lakeland,30/11/2014,Financial Services,Central Services,http://opendatacommunities.org/def/concept/finance/sercop/objective/102,Capita Secure Information Solutions Ltd,1593831,08/10/2014,44105,2636.42,0,Purchase Ordering software maintenance,Information Communication Technology,270000
South Lakeland District Council,http://opendatacommunities.org/id/district-council/south-lakeland,30/11/2014,Human Resources,Central Services,http://opendatacommunities.org/def/concept/finance/sercop/objective/102,EMPLOYMENT PAGES LTD,7363099,08/10/2014,44177,489.6,0,"Advertisements for Shared ICT Officer,",Human Resources,260000
South Lakeland District Council,http://opendatacommunities.org/id/district-council/south-lakeland,30/11/2014,ICT Group,Central Services,http://opendatacommunities.org/def/concept/finance/sercop/objective/102,SOCITM LIMITED,4396808,08/10/2014,44192,275,0,Website accessibility for the mobile,Education,170000
South Lakeland District Council,http://opendatacommunities.org/id/district-council/south-lakeland,30/11/2014,Human Resources,Central Services,http://opendatacommunities.org/def/concept/finance/sercop/objective/102,Cumberland & Westmorland Herald,33217,08/10/2014,44230,458,0,Job advert for ICT Officer - Sat 20th,Human Resources,260000
South Lakeland District Council,http://opendatacommunities.org/id/district-council/south-lakeland,30/11/2014,Electoral Services,Central Services,http://opendatacommunities.org/def/concept/finance/sercop/objective/102,HALAROSE LIMITED,1362834,08/10/2014,44231,420.3,0,"IER Training Shared with Eden, Copeland",Mail Services,300000
South Lakeland District Council,http://opendatacommunities.org/id/district-council/south-lakeland,30/11/2014,ICT Group,Central Services,http://opendatacommunities.org/def/concept/finance/sercop/objective/102,CABLE & WIRELESS UK (VODAFONE),,08/10/2014,44244,2912.87,0,"GSi Convergence Framework, MSP Dedicated",Information Communication Technology,270000
South Lakeland District Council,http://opendatacommunities.org/id/district-council/south-lakeland,30/11/2014,Revenues and Benefits,Central Services,http://opendatacommunities.org/def/concept/finance/sercop/objective/102,BADENOCH & CLARK,1356186,08/10/2014,44252,266.7,0,Revs and Bens,Consultancy,150000
South Lakeland District Council,http://opendatacommunities.org/id/district-council/south-lakeland,30/11/2014,Legal Services,Central Services,http://opendatacommunities.org/def/concept/finance/sercop/objective/102,VENN GROUP RECRUITMENT SOLUTIONS,,08/10/2014,44293,499.66,0,Wages ,Consultancy,150000
South Lakeland District Council,http://opendatacommunities.org/id/district-council/south-lakeland,30/11/2014,Social Enterprise Admin,Cultural Environmental Regulatory & Planning Services,http://opendatacommunities.org/def/concept/finance/sercop/objective/104,Matchtech,2526418,08/10/2014,43804,1068.19,0,TO SUPPLY DEVELOPMENT CONTROL TEAM,Consultancy,150000
South Lakeland District Council,http://opendatacommunities.org/id/district-council/south-lakeland,30/11/2014,Social Enterprise Admin,Cultural Environmental Regulatory & Planning Services,http://opendatacommunities.org/def/concept/finance/sercop/objective/104,BARTON GRANGE LANDSCAPES,598953,08/10/2014,44004,5217,0,Remove existing bow top fencing and,Sports & Playground Equipment & Maintenance,330000
South Lakeland District Council,http://opendatacommunities.org/id/district-council/south-lakeland,30/11/2014,Coronation Hall,Cultural Environmental Regulatory & Planning Services,http://opendatacommunities.org/def/concept/finance/sercop/objective/104,FLASHLIGHT,8588039,08/10/2014,44010,458.84,0,Par 62 lamps,Furniture & Soft Furnishings,210000
South Lakeland District Council,http://opendatacommunities.org/id/district-council/south-lakeland,30/11/2014,Development Implementation,Cultural Environmental Regulatory & Planning Services,http://opendatacommunities.org/def/concept/finance/sercop/objective/104,Southerns Office Interiors Ltd,3478080,08/10/2014,44020,2370.6,0,Furniture for Kendal Town Hall,Furniture & Soft Furnishings,210000
South Lakeland District Council,http://opendatacommunities.org/id/district-council/south-lakeland,30/11/2014,Development Implementation,Cultural Environmental Regulatory & Planning Services,http://opendatacommunities.org/def/concept/finance/sercop/objective/104,Crooklands Hotel Limited,4534731,08/10/2014,44026,317.92,0,Business Forum meeting on 23rd September,Environmental Services,180000
South Lakeland District Council,http://opendatacommunities.org/id/district-council/south-lakeland,30/11/2014,Public Halls,Cultural Environmental Regulatory & Planning Services,http://opendatacommunities.org/def/concept/finance/sercop/objective/104,CRUDEN PROPERTY SERVICES LTD,3851237,08/10/2014,44094,718.28,,No description recorded,"Works - Construction, Repair & Maintenance",390000
South Lakeland District Council,http://opendatacommunities.org/id/district-council/south-lakeland,30/11/2014,Public Halls,Cultural Environmental Regulatory & Planning Services,http://opendatacommunities.org/def/concept/finance/sercop/objective/104,CRUDEN PROPERTY SERVICES LTD,3851237,08/10/2014,44094,250.81,,No description recorded,"Works - Construction, Repair & Maintenance",390000
South Lakeland District Council,http://opendatacommunities.org/id/district-council/south-lakeland,30/11/2014,Cemeteries,Cultural Environmental Regulatory & Planning Services,http://opendatacommunities.org/def/concept/finance/sercop/objective/104,CRUDEN PROPERTY SERVICES LTD,3851237,08/10/2014,44095,759.44,,No description recorded,"Works - Construction, Repair & Maintenance",390000
South Lakeland District Council,http://opendatacommunities.org/id/district-council/south-lakeland,30/11/2014,Development Strategy,Cultural Environmental Regulatory & Planning Services,http://opendatacommunities.org/def/concept/finance/sercop/objective/104,NEWSQUEST (NORTH WEST) LTD,3102566,08/10/2014,44103,275,0,Public notice (about CIL) in Westmorland,Facilities & Management Services,190000
South Lakeland District Council,http://opendatacommunities.org/id/district-council/south-lakeland,30/11/2014,Lake Wardens,Cultural Environmental Regulatory & Planning Services,http://opendatacommunities.org/def/concept/finance/sercop/objective/104,SHORROCK TRICHEM,4179799,08/10/2014,44150,303.84,0,6 x Sunflower 400ml Air Freshers.,Cleaning & Janitorial,130000
South Lakeland District Council,http://opendatacommunities.org/id/district-council/south-lakeland,30/11/2014,Social Enterprise Admin,Cultural Environmental Regulatory & Planning Services,http://opendatacommunities.org/def/concept/finance/sercop/objective/104,Matchtech,2526418,08/10/2014,44213,1068.19,0,TO SUPPLY DEVELOPMENT CONTROL TEAM,Consultancy,150000
South Lakeland District Council,http://opendatacommunities.org/id/district-council/south-lakeland,30/11/2014,Policy & Partnerships,Cultural Environmental Regulatory & Planning Services,http://opendatacommunities.org/def/concept/finance/sercop/objective/104,GRANTS- MISCELLANEOUS,,08/10/2014,44258,500,0,Improvement of Storth Playing Fields,Financial Services,200000
South Lakeland District Council,http://opendatacommunities.org/id/district-council/south-lakeland,30/11/2014,Cemeteries,Cultural Environmental Regulatory & Planning Services,http://opendatacommunities.org/def/concept/finance/sercop/objective/104,NPS GROUP LTD,6614601,08/10/2014,44264,666.81,,No description recorded,"Works - Construction, Repair & Maintenance",390000
South Lakeland District Council,http://opendatacommunities.org/id/district-council/south-lakeland,30/11/2014,Parks and Open Spaces,Cultural Environmental Regulatory & Planning Services,http://opendatacommunities.org/def/concept/finance/sercop/objective/104,NPS GROUP LTD,6614601,08/10/2014,44264,1111.35,,No description recorded,"Works - Construction, Repair & Maintenance",390000
South Lakeland District Council,http://opendatacommunities.org/id/district-council/south-lakeland,30/11/2014,Policy & Partnerships,Cultural Environmental Regulatory & Planning Services,http://opendatacommunities.org/def/concept/finance/sercop/objective/104,GRANTS- MISCELLANEOUS,,08/10/2014,44283,978,0,Holme Sports field Toilet repairs block,Financial Services,200000
South Lakeland District Council,http://opendatacommunities.org/id/district-council/south-lakeland,30/11/2014,Social Enterprise Admin,Cultural Environmental Regulatory & Planning Services,http://opendatacommunities.org/def/concept/finance/sercop/objective/104,North Country Leisure,3683103,08/10/2014,44315,161873,0,Bid 2014/2015,Arts & Leisure Services,290000
South Lakeland District Council,http://opendatacommunities.org/id/district-council/south-lakeland,30/11/2014,Social Enterprise Admin,Highways & Transport Services,http://opendatacommunities.org/def/concept/finance/sercop/objective/107,ACS BPS LTD,,08/10/2014,44052,350,0,Change tariffs on Pay on Foot machines,Street & Traffic Management,350000
South Lakeland District Council,http://opendatacommunities.org/id/district-council/south-lakeland,30/11/2014,Social Enterprise Admin,Highways & Transport Services,http://opendatacommunities.org/def/concept/finance/sercop/objective/107,BRITISH PARKING ASSOCIATION,979689,08/10/2014,44053,857,0,BPA Membership from October 2014 to Sept,Financial Services,200000
South Lakeland District Council,http://opendatacommunities.org/id/district-council/south-lakeland,30/11/2014,Car Parks,Highways & Transport Services,http://opendatacommunities.org/def/concept/finance/sercop/objective/107,CRUDEN PROPERTY SERVICES LTD,3851237,08/10/2014,44094,1930,,No description recorded,Street & Traffic Management,350000
South Lakeland District Council,http://opendatacommunities.org/id/district-council/south-lakeland,30/11/2014,Car Parks,Highways & Transport Services,http://opendatacommunities.org/def/concept/finance/sercop/objective/107,CRUDEN PROPERTY SERVICES LTD,3851237,08/10/2014,44094,912.47,,No description recorded,"Works - Construction, Repair & Maintenance",390000
South Lakeland District Council,http://opendatacommunities.org/id/district-council/south-lakeland,30/11/2014,Car Parks,Highways & Transport Services,http://opendatacommunities.org/def/concept/finance/sercop/objective/107,CRUDEN PROPERTY SERVICES LTD,3851237,08/10/2014,44094,543.52,,No description recorded,Street & Traffic Management,350000
South Lakeland District Council,http://opendatacommunities.org/id/district-council/south-lakeland,30/11/2014,Car Parks,Highways & Transport Services,http://opendatacommunities.org/def/concept/finance/sercop/objective/107,CRUDEN PROPERTY SERVICES LTD,3851237,08/10/2014,44095,671.02,,No description recorded,"Works - Construction, Repair & Maintenance",390000
South Lakeland District Council,http://opendatacommunities.org/id/district-council/south-lakeland,30/11/2014,Financial Services,Highways & Transport Services,http://opendatacommunities.org/def/concept/finance/sercop/objective/107,ZURICH MUNICIPAL,,08/10/2014,44243,300,0,Ins Excess  I9209/1890 ,Financial Services,200000
South Lakeland District Council,http://opendatacommunities.org/id/district-council/south-lakeland,30/11/2014,Car Parks,Highways & Transport Services,http://opendatacommunities.org/def/concept/finance/sercop/objective/107,NPS GROUP LTD,6614601,08/10/2014,44264,740.9,,No description recorded,"Works - Construction, Repair & Maintenance",390000
South Lakeland District Council,http://opendatacommunities.org/id/district-council/south-lakeland,30/11/2014,Car Parks,Highways & Transport Services,http://opendatacommunities.org/def/concept/finance/sercop/objective/107,NPS GROUP LTD,6614601,08/10/2014,44264,592.72,,No description recorded,"Works - Construction, Repair & Maintenance",390000
South Lakeland District Council,http://opendatacommunities.org/id/district-council/south-lakeland,30/11/2014,Business Support Community Services,Housing Services,http://opendatacommunities.org/def/concept/finance/sercop/objective/108,James Andrews Recruitment Solutions,6834852,08/10/2014,44142,900,0,Payment ,Consultancy,150000
South Lakeland District Council,http://opendatacommunities.org/id/district-council/south-lakeland,30/11/2014,Business Support Community Services,Housing Services,http://opendatacommunities.org/def/concept/finance/sercop/objective/108,Landlord,,08/10/2014,44286,500,0,Rent payment ,Social Community Care Supplies & Services,410000
South Lakeland District Council,http://opendatacommunities.org/id/district-council/south-lakeland,30/11/2014,Business Support Community Services,Housing Services,http://opendatacommunities.org/def/concept/finance/sercop/objective/108,Landlord,,08/10/2014,44287,280,0,Rent in advance ,Social Community Care Supplies & Services,410000
South Lakeland District Council,http://opendatacommunities.org/id/district-council/south-lakeland,30/11/2014,Business Support Community Services,Housing Services,http://opendatacommunities.org/def/concept/finance/sercop/objective/108,Landlord,,08/10/2014,44288,520,0,Monthly rent ,Social Community Care Supplies & Services,410000
South Lakeland District Council,http://opendatacommunities.org/id/district-council/south-lakeland,30/11/2014,Business Support Community Services,Housing Services,http://opendatacommunities.org/def/concept/finance/sercop/objective/108,Landlord,,08/10/2014,44289,400,0,Monthly rent ,Social Community Care Supplies & Services,410000
South Lakeland District Council,http://opendatacommunities.org/id/district-council/south-lakeland,30/11/2014,Business Support Community Services,Housing Services,http://opendatacommunities.org/def/concept/finance/sercop/objective/108,Landlord,,08/10/2014,44290,400,0,Monthly rent ,Social Community Care Supplies & Services,410000
South Lakeland District Council,http://opendatacommunities.org/id/district-council/south-lakeland,30/11/2014,Business Support Community Services,Housing Services,http://opendatacommunities.org/def/concept/finance/sercop/objective/108,Landlord,,08/10/2014,44291,400,0,Monthly rent ,Social Community Care Supplies & Services,410000
South Lakeland District Council,http://opendatacommunities.org/id/district-council/south-lakeland,30/11/2014,Environment and Housing,Housing Services,http://opendatacommunities.org/def/concept/finance/sercop/objective/108,GROWING CONCERNS LANDSCAPING,,08/10/2014,44314,1540.38,0,Payment for Handy Person Scheme,"Works - Construction, Repair & Maintenance",390000
South Lakeland District Council,http://opendatacommunities.org/id/district-council/south-lakeland,30/11/2014,Business Support Community Services,Internal Trading Accounts,,SOLWAY DAF,1393710,13/10/2014,44013,373.39,0,Brake pads,Vehicle Management,380000
South Lakeland District Council,http://opendatacommunities.org/id/district-council/south-lakeland,30/11/2014,Business Support Community Services,Internal Trading Accounts,,ARCO LIMITED,133804,13/10/2014,44170,279.24,0,Eez wipes,Clothing,140000
South Lakeland District Council,http://opendatacommunities.org/id/district-council/south-lakeland,30/11/2014,Business Support Community Services,Internal Trading Accounts,,Harry Park Tyres Ltd,8131208,13/10/2014,44199,412.5,0,Tyres,Vehicle Management,380000
South Lakeland District Council,http://opendatacommunities.org/id/district-council/south-lakeland,30/11/2014,Electoral Services,SLDC as Agent,,CASTLERIGG CONSULTING,6747285,13/10/2014,44236,3685,0,To work create an outline requirements,Consultancy,150000
South Lakeland District Council,http://opendatacommunities.org/id/district-council/south-lakeland,30/11/2014,Human Resources,Non-Service Payments,,COMPUTERSHARE VOUCHER SERVICES LTD,4968447,13/10/2014,44312,672,0,CHULD CARE VOUCHERS - APPROX. 1000.00,Financial Services,200000
South Lakeland District Council,http://opendatacommunities.org/id/district-council/south-lakeland,30/11/2014,Holding Accounts,SLDC as Agent,,BRATHAY TRUST,2814206,13/10/2014,44316,32364.39,,No description recorded,Financial Services,200000
South Lakeland District Council,http://opendatacommunities.org/id/district-council/south-lakeland,30/11/2014,Business Support Community Services,Culture and Related Serv,,North Country Leisure,3683103,13/10/2014,44354,182869.85,0,Works to Kendal and Ulverston Leisure,Financial Services,200000
South Lakeland District Council,http://opendatacommunities.org/id/district-council/south-lakeland,30/11/2014,Business Support Community Services,Internal Trading Accounts,,PROBRUSH T/A NORTHERN MUNICIPAL SPARES L,,13/10/2014,44357,1119.86,0,Brushes,Vehicle Management,380000
South Lakeland District Council,http://opendatacommunities.org/id/district-council/south-lakeland,30/11/2014,Revenues and Benefits,SLDC as Agent,,ROYAL MAIL GROUP PLC,,13/10/2014,44386,1417.56,0,2014-15  Postal Charges a/c 0198123013,Financial Services,200000
South Lakeland District Council,http://opendatacommunities.org/id/district-council/south-lakeland,30/11/2014,Financial Services,SLDC as Agent,,KIRKLAND TRUST (KENDAL),,13/10/2014,44408,4172.4,0,14/15 Kirkland Car Park Income,Financial Services,200000
South Lakeland District Council,http://opendatacommunities.org/id/district-council/south-lakeland,30/11/2014,Financial Services,SLDC as Agent,,LAKELAND ESTATES (AMBLESIDE) LTD,3022544,13/10/2014,44414,17577.55,0,14/15 Millerfield Car Park Income,Financial Services,200000
South Lakeland District Council,http://opendatacommunities.org/id/district-council/south-lakeland,30/11/2014,ICT Group,SLDC as Agent,,CABLE & WIRELESS UK (VODAFONE),,13/10/2014,44415,490.17,0,Call Charges 25 Aug - 25 Sept 2014,Financial Services,200000
South Lakeland District Council,http://opendatacommunities.org/id/district-council/south-lakeland,30/11/2014,Business Support Community Services,Internal Trading Accounts,,Masterstaff Limited,2777593,13/10/2014,44417,429.98,0, September 2014,Consultancy,150000
South Lakeland District Council,http://opendatacommunities.org/id/district-council/south-lakeland,30/11/2014,ICT Group,Central Services,http://opendatacommunities.org/def/concept/finance/sercop/objective/102,SOCITM LIMITED,4396808,13/10/2014,44039,960,0,"Website take up service, 12 month",Information Communication Technology,270000
South Lakeland District Council,http://opendatacommunities.org/id/district-council/south-lakeland,30/11/2014,Revenues and Benefits,Central Services,http://opendatacommunities.org/def/concept/finance/sercop/objective/102,MERITEC LTD,3224622,13/10/2014,44091,418.5,0,RAB Processing Contract and Agency,Consultancy,150000
South Lakeland District Council,http://opendatacommunities.org/id/district-council/south-lakeland,30/11/2014,Financial Services,Central Services,http://opendatacommunities.org/def/concept/finance/sercop/objective/102,Capita Secure Information Solutions Ltd,1593831,13/10/2014,44106,3219.5,0,Script conversion support,Financial Services,200000
South Lakeland District Council,http://opendatacommunities.org/id/district-council/south-lakeland,30/11/2014,Electoral Services,Central Services,http://opendatacommunities.org/def/concept/finance/sercop/objective/102,SCI PRINT LTD,,13/10/2014,44162,3673.17,0,Postage for reminder HEF's and ITR's,Mail Services,300000
South Lakeland District Council,http://opendatacommunities.org/id/district-council/south-lakeland,30/11/2014,Electoral Services,Central Services,http://opendatacommunities.org/def/concept/finance/sercop/objective/102,SCI PRINT LTD,,13/10/2014,44164,1718,0,Printing Poll cards,Stationery,340000
South Lakeland District Council,http://opendatacommunities.org/id/district-council/south-lakeland,30/11/2014,Kendal Market Hall,Central Services,http://opendatacommunities.org/def/concept/finance/sercop/objective/102,HYGIENE CLEANING SUPPLIES LTD,4753934,13/10/2014,44183,292.63,0,"5 x 17"" blue floor pads",Cleaning & Janitorial,130000
South Lakeland District Council,http://opendatacommunities.org/id/district-council/south-lakeland,30/11/2014,Social Enterprise Admin,Central Services,http://opendatacommunities.org/def/concept/finance/sercop/objective/102,FLORENCE MADDEN,,13/10/2014,44239,252,0,NLP Business Practitioner course,Education,170000
South Lakeland District Council,http://opendatacommunities.org/id/district-council/south-lakeland,30/11/2014,Social Enterprise Admin,Central Services,http://opendatacommunities.org/def/concept/finance/sercop/objective/102,ADECCO UK LIMITED,593232,13/10/2014,44295,530.21,0,TEMPORARY GAZETTEER OFFICER,Consultancy,150000
South Lakeland District Council,http://opendatacommunities.org/id/district-council/south-lakeland,30/11/2014,Human Resources,Central Services,http://opendatacommunities.org/def/concept/finance/sercop/objective/102,FORBES SOLICITORS,,13/10/2014,44347,286,0,General Legal advise,Legal Services,280000
South Lakeland District Council,http://opendatacommunities.org/id/district-council/south-lakeland,30/11/2014,Policy & Partnerships,Cultural Environmental Regulatory & Planning Services,http://opendatacommunities.org/def/concept/finance/sercop/objective/104,Grange Prom Youth Project (LIPS),,13/10/2014,44331,12500,0,Grange Prom Youth Project - LIP,Financial Services,200000
South Lakeland District Council,http://opendatacommunities.org/id/district-council/south-lakeland,30/11/2014,Social Enterprise Admin,Cultural Environmental Regulatory & Planning Services,http://opendatacommunities.org/def/concept/finance/sercop/objective/104,GARSTANG TIMBER & PLYWOOD LTD,,13/10/2014,44338,431.7,0,Timber ,Sports & Playground Equipment & Maintenance,330000
South Lakeland District Council,http://opendatacommunities.org/id/district-council/south-lakeland,30/11/2014,Social Enterprise Admin,Cultural Environmental Regulatory & Planning Services,http://opendatacommunities.org/def/concept/finance/sercop/objective/104,ARB CONSULTANTS LTD,6082066,13/10/2014,44387,2931.83,0,Arboricultural contract April-Sept 14,Facilities & Management Services,190000
South Lakeland District Council,http://opendatacommunities.org/id/district-council/south-lakeland,30/11/2014,Development Strategy,Cultural Environmental Regulatory & Planning Services,http://opendatacommunities.org/def/concept/finance/sercop/objective/104,NEWSQUEST (NORTH WEST) LTD,3102566,13/10/2014,44400,351.75,0,Press notice in Westmorland Gazette on,Facilities & Management Services,190000
South Lakeland District Council,http://opendatacommunities.org/id/district-council/south-lakeland,30/11/2014,Social Enterprise Admin,Cultural Environmental Regulatory & Planning Services,http://opendatacommunities.org/def/concept/finance/sercop/objective/104,THE NATIONAL TRUST,,13/10/2014,44407,2650,0,Rent at Millerground Sailing Base 1st,Housing Management,250000
South Lakeland District Council,http://opendatacommunities.org/id/district-council/south-lakeland,30/11/2014,Business Support Community Services,Cultural Environmental Regulatory & Planning Services,http://opendatacommunities.org/def/concept/finance/sercop/objective/104,Lakes Arts Festivals Ltd,8320981,13/10/2014,44423,5000,0,Contribution towards Lake International,Arts & Leisure Services,290000
South Lakeland District Council,http://opendatacommunities.org/id/district-council/south-lakeland,30/11/2014,Social Enterprise Admin,Transport,http://opendatacommunities.org/def/concept/finance/sercop/objective/107,ACS BPS LTD,,13/10/2014,41935,128175.28,0,Provision of a new pay on exit parking,Financial Services,200000
South Lakeland District Council,http://opendatacommunities.org/id/district-council/south-lakeland,30/11/2014,Social Enterprise Admin,Highways & Transport Services,http://opendatacommunities.org/def/concept/finance/sercop/objective/107,ACS BPS LTD,,13/10/2014,43962,826.12,0,1No. Magnetic Articulated Barrier Arm,Vehicle Management,380000
South Lakeland District Council,http://opendatacommunities.org/id/district-council/south-lakeland,30/11/2014,Social Enterprise Admin,Highways & Transport Services,http://opendatacommunities.org/def/concept/finance/sercop/objective/107,Kier FPS Limited,3337954,13/10/2014,44389,2583.27,0,Hire of 3 Citroen Nemo vans for one,Vehicle Management,380000
South Lakeland District Council,http://opendatacommunities.org/id/district-council/south-lakeland,30/11/2014,Social Enterprise Admin,Highways & Transport Services,http://opendatacommunities.org/def/concept/finance/sercop/objective/107,Kier FPS Limited,3337954,13/10/2014,44390,2583.27,0,Hire of 3 Citroen Nemo vans for one,Vehicle Management,380000
South Lakeland District Council,http://opendatacommunities.org/id/district-council/south-lakeland,30/11/2014,Social Enterprise Admin,Highways & Transport Services,http://opendatacommunities.org/def/concept/finance/sercop/objective/107,Kier FPS Limited,3337954,13/10/2014,44391,2583.27,0,Hire of 3 Citroen Nemo vans for one,Vehicle Management,380000
South Lakeland District Council,http://opendatacommunities.org/id/district-council/south-lakeland,30/11/2014,Business Support Community Services,Housing Services,http://opendatacommunities.org/def/concept/finance/sercop/objective/108,James Andrews Recruitment Solutions,6834852,13/10/2014,44319,900,0,Payment ,Consultancy,150000
South Lakeland District Council,http://opendatacommunities.org/id/district-council/south-lakeland,30/11/2014,Business Support Community Services,Housing Services,http://opendatacommunities.org/def/concept/finance/sercop/objective/108,Landlord,5099067,13/10/2014,44366,600,0,Rent in advance ,Social Community Care Supplies & Services,410000
South Lakeland District Council,http://opendatacommunities.org/id/district-council/south-lakeland,30/11/2014,Business Support Community Services,Housing Services,http://opendatacommunities.org/def/concept/finance/sercop/objective/108,Netherfield Cricket Club,,13/10/2014,44367,450,0,Rent in advance ,Social Community Care Supplies & Services,410000
South Lakeland District Council,http://opendatacommunities.org/id/district-council/south-lakeland,30/11/2014,Environment and Housing,Housing,http://opendatacommunities.org/def/concept/finance/sercop/objective/108,ULTRACARE PROPERTY MANAGEMENT LTD,5020554,13/10/2014,44410,3291,0,"Beetham, Milnthorpe, LA7",Financial Services,200000
South Lakeland District Council,http://opendatacommunities.org/id/district-council/south-lakeland,30/11/2014,Environment and Housing,Housing,http://opendatacommunities.org/def/concept/finance/sercop/objective/108,C W COX & SONS (KENDAL) LTD,3498844,13/10/2014,44411,873,0,"Ferney Green Drive,",Financial Services,200000
South Lakeland District Council,http://opendatacommunities.org/id/district-council/south-lakeland,30/11/2014,Environment and Housing,Housing,http://opendatacommunities.org/def/concept/finance/sercop/objective/108,KJS Access Solutions,,13/10/2014,44412,1694,0,"Kendal, LA9 5TR",Financial Services,200000
South Lakeland District Council,http://opendatacommunities.org/id/district-council/south-lakeland,30/11/2014,Environment and Housing,Housing,http://opendatacommunities.org/def/concept/finance/sercop/objective/108,DOLPHIN STAIRLIFTS CUMBRIA,,13/10/2014,44413,1550,0,"Cartmel, GOS, LA11 6PJ",Financial Services,200000
South Lakeland District Council,http://opendatacommunities.org/id/district-council/south-lakeland,30/11/2014,Legal Services,Internal Trading Accounts,,PENNINGTONS (KENDAL) LIMITED,434649,15/10/2014,44102,2000,0,Annual Charge from 01 April 2014 to 31,Environmental Services,180000
South Lakeland District Council,http://opendatacommunities.org/id/district-council/south-lakeland,30/11/2014,Business Support Community Services,Internal Trading Accounts,,CUMBRIA TRUCK CENTRE LTD,4298488,15/10/2014,44160,355.57,0,Pump,Vehicle Management,380000
South Lakeland District Council,http://opendatacommunities.org/id/district-council/south-lakeland,30/11/2014,Business Support Community Services,Internal Trading Accounts,,BRIAN ARMISTEAD LTD T/A SINKFALL RECYCLI,4133280,15/10/2014,44340,1128.8,0,Green waste tipping - April (estimated),Environmental Services,180000
South Lakeland District Council,http://opendatacommunities.org/id/district-council/south-lakeland,30/11/2014,Business Support Community Services,Internal Trading Accounts,,Masterstaff Limited,2777593,15/10/2014,44443,429.98,0, October 2014,Consultancy,150000
South Lakeland District Council,http://opendatacommunities.org/id/district-council/south-lakeland,30/11/2014,Human Resources,Central Services,http://opendatacommunities.org/def/concept/finance/sercop/objective/102,GBS Corporate Training,6452080,15/10/2014,44108,995,0,Cutting Bureaucracy 25/06/2014,Education,170000
South Lakeland District Council,http://opendatacommunities.org/id/district-council/south-lakeland,30/11/2014,Electoral Services,Central Services,http://opendatacommunities.org/def/concept/finance/sercop/objective/102,SCI PRINT LTD,,15/10/2014,44161,1501.5,0,Weekly Mailing and set up for letters,Mail Services,300000
South Lakeland District Council,http://opendatacommunities.org/id/district-council/south-lakeland,30/11/2014,Electoral Services,Central Services,http://opendatacommunities.org/def/concept/finance/sercop/objective/102,SCI PRINT LTD,,15/10/2014,44163,2706.6,0,Printing Reminder HEF's and ITR's,Mail Services,300000
South Lakeland District Council,http://opendatacommunities.org/id/district-council/south-lakeland,30/11/2014,Development Implementation,Central Services,http://opendatacommunities.org/def/concept/finance/sercop/objective/102,THE LEISURE MEDIA COMPANY LIMITED,2135800,15/10/2014,44191,270,0,Advertisement for TIC Opportunity,"Works - Construction, Repair & Maintenance",390000
South Lakeland District Council,http://opendatacommunities.org/id/district-council/south-lakeland,30/11/2014,Revenues and Benefits,Central Services,http://opendatacommunities.org/def/concept/finance/sercop/objective/102,MERITEC LTD,3224622,15/10/2014,44210,418.5,0,RAB Processing Contract and Agency,Consultancy,150000
South Lakeland District Council,http://opendatacommunities.org/id/district-council/south-lakeland,30/11/2014,Financial Services,Central Services,http://opendatacommunities.org/def/concept/finance/sercop/objective/102,Capita Secure Information Solutions Ltd,1593831,15/10/2014,44277,950,0,Oracle to SQL Server migration of test,Financial Services,200000
South Lakeland District Council,http://opendatacommunities.org/id/district-council/south-lakeland,30/11/2014,Legal Services,Central Services,http://opendatacommunities.org/def/concept/finance/sercop/objective/102,VENN GROUP RECRUITMENT SOLUTIONS,,15/10/2014,44441,517.31,0,Wages ,Consultancy,150000
South Lakeland District Council,http://opendatacommunities.org/id/district-council/south-lakeland,30/11/2014,Development Implementation,Cultural Environmental Regulatory & Planning Services,http://opendatacommunities.org/def/concept/finance/sercop/objective/104,Insite Marketing Solutions Ltd,4194678,15/10/2014,44144,1188,0,Graphic Boards for MIPIM Event,Environmental Services,180000
South Lakeland District Council,http://opendatacommunities.org/id/district-council/south-lakeland,30/11/2014,Development Strategy,Cultural Environmental Regulatory & Planning Services,http://opendatacommunities.org/def/concept/finance/sercop/objective/104,Matchtech,2526418,15/10/2014,44214,583.59,0,"12-week contract, 30hrs",Consultancy,150000
South Lakeland District Council,http://opendatacommunities.org/id/district-council/south-lakeland,30/11/2014,Business Support Community Services,Cultural Environmental Regulatory & Planning Services,http://opendatacommunities.org/def/concept/finance/sercop/objective/104,OCS GROUP LTD T/A CANNON HYGIENE LTD,1298292,15/10/2014,44247,1814.7,0,Clinical waste collections - September,Environmental Services,180000
South Lakeland District Council,http://opendatacommunities.org/id/district-council/south-lakeland,30/11/2014,Social Enterprise Admin,Cultural Environmental Regulatory & Planning Services,http://opendatacommunities.org/def/concept/finance/sercop/objective/104,Cleartrack (EvL) Ltd,3881690,15/10/2014,44251,787.5,0,All works to be carried out to the,Environmental Services,180000
South Lakeland District Council,http://opendatacommunities.org/id/district-council/south-lakeland,30/11/2014,Environmental Protection,Cultural Environmental Regulatory & Planning Services,http://opendatacommunities.org/def/concept/finance/sercop/objective/104,CONTINENTAL LANDSCAPES LTD,2108452,15/10/2014,44268,3582.38,0,Covering 12monthly payments for,Cemetery & Crematorium,120000
South Lakeland District Council,http://opendatacommunities.org/id/district-council/south-lakeland,30/11/2014,Development Implementation,Cultural Environmental Regulatory & Planning Services,http://opendatacommunities.org/def/concept/finance/sercop/objective/104,Douglas Wheeler Associates Ltd,SC368549,15/10/2014,44422,2594,0,Revisit/Update of the Kendal Economic,Consultancy,150000
South Lakeland District Council,http://opendatacommunities.org/id/district-council/south-lakeland,30/11/2014,Social Enterprise Admin,Cultural Environmental Regulatory & Planning Services,http://opendatacommunities.org/def/concept/finance/sercop/objective/104,Matchtech,2526418,15/10/2014,44437,1068.19,0,TO SUPPLY DEVELOPMENT CONTROL TEAM,Consultancy,150000
South Lakeland District Council,http://opendatacommunities.org/id/district-council/south-lakeland,30/11/2014,Development Strategy,Cultural Environmental Regulatory & Planning Services,http://opendatacommunities.org/def/concept/finance/sercop/objective/104,Matchtech,2526418,15/10/2014,44438,416.85,0,"12-week contract, 30hrs",Consultancy,150000
South Lakeland District Council,http://opendatacommunities.org/id/district-council/south-lakeland,30/11/2014,Social Enterprise Admin,Highways & Transport Services,http://opendatacommunities.org/def/concept/finance/sercop/objective/107,Southerns Office Interiors Ltd,3478080,15/10/2014,44141,540,0,3 x Office Task Chairs - CH0730,Furniture & Soft Furnishings,210000
South Lakeland District Council,http://opendatacommunities.org/id/district-council/south-lakeland,30/11/2014,Environment and Housing,Housing,http://opendatacommunities.org/def/concept/finance/sercop/objective/108,SOUTH LAKES HOUSING,IP031419,15/10/2014,44409,167395.33,0,"Binfold Croft, Kirkby Lonsdale 2nd stage",Financial Services,200000
South Lakeland District Council,http://opendatacommunities.org/id/district-council/south-lakeland,30/11/2014,Development Strategy,Housing Services,http://opendatacommunities.org/def/concept/finance/sercop/objective/108,MORGAN HUNT UK LIMITED,4349535,15/10/2014,44454,748.88,0,Housing Advice Manager,Consultancy,150000
South Lakeland District Council,http://opendatacommunities.org/id/district-council/south-lakeland,30/11/2014,Development Strategy,Housing Services,http://opendatacommunities.org/def/concept/finance/sercop/objective/108,MORGAN HUNT UK LIMITED,4349535,15/10/2014,44454,748.88,0,Housing Advice Manager,Consultancy,150000
South Lakeland District Council,http://opendatacommunities.org/id/district-council/south-lakeland,30/11/2014,Development Strategy,Housing Services,http://opendatacommunities.org/def/concept/finance/sercop/objective/108,MORGAN HUNT UK LIMITED,4349535,15/10/2014,44455,757.02,0,Housing Advice Manager,Consultancy,150000
South Lakeland District Council,http://opendatacommunities.org/id/district-council/south-lakeland,30/11/2014,Development Strategy,Housing Services,http://opendatacommunities.org/def/concept/finance/sercop/objective/108,MORGAN HUNT UK LIMITED,4349535,15/10/2014,44455,757.02,0,Housing Advice Manager,Consultancy,150000
South Lakeland District Council,http://opendatacommunities.org/id/district-council/south-lakeland,30/11/2014,Development Strategy,Housing Services,http://opendatacommunities.org/def/concept/finance/sercop/objective/108,MORGAN HUNT UK LIMITED,4349535,15/10/2014,44456,740.74,0,Housing Advice Manager,Consultancy,150000
South Lakeland District Council,http://opendatacommunities.org/id/district-council/south-lakeland,30/11/2014,Development Strategy,Housing Services,http://opendatacommunities.org/def/concept/finance/sercop/objective/108,MORGAN HUNT UK LIMITED,4349535,15/10/2014,44456,740.74,0,Housing Advice Manager,Consultancy,150000
South Lakeland District Council,http://opendatacommunities.org/id/district-council/south-lakeland,30/11/2014,Development Strategy,Housing Services,http://opendatacommunities.org/def/concept/finance/sercop/objective/108,MORGAN HUNT UK LIMITED,4349535,15/10/2014,44457,740.74,0,Housing Advice Manager,Consultancy,150000
South Lakeland District Council,http://opendatacommunities.org/id/district-council/south-lakeland,30/11/2014,Development Strategy,Housing Services,http://opendatacommunities.org/def/concept/finance/sercop/objective/108,MORGAN HUNT UK LIMITED,4349535,15/10/2014,44457,740.74,0,Housing Advice Manager,Consultancy,150000
South Lakeland District Council,http://opendatacommunities.org/id/district-council/south-lakeland,30/11/2014,Development Strategy,Housing Services,http://opendatacommunities.org/def/concept/finance/sercop/objective/108,MORGAN HUNT UK LIMITED,4349535,15/10/2014,44458,765.16,0,Housing Advice Manager,Consultancy,150000
South Lakeland District Council,http://opendatacommunities.org/id/district-council/south-lakeland,30/11/2014,Development Strategy,Housing Services,http://opendatacommunities.org/def/concept/finance/sercop/objective/108,MORGAN HUNT UK LIMITED,4349535,15/10/2014,44458,765.16,0,Housing Advice Manager,Consultancy,150000
South Lakeland District Council,http://opendatacommunities.org/id/district-council/south-lakeland,30/11/2014,Development Strategy,Housing Services,http://opendatacommunities.org/def/concept/finance/sercop/objective/108,MORGAN HUNT UK LIMITED,4349535,15/10/2014,44459,781.44,0,Housing Advice Manager,Consultancy,150000
South Lakeland District Council,http://opendatacommunities.org/id/district-council/south-lakeland,30/11/2014,Development Strategy,Housing Services,http://opendatacommunities.org/def/concept/finance/sercop/objective/108,MORGAN HUNT UK LIMITED,4349535,15/10/2014,44459,781.44,0,Housing Advice Manager,Consultancy,150000
South Lakeland District Council,http://opendatacommunities.org/id/district-council/south-lakeland,30/11/2014,Development Strategy,Housing Services,http://opendatacommunities.org/def/concept/finance/sercop/objective/108,MORGAN HUNT UK LIMITED,4349535,15/10/2014,44460,765.16,0,Housing Advice Manager,Consultancy,150000
South Lakeland District Council,http://opendatacommunities.org/id/district-council/south-lakeland,30/11/2014,Development Strategy,Housing Services,http://opendatacommunities.org/def/concept/finance/sercop/objective/108,MORGAN HUNT UK LIMITED,4349535,15/10/2014,44460,765.16,0,Housing Advice Manager,Consultancy,150000
South Lakeland District Council,http://opendatacommunities.org/id/district-council/south-lakeland,30/11/2014,Development Strategy,Housing Services,http://opendatacommunities.org/def/concept/finance/sercop/objective/108,MORGAN HUNT UK LIMITED,4349535,15/10/2014,44461,732.6,0,Housing Advice Manager,Consultancy,150000
South Lakeland District Council,http://opendatacommunities.org/id/district-council/south-lakeland,30/11/2014,Development Strategy,Housing Services,http://opendatacommunities.org/def/concept/finance/sercop/objective/108,MORGAN HUNT UK LIMITED,4349535,15/10/2014,44461,732.6,0,Housing Advice Manager,Consultancy,150000
South Lakeland District Council,http://opendatacommunities.org/id/district-council/south-lakeland,30/11/2014,Business Support Community Services,Housing Services,http://opendatacommunities.org/def/concept/finance/sercop/objective/108,Landlord,,15/10/2014,44463,890,0,Monthly rent payment ,Social Community Care Supplies & Services,410000
South Lakeland District Council,http://opendatacommunities.org/id/district-council/south-lakeland,30/11/2014,Business Support Community Services,Housing Services,http://opendatacommunities.org/def/concept/finance/sercop/objective/108,Landlord,,15/10/2014,44464,1190,0,Monthly rent ,Social Community Care Supplies & Services,410000
South Lakeland District Council,http://opendatacommunities.org/id/district-council/south-lakeland,30/11/2014,Business Support Community Services,Internal Trading Accounts,,POST OFFICE LTD,2154540,16/10/2014,44355,2020,0,"Licence SL007, SL008, SL018, SL024,",Vehicle Management,380000
South Lakeland District Council,http://opendatacommunities.org/id/district-council/south-lakeland,30/11/2014,Revenues and Benefits,Central Services,http://opendatacommunities.org/def/concept/finance/sercop/objective/102,HMCTS,,16/10/2014,44383,276,0,2014-15  Council Tax Liability Orders,Legal Services,280000
South Lakeland District Council,http://opendatacommunities.org/id/district-council/south-lakeland,30/11/2014,Revenues and Benefits,Central Services,http://opendatacommunities.org/def/concept/finance/sercop/objective/102,HMCTS,,16/10/2014,44383,2304,0,2014-15  Council Tax Liability Orders,Legal Services,280000
South Lakeland District Council,http://opendatacommunities.org/id/district-council/south-lakeland,30/11/2014,Business Support Community Services,Environment Regulatory,,Great Green Systems Ltd,6632263,20/10/2014,44248,2468.8,0,Replaces order 24352.,Vehicle Management,380000
South Lakeland District Council,http://opendatacommunities.org/id/district-council/south-lakeland,30/11/2014,Business Support Community Services,Internal Trading Accounts,,SITA UK LTD,2291198,20/10/2014,44284,31818.69,0,"Tipping & disposal charges, recyclables",Environmental Services,180000
South Lakeland District Council,http://opendatacommunities.org/id/district-council/south-lakeland,30/11/2014,Business Support Community Services,Internal Trading Accounts,,ARCO LIMITED,133804,20/10/2014,44306,868.8,0,Eez wipes,Clothing,140000
South Lakeland District Council,http://opendatacommunities.org/id/district-council/south-lakeland,30/11/2014,Parish Lighting,SLDC as Agent,,E ON ENERGY,4060387,20/10/2014,44432,663.1,,No description recorded,Utilities,370000
South Lakeland District Council,http://opendatacommunities.org/id/district-council/south-lakeland,30/11/2014,Human Resources,Central Services,http://opendatacommunities.org/def/concept/finance/sercop/objective/102,THE QUAKER TAPESTRY KENDAL LTD,,20/10/2014,44451,325,0,22-Sep,Education,170000
South Lakeland District Council,http://opendatacommunities.org/id/district-council/south-lakeland,30/11/2014,Social Enterprise Admin,Central Services,http://opendatacommunities.org/def/concept/finance/sercop/objective/102,ADECCO UK LIMITED,593232,20/10/2014,44471,429.9,0,To supply for period,Consultancy,150000
South Lakeland District Council,http://opendatacommunities.org/id/district-council/south-lakeland,30/11/2014,Revenues and Benefits,Central Services,http://opendatacommunities.org/def/concept/finance/sercop/objective/102,BADENOCH & CLARK,1356186,20/10/2014,44491,533.4,0,Revs and Bens,Consultancy,150000
South Lakeland District Council,http://opendatacommunities.org/id/district-council/south-lakeland,30/11/2014,Business Support Community Services,Cultural Environmental Regulatory & Planning Services,http://opendatacommunities.org/def/concept/finance/sercop/objective/104,MOGO UK,3091301,20/10/2014,43894,1193.4,0,MP-1 Hackney Carriage Licence Plate Set,0,0
South Lakeland District Council,http://opendatacommunities.org/id/district-council/south-lakeland,30/11/2014,Social Enterprise Admin,Cultural Environmental Regulatory & Planning Services,http://opendatacommunities.org/def/concept/finance/sercop/objective/104,B & J METALS (SKIP HIRE) LTD,4634318,20/10/2014,44194,2520,0,Grounds waste disposal- Sandylands Road,Environmental Services,180000
South Lakeland District Council,http://opendatacommunities.org/id/district-council/south-lakeland,30/11/2014,Business Support Community Services,Cultural Environmental Regulatory & Planning Services,http://opendatacommunities.org/def/concept/finance/sercop/objective/104,OCS GROUP LTD T/A CANNON HYGIENE LTD,1298292,20/10/2014,44246,422.1,0,Clinical waste collections - October,Environmental Services,180000
South Lakeland District Council,http://opendatacommunities.org/id/district-council/south-lakeland,30/11/2014,Social Enterprise Admin,Cultural Environmental Regulatory & Planning Services,http://opendatacommunities.org/def/concept/finance/sercop/objective/104,CUMBRIA CHAMBER OF COMMERCE,4211364,20/10/2014,44267,2500,0,Grant funding for TIC Kendal 2,Consultancy,150000
South Lakeland District Council,http://opendatacommunities.org/id/district-council/south-lakeland,30/11/2014,Social Enterprise Admin,Cultural Environmental Regulatory & Planning Services,http://opendatacommunities.org/def/concept/finance/sercop/objective/104,CONTINENTAL LANDSCAPES LTD,2108452,20/10/2014,44269,60825.3,0,Grounds maintenance 14-15,Horticultural,240000
South Lakeland District Council,http://opendatacommunities.org/id/district-council/south-lakeland,30/11/2014,Social Enterprise Admin,Cultural Environmental Regulatory & Planning Services,http://opendatacommunities.org/def/concept/finance/sercop/objective/104,RAINBOW SAFETY SURFACING LTD,4820611,20/10/2014,44308,2205,0,Black EPDM wet pour surfacing,Sports & Playground Equipment & Maintenance,330000
South Lakeland District Council,http://opendatacommunities.org/id/district-council/south-lakeland,30/11/2014,Development Implementation,Cultural Environmental Regulatory & Planning Services,http://opendatacommunities.org/def/concept/finance/sercop/objective/104,SKV Communications,3495502,20/10/2014,44401,1409.38,0,Provision of PR/Marketing Support for,Environmental Services,180000
South Lakeland District Council,http://opendatacommunities.org/id/district-council/south-lakeland,30/11/2014,Policy & Partnerships,Cultural Environmental Regulatory & Planning Services,http://opendatacommunities.org/def/concept/finance/sercop/objective/104,Farfield Mill Arts and Heritage Trust,,20/10/2014,44500,4500,0,Year 2 grant payment,Financial Services,200000
South Lakeland District Council,http://opendatacommunities.org/id/district-council/south-lakeland,30/11/2014,Social Enterprise Admin,Highways & Transport Services,http://opendatacommunities.org/def/concept/finance/sercop/objective/107,G4S SECURE SOLUTIONS (UK) LTD,1046019,20/10/2014,44335,833.18,0,Patrol Services for South Lakeland House,Consultancy,150000
South Lakeland District Council,http://opendatacommunities.org/id/district-council/south-lakeland,30/11/2014,District Special Expenses,Highways & Transport Services,http://opendatacommunities.org/def/concept/finance/sercop/objective/107,E ON ENERGY,4060387,20/10/2014,44432,1982.42,,No description recorded,Utilities,370000
South Lakeland District Council,http://opendatacommunities.org/id/district-council/south-lakeland,30/11/2014,Business Support Community Services,Housing Services,http://opendatacommunities.org/def/concept/finance/sercop/objective/108,James Andrews Recruitment Solutions,6834852,20/10/2014,44475,706.25,0,Payment,Consultancy,150000
South Lakeland District Council,http://opendatacommunities.org/id/district-council/south-lakeland,30/11/2014,Business Support Community Services,Housing Services,http://opendatacommunities.org/def/concept/finance/sercop/objective/108,Landlord,,20/10/2014,44489,520,0,Monthly rent ,Social Community Care Supplies & Services,410000
South Lakeland District Council,http://opendatacommunities.org/id/district-council/south-lakeland,30/11/2014,Social Enterprise Admin,Culture and Related Serv,,Landlord,,22/10/2014,44256,300,0,Nobles Rest Project - additional works,Financial Services,200000
South Lakeland District Council,http://opendatacommunities.org/id/district-council/south-lakeland,30/11/2014,Business Support Community Services,Internal Trading Accounts,,AINSWORTH'S GARAGE,,22/10/2014,44282,340,0,Recover SL001,Vehicle Management,380000
South Lakeland District Council,http://opendatacommunities.org/id/district-council/south-lakeland,30/11/2014,SLDC Depots,Transport Planning Policy,,CRUDEN PROPERTY SERVICES LTD,3851237,22/10/2014,44311,525.73,,No description recorded,"Works - Construction, Repair & Maintenance",390000
South Lakeland District Council,http://opendatacommunities.org/id/district-council/south-lakeland,30/11/2014,Sundry Properties,External Trading Accounts,,CRUDEN PROPERTY SERVICES LTD,3851237,22/10/2014,44311,1419.08,,No description recorded,"Works - Construction, Repair & Maintenance",390000
South Lakeland District Council,http://opendatacommunities.org/id/district-council/south-lakeland,30/11/2014,Sundry Properties,External Trading Accounts,,Lafarge Tarmac Trading Ltd,453791,22/10/2014,44323,2771.52,,No description recorded,"Works - Construction, Repair & Maintenance",390000
South Lakeland District Council,http://opendatacommunities.org/id/district-council/south-lakeland,30/11/2014,Business Support Community Services,Internal Trading Accounts,,H WICKS (LINDAL) LTD,754590,22/10/2014,44435,2021.6,0,Paper handling - September (estimated),Environmental Services,180000
South Lakeland District Council,http://opendatacommunities.org/id/district-council/south-lakeland,30/11/2014,Sundry Properties,External Trading Accounts,,Datum Monitoring Services Ltd,3708618,22/10/2014,44492,488,,No description recorded,"Works - Construction, Repair & Maintenance",390000
South Lakeland District Council,http://opendatacommunities.org/id/district-council/south-lakeland,30/11/2014,Revenues and Benefits,SLDC as Agent,,ROYAL MAIL GROUP PLC,,22/10/2014,44532,1138.5,0,2014-15  Postal Charges a/c 0198123013,Financial Services,200000
South Lakeland District Council,http://opendatacommunities.org/id/district-council/south-lakeland,30/11/2014,Sundry Properties,External Trading Accounts,,Blackett-Ord Conservation Engineering,,22/10/2014,44556,500,,No description recorded,"Works - Construction, Repair & Maintenance",390000
South Lakeland District Council,http://opendatacommunities.org/id/district-council/south-lakeland,30/11/2014,Coronation Hall,External Trading Accounts,,SHORROCK TRICHEM,4179799,22/10/2014,44574,295.08,0,Toilet rolls - mini jumbo 2 ply 12 pack,Cleaning & Janitorial,130000
South Lakeland District Council,http://opendatacommunities.org/id/district-council/south-lakeland,30/11/2014,Business Support Community Services,Internal Trading Accounts,,Masterstaff Limited,2777593,22/10/2014,44596,429.98,0,Paul O'Neill -  October 2014,Consultancy,150000
South Lakeland District Council,http://opendatacommunities.org/id/district-council/south-lakeland,30/11/2014,Debtors,Non-Service Payments,,SOUTH LAKES HOUSING RENT A/C,,22/10/2014,44637,4387.12,,No description recorded,Housing Management,250000
South Lakeland District Council,http://opendatacommunities.org/id/district-council/south-lakeland,30/11/2014,Payroll Deductions,Non-Service Payments,,PAYCARE,820791,22/10/2014,44638,342.16,,No description recorded,Financial Services,200000
South Lakeland District Council,http://opendatacommunities.org/id/district-council/south-lakeland,30/11/2014,Payroll Deductions,Non-Service Payments,,GMB,,22/10/2014,44639,370.73,,No description recorded,Financial Services,200000
South Lakeland District Council,http://opendatacommunities.org/id/district-council/south-lakeland,30/11/2014,Payroll Deductions,Non-Service Payments,,UNISON,,22/10/2014,44640,2023.75,,No description recorded,Financial Services,200000
South Lakeland District Council,http://opendatacommunities.org/id/district-council/south-lakeland,30/11/2014,Human Resources,Central Services,http://opendatacommunities.org/def/concept/finance/sercop/objective/102,APSE,6735100,22/10/2014,44279,498,0,APSE one day health and safety seminar,Health & Safety,220000
South Lakeland District Council,http://opendatacommunities.org/id/district-council/south-lakeland,30/11/2014,Development Implementation,Central Services,http://opendatacommunities.org/def/concept/finance/sercop/objective/102,VALUATION OFFICE AGENCY,,22/10/2014,44297,1426.83,0,"124 Highgate, Kendal - Independent","Works - Construction, Repair & Maintenance",390000
South Lakeland District Council,http://opendatacommunities.org/id/district-council/south-lakeland,30/11/2014,Offices,Central Services,http://opendatacommunities.org/def/concept/finance/sercop/objective/102,CRUDEN PROPERTY SERVICES LTD,3851237,22/10/2014,44311,719.12,,No description recorded,"Works - Construction, Repair & Maintenance",390000
South Lakeland District Council,http://opendatacommunities.org/id/district-council/south-lakeland,30/11/2014,Customer Services,Central Services,http://opendatacommunities.org/def/concept/finance/sercop/objective/102,SHRED-IT,4047194,22/10/2014,44349,268.4,0,Removal of confidential waste from South,Stationery,340000
South Lakeland District Council,http://opendatacommunities.org/id/district-council/south-lakeland,30/11/2014,Human Resources,Central Services,http://opendatacommunities.org/def/concept/finance/sercop/objective/102,The Word Centre,3195753,22/10/2014,44353,3345.1,0,Web writing for editors course,Education,170000
